Workbook

Sheet PANELPRINCIPAL
A1: MODELO DE COSTOS ABC
A2: PANEL PRINCIPAL
B3: CONSULTAS | H3: LIQUIDACION

Sheet PLIQUIDACION
A1: PANEL DE LIQUIDACION
A4: SELECCIONE LAS CONDICIONES DE LA CARROCERIA A LIQUIDAR
A6: TIPO DE CARROCERIA | D6: INTERMUNICIPAL | H6: URBANA
H7: INTERMUNICIPAL
A8: TIPO DE TECHO | D8: FIBRA | I8: FIBRA | J8: FORRADO
A10: TIPO DE PISO | D10: HULE | I10: HULE | J10: LAMINA
A12: # CARROCERIAS EN FABRICACION | D12: 1 | H12: 1 | I12: 2 | J12: 3 | K12: 4 | L12: 5 | M12: 6 | N12: 7 | O12: 8 | P12: 9 | Q12: 10 | R12: 11 | S12: 12 | T12: 13 | U12: 14 | V12: 15 | W12: 16 | X12: 17 | Y12: 18 | Z12: 19 | AA12: 20 | AB12: 21 | AC12: 22 | AD12: 23 | AE12: 24 | AF12: 25 | AG12: 26 | AH12: 27 | AI12: 28 | AJ12: 29 | AK12: 30 | AL12: 31 | AM12: 32 | AN12: 33 | AO12: 34 | AP12: 35 | AQ12: 36 | AR12: 37 | AS12: 38 | AT12: 39 | AU12: 40 | AV12: 41 | AW12: 42 | AX12: 43 | AY12: 44 | AZ12: 45 | BA12: 46 | BB12: 47 | BC12: 48
A16: MARQUE CON X LOS LUJOS QUE LLEVARA LA CARROCERIA | F16: CLARABOYAS
F17: VELAS
E18: X | F18: LICUADORAS
E19: X | F19: RADIO
E20: X | F20: PARLANTES

Sheet Hoja2 (hidden)
A3: Suma de VALOR TOTAL | B3: Rótulos de columna
A4: Rótulos de fila | B4: Directo | C4: Indirecto | D4: (en blanco) | E4: Total general
A5: FRENTES Y TRACEROS EN FIBRA DE VIDRIO | B5: 1560000 | C5: 1213800 | D5: 0 | E5: 2773800
A6: Adecuación de las partes montadas | C6: 4000 | E6: 4000
A7: Desmonte de partes de los moldes | D7: 0 | E7: 0
A8: Elaboración de piezas de frente en fibra de vidrio | B8: 780000 | C8: 412050 | E8: 1192050
A9: Elaboración de piezas traseras en fibra de vidrio | B9: 780000 | C9: 397050 | E9: 1177050
A10: Encerar los moldes | C10: 390000 | E10: 390000
A11: Instalación de las partes | C11: 10700 | E11: 10700
A12: ADECUACIONES ELÉCTRICAS | B12: 2776935 | C12: 267790 | E12: 3044725
A13: Adecuación de alumbrado interno | B13: 232500 | C13: 17000 | E13: 249500
A14: Adecuación de Boster | B14: 750000 | C14: 161200 | E14: 911200
A15: Instalación de licuadoras | B15: 266800 | C15: 2090 | E15: 268890
A16: Instalación de motores de limpia brisas | B16: 669000 | E16: 669000
A17: Instalación de parlantes | B17: 230000 | C17: 78000 | E17: 308000
A18: Instalación de radio | B18: 420000 | C18: 9500 | E18: 429500
A19: Instalación de velas | B19: 88635 | E19: 88635
A20: Instalacion de espejos | B20: 120000 | E20: 120000
A21: ALISTAMIENTO CHASIS | C21: 116100 | E21: 116100
A22: Acondicimiento de bateria | C22: 0 | E22: 0
A23: Acondicimineto de portarepuestos | C23: 0 | E23: 0
A24: Acondicionamiento de filtro de aire | C24: 34100 | E24: 34100
A25: Acondicionamiento de filtro de combustible | C25: 0 | E25: 0
A26: Instalación de banda | C26: 32000 | E26: 32000
A27: (en blanco) | C27: 50000 | E27: 50000
A28: DECORACION ( PISO EN HULE) | B28: 652374 | C28: 60867.03333 | D28: 0 | E28: 713241.0333
A29: Instalación de piso en caucho | B29: 185710 | C29: 44666.66667 | E29: 230376.6667
A30: Instalación de piso en madera | B30: 360000 | C30: 5033.7 | E30: 365033.7
A31: piso parte delantera | B31: 106664 | C31: 11166.66667 | E31: 117830.6667
A32: Preparación de piso | D32: 0 | E32: 0
A33: DECORACION ( PISO EN LAMINA) | B33: 665000 | C33: 121033.7 | D33: 0 | E33: 786033.7
A34: Instalación de piso en lámina | B34: 305000 | C34: 116000 | E34: 421000
A35: Instalación de piso en madera | B35: 360000 | C35: 5033.7 | E35: 365033.7
A36: Preparación de piso | D36: 0 | E36: 0
A37: DECORACION ( TECHO FIBRA) | B37: 998000 | C37: 587250 | E37: 1585250
A38: Aplicación capa de praymer | C38: 11250 | E38: 11250
A39: Aplicación de Capa de fondo | C39: 134750 | E39: 134750
A40: Aplicación de Capa de masilla | C40: 53500 | E40: 53500
A41: Fabricar piezas | B41: 998000 | E41: 998000
A42: Lijado de Piezas | C42: 12500 | E42: 12500
A43: Lijado sobre capa de fondo | C43: 12500 | E43: 12500
A44: Lijado sobre capa de masilla | C44: 10250 | E44: 10250
A45: Lijado sobre capa de praymer | C45: 42500 | E45: 42500
A46: Lijado sobre la capa de fondo | C46: 12500 | E46: 12500
A47: Limpiar moldes | C47: 30000 | E47: 30000
A48: Pintar piezas | C48: 267500 | E48: 267500
A49: DECORACION ( TECHO FORRADO) | B49: 122000 | C49: 262971.4286 | E49: 384971.4286
A50: Doblar Lámina | B50: 122000 | E50: 122000
A51: Forrar cajones | C51: 148571.4286 | E51: 148571.4286
A52: Instalar | C52: 17400 | E52: 17400
A53: Preparación de techo | C53: 90000 | E53: 90000
A54: Soldar | C54: 7000 | E54: 7000
A55: DECORACION (VIDRIOS Y LUJOS) | B55: 860432 | C55: 3258730 | E55: 4119162
A56: Adecuacion de cajones internos | B56: 167000 | C56: 47022 | E56: 214022
A57: Instalar claraboyá | C57: 355526 | E57: 355526
A58: Instalar Unidades | C58: 850000 | E58: 850000
A59: Instalar vidrios | B59: 693432 | C59: 2006182 | E59: 2699614
A60: DECORACION GENERAL INTERNA | B60: 296000 | C60: 170500 | E60: 466500
A61: Instalacion de calcomanias de emergencia | B61: 12000 | E61: 12000
A62: Instalacion de martillos de seguridad | B62: 24000 | E62: 24000
A63: Instalacion de tubos pasamanos | B63: 260000 | C63: 170500 | E63: 430500
A64: ENLATADO | B64: 798654 | C64: 626430 | E64: 1425084
A65: Colocar lámina | B65: 798654 | C65: 326800 | E65: 1125454
A66: Inmunizar estructura | C66: 299630 | E66: 299630
A67: ESTRIBOS y PUERTAS | B67: 365964.2857 | C67: 166756.5 | E67: 532720.7857
A68: Adecuacion de bodegas | B68: 102250 | C68: 7000 | E68: 109250
A69: Elaboracion de estribos | B69: 80714.28571 | C69: 7000 | E69: 87714.28571
A70: Elaboracion de puertas | B70: 183000 | C70: 14000 | E70: 197000
A71: Instalacion de estribos | C71: 27852 | E71: 27852
A72: Instalacion de puertas | C72: 110904.5 | E72: 110904.5
A73: PINTURA | C73: 1252500 | E73: 1252500
A74: Aplicación capa de praymer | C74: 45000 | E74: 45000
A75: Aplicación de Capa de fondo | C75: 499000 | E75: 499000
A76: Aplicación de Capa de masilla | C76: 218000 | E76: 218000
A77: Aplicacion de pintura | C77: 297500 | E77: 297500
A78: Lijado de carroceria | C78: 25000 | E78: 25000
A79: Lijado sobre capa de fondo | C79: 25000 | E79: 25000
A80: Lijado sobre capa de masilla | C80: 33000 | E80: 33000
A81: Lijado sobre capa de praymer | C81: 85000 | E81: 85000
A82: Lijado sobre la capa de fondo | C82: 25000 | E82: 25000
A83: PLATAFORMA Y ESTRUCTURA | B83: 4419500 | C83: 1054439.16 | E83: 5473939.16
A84: Armar estructura | C84: 418289.16 | E84: 418289.16
A85: Armar plataforma con los puentes | C85: 331200 | E85: 331200
A86: Cortar Lámina | B86: 230000 | E86: 230000
A87: Doblar Lámina
A88: Elaboración de arcos y frentes | B88: 4189500 | E88: 4189500
A89: Soldada de puentes | C89: 304950 | E89: 304950
A90: SILLETERIA | B90: 1068381.857 | C90: 555466.5 | E90: 1623848.357
A91: Hechura de estructura | B91: 402239 | C91: 70000 | E91: 472239
A92: Instalacion de sillas | C92: 313966.5 | E92: 313966.5
A93: Tapizada | B93: 666142.8571 | C93: 171500 | E93: 837642.8571
A94: Total general | B94: 14583241.14 | C94: 9714634.322 | D94: 0 | E94: 24297875.46

Sheet Hoja9 (hidden)
A3: Suma de VALOR TOTAL | B3: Rótulos de columna
A4: Rótulos de fila | B4: Directo | C4: Indirecto | D4: (en blanco) | E4: Total general
A5: FRENTES Y TRACEROS EN FIBRA DE VIDRIO | B5: 1560000 | C5: 1213800 | D5: 0 | E5: 2773800
A6: ADECUACIONES ELÉCTRICAS | B6: 2776935 | C6: 267790 | E6: 3044725
A7: ALISTAMIENTO CHASIS | C7: 116100 | E7: 116100
A8: DECORACION ( PISO EN HULE) | B8: 652374 | C8: 60867.03333 | D8: 0 | E8: 713241.0333
A9: DECORACION ( PISO EN LAMINA) | B9: 665000 | C9: 121033.7 | D9: 0 | E9: 786033.7
A10: DECORACION ( TECHO FIBRA) | B10: 998000 | C10: 587250 | E10: 1585250
A11: DECORACION ( TECHO FORRADO) | B11: 122000 | C11: 262971.4286 | E11: 384971.4286
A12: DECORACION (VIDRIOS Y LUJOS) | B12: 860432 | C12: 3258730 | E12: 4119162
A13: DECORACION GENERAL INTERNA | B13: 316000 | C13: 170500 | E13: 486500
A14: ENLATADO | B14: 798654 | C14: 626430 | E14: 1425084
A15: ESTRIBOS y PUERTAS | B15: 365964.2857 | C15: 166756.5 | E15: 532720.7857
A16: PINTURA | C16: 1252500 | E16: 1252500
A17: PLATAFORMA Y ESTRUCTURA | B17: 4419500 | C17: 1054439.16 | E17: 5473939.16
A18: SILLETERIA | B18: 1068381.857 | C18: 555466.5 | E18: 1623848.357
A19: Total general | B19: 14603241.14 | C19: 9714634.322 | D19: 0 | E19: 24317875.46

Sheet MPURBANA
A5: PROCESO | B5: ACTIVIDADES | C5: MATERIALES | D5: CANTIDAD UTILIZADA | E5: UNIDAD DE MEDIDA | F5: VALOR UNITARIO | G5: VALOR TOTAL | H5: CLASIFICACION
A6: ALISTAMIENTO CHASIS | B6: Acondicionamiento de filtro de aire | C6: Codo metalico 1m*2 1/4 | D6: 1 | E6: UND | F6: 3500 | G6: =+F6*D6 -> 3500 | H6: Indirecto
A7: ALISTAMIENTO CHASIS | B7: Acondicionamiento de filtro de aire | C7: Manguera de 2 y 3/4 | D7: 1 | E7: MTS | F7: 6000 | G7: =+F7*D7 -> 6000 | H7: Indirecto
A8: ALISTAMIENTO CHASIS | B8: Acondicionamiento de filtro de aire | C8: Abrazaderas 2 y 3/4 | D8: 4 | E8: UND | F8: 800 | G8: 3200 | H8: Indirecto
A9: ALISTAMIENTO CHASIS | B9: Acondicionamiento de filtro de aire | C9: Codo 5 y 1/2 pulgadas | D9: 1 | E9: UND | F9: 900 | G9: 900 | H9: Indirecto
A10: ALISTAMIENTO CHASIS | B10: Acondicionamiento de filtro de aire | C10: Tubo 4 pulgadas | D10: 1 | E10: MTS | F10: 9700 | G10: 9700 | H10: Indirecto
A11: ALISTAMIENTO CHASIS | B11: Acondicionamiento de filtro de aire | C11: Codos pvc 4 pulgadas | D11: 3 | E11: UND | F11: 2100 | G11: 6300 | H11: Indirecto
A12: ALISTAMIENTO CHASIS | B12: Acondicionamiento de filtro de aire | C12: Abrazaderas 5 1/2 | D12: 5 | E12: UND | F12: 900 | G12: 4500 | H12: Indirecto
A13: ALISTAMIENTO CHASIS | B13: Acondicionamiento de filtro de combustible | C13: 0 | D13: 0 | E13: 0 | F13: 0 | G13: 0 | H13: Indirecto
A14: ALISTAMIENTO CHASIS | B14: Acondicimiento de bateria | C14: 0 | D14: 0 | E14: 0 | F14: 0 | G14: 0 | H14: Indirecto
A15: ALISTAMIENTO CHASIS | B15: Acondicimineto de portarepuestos | C15: 0 | D15: 0 | E15: 0 | F15: 0 | G15: 0 | H15: Indirecto
A16: ALISTAMIENTO CHASIS | B16: Instalación de banda | C16: Palos de 4m Abarco de rio | D16: 2 | E16: UND | F16: 16000 | G16: 32000 | H16: Indirecto
A17: ALISTAMIENTO CHASIS | C17: Pegante Boxer | D17: 100 | E17: GR | F17: 500 | G17: 50000 | H17: Indirecto
A18: PLATAFORMA Y ESTRUCTURA | B18: Cortar Lámina | C18: Lámina calibre 14 4*8 | D18: 2 | E18: UND | F18: 115000 | G18: =+F18*D18 -> 230000 | H18: Directo
A19: PLATAFORMA Y ESTRUCTURA | B19: Doblar Lámina
A20: PLATAFORMA Y ESTRUCTURA | B20: Soldada de puentes | C20: Gas | D20: 15 | E20: Lb | F20: 5250 | G20: =+F20*D20 -> 78750 | H20: Indirecto
A21: PLATAFORMA Y ESTRUCTURA | B21: Soldada de puentes | C21: Alambre Mig | D21: 1.16 | E21: KG | F21: 195000 | G21: =+F21*D21 -> 226200 | H21: Indirecto
A22: PLATAFORMA Y ESTRUCTURA | B22: Elaboración de arcos y frentes | C22: Lámina calibre 16 | D22: 4 | E22: UND | F22: 565000 | G22: =+F22*D22 -> 2260000 | H22: Directo
A23: PLATAFORMA Y ESTRUCTURA | B23: Elaboración de arcos y frentes | C23: Lámina de 1/8 | D23: 0.5 | E23: UND | F23: 115000 | G23: 57500 | H23: Directo
A24: PLATAFORMA Y ESTRUCTURA | B24: Elaboración de arcos y frentes | C24: Tubos redondos de 1 pulgada | D24: 6 | E24: UND | F24: 172000 | G24: 1032000 | H24: Directo
A25: PLATAFORMA Y ESTRUCTURA | B25: Elaboración de arcos y frentes | C25: Tubos cuadrados de 1 y 1/2 pulgada | D25: 6 | E25: UND | F25: 140000 | G25: 840000 | H25: Directo
A26: PLATAFORMA Y ESTRUCTURA | B26: Armar plataforma con los puentes | C26: Gas | D26: 20 | E26: Lb | F26: 5250 | G26: 105000 | H26: Indirecto
A27: PLATAFORMA Y ESTRUCTURA | B27: Armar plataforma con los puentes | C27: Alambre Mig | D27: 1.16 | E27: KG | F27: 195000 | G27: 226200 | H27: Indirecto
A28: PLATAFORMA Y ESTRUCTURA | B28: Armar estructura | C28: Gas | D28: 35 | E28: Lb | F28: 5250 | G28: 183750 | H28: Indirecto
A29: PLATAFORMA Y ESTRUCTURA | B29: Armar estructura | C29: Alambre Mig | D29: 1.16 | E29: KG | F29: 195000 | G29: 226200 | H29: Indirecto
A30: PLATAFORMA Y ESTRUCTURA | B30: Armar estructura | C30: Tornillo HEX 5/16X 1/4 | D30: 6 | E30: Und | F30: 786 | G30: 4716 | H30: Indirecto
A31: PLATAFORMA Y ESTRUCTURA | B31: Armar estructura | C31: Brocas 3/16 | D31: 1 | E31: Und | F31: 3216 | G31: 3216 | H31: Indirecto
A32: PLATAFORMA Y ESTRUCTURA | B32: Armar estructura | C32: Remaches de 1/4 | D32: 36 | E32: Und | F32: 11.31 | G32: 407.16 | H32: Indirecto
A33: ENLATADO | B33: Inmunizar estructura | C33: Brea | D33: 5 | E33: KG | F33: 55000 | G33: =+F33*D33 -> 275000 | H33: Indirecto
A34: ENLATADO | B34: Inmunizar estructura | C34: Gasolina | D34: 3 | E34: GL | F34: 8210 | G34: =+F34*D34 -> 24630 | H34: Indirecto
A35: ENLATADO | B35: Colocar lámina | C35: Lamina coll roll calibre 14 | D35: 1 | E35: und | F35: 102254 | G35: 102254 | H35: Directo
A36: ENLATADO | B36: Colocar lámina | C36: Laminas galvanizadas calibre 20 4X8 | D36: 6 | E36: Und | F36: 61000 | G36: 366000 | H36: Directo
A37: ENLATADO | B37: Colocar lámina | C37: Laminas Galvanizadas calibre 18 | D37: 4 | E37: Und | F37: 82600 | G37: 330400 | H37: Directo
A38: ENLATADO | B38: Colocar lámina | C38: Sika 252 | D38: 500 | E38: Gr | F38: 120 | G38: 60000 | H38: Indirecto
A39: ENLATADO | B39: Colocar lámina | C39: sika 221 X 400GR | D39: 1200 | E39: Gr | F39: =30000/400 -> 75 | G39: 90000 | H39: Indirecto
A40: ENLATADO | B40: Colocar lámina | C40: Sika praiwer | D40: 250 | E40: Gr | F40: =103000/250 -> 412 | G40: 103000 | H40: Indirecto
A41: ENLATADO | B41: Colocar lámina | C41: Sika activador | D41: 400 | E41: Gr | F41: =35000/400 -> 87.5 | G41: 35000 | H41: Indirecto
A42: ENLATADO | B42: Colocar lámina | C42: Bayetilla | D42: 1 | E42: mts | F42: 4000 | G42: 4000 | H42: Indirecto
A43: ENLATADO | B43: Colocar lámina | C43: Kilo de remacho golpe ¼ x 1/2 | D43: 1 | E43: kg | F43: 34800 | G43: 34800 | H43: Indirecto
A44: FRENTES Y TRACEROS EN FIBRA DE VIDRIO | B44: Encerar los moldes | C44: Cera | D44: 300 | E44: gr | F44: =390000/300 -> 1300 | G44: =+F44*D44 -> 390000 | H44: Indirecto
A45: FRENTES Y TRACEROS EN FIBRA DE VIDRIO | B45: Elaboración de piezas de frente en fibra de vidrio | C45: Componente A | D45: 15 | E45: kg | F45: 16000 | G45: =+F45*D45 -> 240000 | H45: Directo
A46: FRENTES Y TRACEROS EN FIBRA DE VIDRIO | B46: Elaboración de piezas de frente en fibra de vidrio | C46: Componente B | D46: 10 | E46: KG | F46: 9000 | G46: 90000 | H46: Directo
A47: FRENTES Y TRACEROS EN FIBRA DE VIDRIO | B47: Elaboración de piezas de frente en fibra de vidrio | C47: Resina | D47: 50 | E47: kg | F47: 9000 | G47: 450000 | H47: Directo
A48: FRENTES Y TRACEROS EN FIBRA DE VIDRIO | B48: Elaboración de piezas de frente en fibra de vidrio | C48: Yelco | D48: 10 | E48: kg | F48: 800 | G48: 8000 | H48: Indirecto
A49: FRENTES Y TRACEROS EN FIBRA DE VIDRIO | B49: Elaboración de piezas de frente en fibra de vidrio | C49: Mat | D49: =35.9/2 -> 17.95 | E49: kg | F49: 9000 | G49: 161550 | H49: Indirecto
A50: FRENTES Y TRACEROS EN FIBRA DE VIDRIO | B50: Elaboración de piezas de frente en fibra de vidrio | C50: Mek | D50: 1.5 | E50: kg | F50: 15000 | G50: 22500 | H50: Indirecto
A51: FRENTES Y TRACEROS EN FIBRA DE VIDRIO | B51: Elaboración de piezas de frente en fibra de vidrio | C51: Cera | D51: 100 | E51: Gr | F51: 1300 | G51: 130000 | H51: Indirecto
A52: FRENTES Y TRACEROS EN FIBRA DE VIDRIO | B52: Elaboración de piezas de frente en fibra de vidrio | C52: Thiner | D52: 1 | E52: Gl | F52: 60000 | G52: 60000 | H52: Indirecto
A53: FRENTES Y TRACEROS EN FIBRA DE VIDRIO | B53: Elaboración de piezas de frente en fibra de vidrio | C53: Estopa | D53: 1 | E53: Lb | F53: 30000 | G53: 30000 | H53: Indirecto
A54: FRENTES Y TRACEROS EN FIBRA DE VIDRIO | B54: Elaboración de piezas traseras en fibra de vidrio | C54: Componente A | D54: 15 | E54: kg | F54: 16000 | G54: 240000 | H54: Directo
A55: FRENTES Y TRACEROS EN FIBRA DE VIDRIO | B55: Elaboración de piezas traseras en fibra de vidrio | C55: Componente B | D55: 10 | E55: Kg | F55: 9000 | G55: 90000 | H55: Directo
A56: FRENTES Y TRACEROS EN FIBRA DE VIDRIO | B56: Elaboración de piezas traseras en fibra de vidrio | C56: Resina | D56: 50 | E56: kg | F56: 9000 | G56: 450000 | H56: Directo
A57: FRENTES Y TRACEROS EN FIBRA DE VIDRIO | B57: Elaboración de piezas traseras en fibra de vidrio | C57: Yelco | D57: 10 | E57: kg | F57: 800 | G57: 8000 | H57: Indirecto
A58: FRENTES Y TRACEROS EN FIBRA DE VIDRIO | B58: Elaboración de piezas traseras en fibra de vidrio | C58: Mat | D58: 17.95 | E58: kg | F58: 9000 | G58: 161550 | H58: Indirecto
A59: FRENTES Y TRACEROS EN FIBRA DE VIDRIO | B59: Elaboración de piezas traseras en fibra de vidrio | C59: Mek | D59: 1.5 | E59: kg | F59: 15000 | G59: 22500 | H59: Indirecto
A60: FRENTES Y TRACEROS EN FIBRA DE VIDRIO | B60: Elaboración de piezas traseras en fibra de vidrio | C60: Cera | D60: 100 | E60: Gr | F60: 1300 | G60: 130000 | H60: Indirecto
A61: FRENTES Y TRACEROS EN FIBRA DE VIDRIO | B61: Elaboración de piezas traseras en fibra de vidrio | C61: Thiner | D61: 1 | E61: Gl | F61: 60000 | G61: 60000 | H61: Indirecto
A62: FRENTES Y TRACEROS EN FIBRA DE VIDRIO | B62: Elaboración de piezas traseras en fibra de vidrio | C62: Estopa | D62: 0.5 | E62: Lb | F62: 30000 | G62: 15000 | H62: Indirecto
A63: FRENTES Y TRACEROS EN FIBRA DE VIDRIO | B63: Desmonte de partes de los moldes | C63: 0 | D63: 0 | E63: 0 | F63: 0 | G63: 0
A64: FRENTES Y TRACEROS EN FIBRA DE VIDRIO | B64: Instalación de las partes | C64: Remache pop 5/32 X 5/8 | D64: 1 | E64: Kg | F64: 10700 | G64: =+F64*D64 -> 10700 | H64: Indirecto
A65: FRENTES Y TRACEROS EN FIBRA DE VIDRIO | B65: Adecuación de las partes montadas | C65: disco de pulidora | D65: 1 | E65: Und | F65: 4000 | G65: 4000 | H65: Indirecto
A66: ESTRIBOS y PUERTAS | B66: Elaboracion de puertas | C66: laminas C.20 Galvanizada 4x8 | D66: 3 | E66: Und | F66: 61000 | G66: =+F66*D66 -> 183000 | H66: Directo
A67: ESTRIBOS y PUERTAS | B67: Elaboracion de puertas | C67: Kilos soldadura electrodo 1/8 | D67: 2 | E67: Kg | F67: 7000 | G67: =+F67*D67 -> 14000 | H67: Indirecto
A68: ESTRIBOS y PUERTAS | B68: Elaboracion de estribos | C68: lamina C.16 C.R. 4X8 | D68: 1 | E68: Und | F68: 80714.28571 | G68: 80714.28571 | H68: Directo
A69: ESTRIBOS y PUERTAS | B69: Elaboracion de estribos | C69: Kilos soldadura electrodo 1/8 | D69: 1 | E69: Kg | F69: 7000 | G69: 7000 | H69: Indirecto
A70: ESTRIBOS y PUERTAS | B70: Adecuacion de bodegas | C70: Kilos soldadura electrodo 1/8 | D70: 1 | E70: Kg | F70: 7000 | G70: 7000 | H70: Indirecto
A71: ESTRIBOS y PUERTAS | B71: Adecuacion de bodegas | C71: lamina C. 16 galvanizada 4x8 | D71: 1 | E71: Und | F71: 102250 | G71: 102250 | H71: Directo
A72: ESTRIBOS y PUERTAS | B72: Instalacion de puertas | C72: Tornillos 3/8 x 1 | D72: 10 | E72: Und | F72: 237.75 | G72: 2377.5 | H72: Indirecto
A73: ESTRIBOS y PUERTAS | B73: Instalacion de puertas | C73: Bujes | D73: 6 | E73: Und | F73: 3042 | G73: 18252 | H73: Indirecto
A74: ESTRIBOS y PUERTAS | B74: Instalacion de puertas | C74: Bisagra De 9 Cm Volteo | D74: 12 | E74: Und | F74: 3650 | G74: 43800 | H74: Indirecto
A75: ESTRIBOS y PUERTAS | B75: Instalacion de puertas | C75: REMACHE POP 5/32 X 5/8 | D75: 0.5 | E75: kg | F75: 5350 | G75: 2675 | H75: Indirecto
A76: ESTRIBOS y PUERTAS | B76: Instalacion de puertas | C76: Bisagra para puerta | D76: 12 | E76: Und | F76: 3650 | G76: 43800 | H76: Indirecto
A77: ESTRIBOS y PUERTAS | B77: Instalacion de estribos | C77: Tornillos 5/16 x 2 ½ | D77: 10 | E77: Und | F77: 90 | G77: =+F77*D77 -> 900 | H77: Indirecto
A78: ESTRIBOS y PUERTAS | B78: Instalacion de estribos | C78: Bujes | D78: 6 | E78: Und | F78: 3042 | G78: =+F78*D78 -> 18252 | H78: Indirecto
A79: ESTRIBOS y PUERTAS | B79: Instalacion de estribos | C79: Remache Pop 3/16X3/4 | D79: 0.5 | E79: Kg | F79: =34800/2 -> 17400 | G79: =+F79*D79 -> 8700 | H79: Indirecto
A80: PINTURA | B80: Lijado de carroceria | C80: Lija 80 220 320 | D80: 1 | E80: Pliego | F80: 25000 | G80: =+F80*D80 -> 25000 | H80: Indirecto
A81: PINTURA | B81: Aplicación capa de praymer | C81: Impericell 4/4 | D81: 1 | E81: Gl | F81: 13000 | G81: =+F81*D81 -> 13000 | H81: Indirecto
A82: PINTURA | B82: Aplicación capa de praymer | C82: Wash priwer 1/4 | D82: 2 | E82: Gl | F82: 16000 | G82: 32000 | H82: Indirecto
A83: PINTURA | B83: Lijado sobre capa de praymer | C83: Tiner | D83: 1 | E83: Lts | F83: 60000 | G83: 60000 | H83: Indirecto
A84: PINTURA | B84: Lijado sobre capa de praymer | C84: Lija 80 220 320 | D84: 1 | E84: Pliego | F84: 25000 | G84: 25000 | H84: Indirecto
A85: PINTURA | B85: Aplicación de Capa de fondo | C85: Estopa | D85: 1 | E85: bolsa | F85: 30000 | G85: 30000 | H85: Indirecto
A86: PINTURA | B86: Aplicación de Capa de fondo | C86: Galón base gris | D86: 1 | E86: Gl | F86: 11000 | G86: 11000 | H86: Indirecto
A87: PINTURA | B87: Aplicación de Capa de fondo | C87: Apresto Tonner 1/4 | D87: 3 | E87: Gl | F87: 85000 | G87: 255000 | H87: Indirecto
A88: PINTURA | B88: Aplicación de Capa de fondo | C88: Tinher | D88: 1 | E88: Lts | F88: 60000 | G88: 60000 | H88: Indirecto
A89: PINTURA | B89: Lijado sobre capa de fondo | C89: Lija 80 220 320 | D89: 1 | E89: Pliego | F89: 25000 | G89: 25000 | H89: Indirecto
A90: PINTURA | B90: Aplicación de Capa de masilla | C90: Galón hueso duro (SUPERMASILLA) | D90: 1 | E90: Gl | F90: 11000 | G90: 11000 | H90: Indirecto
A91: PINTURA | B91: Aplicación de Capa de masilla | C91: Galón masilla | D91: 1 | E91: Gl | F91: 72000 | G91: 72000 | H91: Indirecto
A92: PINTURA | B92: Aplicación de Capa de masilla | C92: Thiner duretan | D92: 2 | E92: Gl | F92: 60000 | G92: 120000 | H92: Indirecto
A93: PINTURA | B93: Aplicación de Capa de masilla | C93: Stopa | D93: 0.5 | E93: bolsa | F93: 30000 | G93: 15000 | H93: Indirecto
A94: PINTURA | B94: Lijado sobre capa de masilla | C94: Lija 80 220 320 | D94: 1 | E94: Pieglo | F94: 25000 | G94: 25000 | H94: Indirecto
A95: PINTURA | B95: Lijado sobre capa de masilla | C95: Cinta 1" 1/2 3/4 | D95: 1 | E95: Rollo | F95: 8000 | G95: 8000 | H95: Indirecto
A96: PINTURA | B96: Aplicación de Capa de fondo | C96: Galón negro sintetico | D96: 1 | E96: Gl | F96: 35000 | G96: 35000 | H96: Indirecto
A97: PINTURA | B97: Aplicación de Capa de fondo | C97: Negro Mate 1/4 | D97: 0.25 | E97: Gl | F97: 160000 | G97: 40000 | H97: Indirecto
A98: PINTURA | B98: Aplicación de Capa de fondo | C98: Sika 221x400 blanca | D98: 400 | E98: Gr | F98: 75 | G98: 30000 | H98: Indirecto
A99: PINTURA | B99: Aplicación de Capa de fondo | C99: Galón disolvente "U" 200 | D99: 1 | E99: Gl | F99: 38000 | G99: 38000 | H99: Indirecto
A100: PINTURA | B100: Lijado sobre la capa de fondo | C100: Lija 80 220 320 | D100: 1 | E100: Pliego | F100: 25000 | G100: 25000 | H100: Indirecto
A101: PINTURA | B101: Aplicacion de pintura | C101: Blanco puro | D101: 0.125 | E101: Gl | F101: 190000 | G101: 23750 | H101: Indirecto
A102: PINTURA | B102: Aplicacion de pintura | C102: Barniz | D102: 0.25 | E102: Gl | F102: 95000 | G102: 23750 | H102: Indirecto
A103: PINTURA | B103: Aplicacion de pintura | C103: Thiner duretan | D103: 1 | E103: Gl | F103: 60000 | G103: 60000 | H103: Indirecto
A104: PINTURA | B104: Aplicacion de pintura | C104: Pintura poliuretano | D104: 2 | E104: Gl | F104: 95000 | G104: 190000 | H104: Indirecto
A105: DECORACION ( TECHO FORRADO) | B105: Preparación de techo | C105: Estopa | D105: 1 | E105: Lb | F105: 30000 | G105: =+D105*F105 -> 30000 | H105: Indirecto
A106: DECORACION ( TECHO FORRADO) | B106: Preparación de techo | C106: Thiner duretan | D106: 1 | E106: Lts | F106: 60000 | G106: 60000 | H106: Indirecto
A107: DECORACION ( TECHO FORRADO) | B107: Doblar Lámina | C107: Laminas galvanizadas calibre 20 4X8 | D107: 2 | E107: Und | F107: 61000 | G107: 122000 | H107: Directo
A108: DECORACION ( TECHO FORRADO) | B108: Soldar | C108: Kilos soldadura electrodo 1/8 | D108: 1 | E108: Kg | F108: 7000 | G108: 7000 | H108: Indirecto
A109: DECORACION ( TECHO FORRADO) | B109: Forrar cajones | C109: Hule azul | D109: 8 | E109: Mts | F109: 18571.42857 | G109: 148571.4286 | H109: Indirecto
A110: DECORACION ( TECHO FORRADO) | B110: Instalar | C110: Kilo de remacho golpe ¼ x 1/2 | D110: 0.5 | E110: Kg | F110: 34800 | G110: 17400 | H110: Indirecto
A111: DECORACION ( TECHO FIBRA) | B111: Limpiar moldes | C111: Thiner duretan | D111: 0.5 | E111: Gl | F111: 60000 | G111: =+F111*D111 -> 30000 | H111: Indirecto
A112: DECORACION ( TECHO FIBRA) | B112: Fabricar piezas | C112: Componente A | D112: 5 | E112: Kg | F112: 16000 | G112: =+F112*D112 -> 80000 | H112: Directo
A113: DECORACION ( TECHO FIBRA) | B113: Fabricar piezas | C113: Componente B | D113: 2 | E113: KG | F113: 9000 | G113: 18000 | H113: Directo
A114: DECORACION ( TECHO FIBRA) | B114: Fabricar piezas | C114: Resina | D114: 10 | E114: kg | F114: 90000 | G114: 900000 | H114: Directo
A115: DECORACION ( TECHO FIBRA) | B115: Lijado de Piezas | C115: Lija 80 220 320 | D115: 0.5 | E115: Pliego | F115: 25000 | G115: 12500 | H115: Indirecto
A116: DECORACION ( TECHO FIBRA) | B116: Aplicación capa de praymer | C116: Impericell 4/4 | D116: 0.25 | E116: Gl | F116: 13000 | G116: 3250 | H116: Indirecto
A117: DECORACION ( TECHO FIBRA) | B117: Aplicación capa de praymer | C117: Wash priwer 1/4 | D117: 0.5 | E117: Gl | F117: 16000 | G117: 8000 | H117: Indirecto
A118: DECORACION ( TECHO FIBRA) | B118: Lijado sobre capa de praymer | C118: Thiner duretan | D118: 0.5 | E118: Gl | F118: 60000 | G118: 30000 | H118: Indirecto
A119: DECORACION ( TECHO FIBRA) | B119: Lijado sobre capa de praymer | C119: Lija 80 220 320 | D119: 0.5 | E119: Pliego | F119: 25000 | G119: 12500 | H119: Indirecto
A120: DECORACION ( TECHO FIBRA) | B120: Aplicación de Capa de fondo | C120: Estopa | D120: 1 | E120: Lb | F120: 30000 | G120: 30000 | H120: Indirecto
A121: DECORACION ( TECHO FIBRA) | B121: Aplicación de Capa de fondo | C121: Galón base gris | D121: 0.25 | E121: Gl | F121: 11000 | G121: 2750 | H121: Indirecto
A122: DECORACION ( TECHO FIBRA) | B122: Aplicación de Capa de fondo | C122: Apresto Tonner 1/4 | D122: 0.25 | E122: Gl | F122: 85000 | G122: 21250 | H122: Indirecto
A123: DECORACION ( TECHO FIBRA) | B123: Aplicación de Capa de fondo | C123: Thiner duretan | D123: 0.25 | E123: Lts | F123: 60000 | G123: 15000 | H123: Indirecto
A124: DECORACION ( TECHO FIBRA) | B124: Lijado sobre capa de fondo | C124: Lija 80 220 320 | D124: 0.5 | E124: Pliego | F124: 25000 | G124: 12500 | H124: Indirecto
A125: DECORACION ( TECHO FIBRA) | B125: Aplicación de Capa de masilla | C125: Galón hueso duro (SUPERMASILLA) | D125: 0.5 | E125: Gl | F125: 11000 | G125: 5500 | H125: Indirecto
A126: DECORACION ( TECHO FIBRA) | B126: Aplicación de Capa de masilla | C126: Galón masilla | D126: 0.25 | E126: Gl | F126: 72000 | G126: 18000 | H126: Indirecto
A127: DECORACION ( TECHO FIBRA) | B127: Aplicación de Capa de masilla | C127: Thiner duretan | D127: 0.25 | E127: Lts | F127: 60000 | G127: 15000 | H127: Indirecto
A128: DECORACION ( TECHO FIBRA) | B128: Aplicación de Capa de masilla | C128: Stopa | D128: 0.5 | E128: Lb | F128: 30000 | G128: 15000 | H128: Indirecto
A129: DECORACION ( TECHO FIBRA) | B129: Lijado sobre capa de masilla | C129: Lija 80 220 320 | D129: 0.25 | E129: Pieglo | F129: 25000 | G129: 6250 | H129: Indirecto
A130: DECORACION ( TECHO FIBRA) | B130: Lijado sobre capa de masilla | C130: Cinta 1" 1/2 3/4 | D130: 0.5 | E130: Rollo | F130: 8000 | G130: 4000 | H130: Indirecto
A131: DECORACION ( TECHO FIBRA) | B131: Aplicación de Capa de fondo | C131: Galón negro sintetico | D131: 0.25 | E131: Gl | F131: 35000 | G131: 8750 | H131: Indirecto
A132: DECORACION ( TECHO FIBRA) | B132: Aplicación de Capa de fondo | C132: Negro Mate 1/4 | D132: 0.25 | E132: Gl | F132: 160000 | G132: 40000 | H132: Indirecto
A133: DECORACION ( TECHO FIBRA) | B133: Aplicación de Capa de fondo | C133: Sika 221x400 blanca | D133: 100 | E133: Gr | F133: 75 | G133: 7500 | H133: Indirecto
A134: DECORACION ( TECHO FIBRA) | B134: Aplicación de Capa de fondo | C134: Galón disolvente "U" 200 | D134: 0.25 | E134: Gl | F134: 38000 | G134: 9500 | H134: Indirecto
A135: DECORACION ( TECHO FIBRA) | B135: Lijado sobre la capa de fondo | C135: Lija 80 220 320 | D135: 0.5 | E135: Pliego | F135: 25000 | G135: 12500 | H135: Indirecto
A136: DECORACION ( TECHO FIBRA) | B136: Pintar piezas | C136: Blanco puro | D136: 0.125 | E136: Gl | F136: 190000 | G136: 23750 | H136: Indirecto
A137: DECORACION ( TECHO FIBRA) | B137: Pintar piezas | C137: Barniz | D137: 0.25 | E137: Gl | F137: 95000 | G137: 23750 | H137: Indirecto
A138: DECORACION ( TECHO FIBRA) | B138: Pintar piezas | C138: Thiner duretan | D138: 0.5 | E138: Gl | F138: 60000 | G138: 30000 | H138: Indirecto
A139: DECORACION ( TECHO FIBRA) | B139: Pintar piezas | C139: Pintura poliuretano | D139: 2 | E139: Gl | F139: 95000 | G139: 190000 | H139: Indirecto
A140: DECORACION ( PISO EN HULE) | B140: Preparación de piso | C140: 0 | D140: 0 | E140: 0 | F140: 0 | G140: =+F140*D140 -> 0
A141: DECORACION ( PISO EN HULE) | B141: Instalación de piso en madera | C141: Tablas de 14 m | D141: 4 | E141: Mts | F141: =360000/4 -> 90000 | G141: =+F141*D141 -> 360000 | H141: Directo
A142: DECORACION ( PISO EN HULE) | B142: Instalación de piso en madera | C142: Tornillo HEX 1/4X3/4 | D142: 15 | E142: Und | F142: 45.24 | G142: 678.6 | H142: Indirecto
A143: DECORACION ( PISO EN HULE) | B143: Instalación de piso en madera | C143: Tornillo HEX 1/4 X 1 R | D143: 5 | E143: Und | F143: 54.52 | G143: 272.6 | H143: Indirecto
A144: DECORACION ( PISO EN HULE) | B144: Instalación de piso en madera | C144: Tornillo CARRIAJE 1/4X2 | D144: 10 | E144: Und | F144: 225 | G144: 2250 | H144: Indirecto
A145: DECORACION ( PISO EN HULE) | B145: Instalación de piso en madera | C145: Tornillo AVELLAM 1/4X1 | D145: 10 | E145: Und | F145: 183.25 | G145: 1832.5 | H145: Indirecto
A146: DECORACION ( PISO EN HULE) | B146: Instalación de piso en caucho | C146: Hule azul cielo experess primario | D146: 10 | E146: Mts | F146: 18571 | G146: 185710 | H146: Directo
A147: DECORACION ( PISO EN HULE) | B147: Instalación de piso en caucho | C147: Pegante | D147: 1 | E147: Gl | F147: =134000/3 -> 44666.66667 | G147: 44666.66667 | H147: Indirecto
A148: DECORACION ( PISO EN HULE) | B148: piso parte delantera | C148: Hule piso experess | D148: 4 | E148: MTS | F148: 26666 | G148: 106664 | H148: Directo
A149: DECORACION ( PISO EN HULE) | B149: piso parte delantera | C149: Pegante | D149: 0.25 | E149: GL | F149: =134000/3 -> 44666.66667 | G149: 11166.66667 | H149: Indirecto
A150: DECORACION ( PISO EN LAMINA) | B150: Preparación de piso | C150: 0 | D150: 0 | E150: 0 | F150: 0 | G150: 0
A151: DECORACION ( PISO EN LAMINA) | B151: Instalación de piso en madera | C151: Tablas de 14 m | D151: 4 | E151: Mts | F151: =360000/4 -> 90000 | G151: =+F151*D151 -> 360000 | H151: Directo
A152: DECORACION ( PISO EN LAMINA) | B152: Instalación de piso en madera | C152: Tornillo HEX 1/4X3/4 | D152: 15 | E152: Und | F152: 45.24 | G152: =+F152*D152 -> 678.6 | H152: Indirecto
A153: DECORACION ( PISO EN LAMINA) | B153: Instalación de piso en madera | C153: Tornillo HEX 1/4 X 1 R | D153: 5 | E153: Und | F153: 54.52 | G153: 272.6 | H153: Indirecto
A154: DECORACION ( PISO EN LAMINA) | B154: Instalación de piso en madera | C154: Tornillo CARRIAJE 1/4X2 | D154: 10 | E154: Und | F154: 225 | G154: 2250 | H154: Indirecto
A155: DECORACION ( PISO EN LAMINA) | B155: Instalación de piso en madera | C155: Tornillo AVELLAM 1/4X1 | D155: 10 | E155: Und | F155: 183.25 | G155: 1832.5 | H155: Indirecto
A156: DECORACION ( PISO EN LAMINA) | B156: Instalación de piso en lámina | C156: Laminas galvanizadas calibre 20 4X8 | D156: 5 | E156: und | F156: 61000 | G156: 305000 | H156: Directo
A157: DECORACION ( PISO EN LAMINA) | B157: Instalación de piso en lámina | C157: Remache POP 3/16 X 1/2 | D157: 1 | E157: Kg | F157: 10700 | G157: 10700 | H157: Indirecto
A158: DECORACION ( PISO EN LAMINA) | B158: Instalación de piso en lámina | C158: Remache POP 3/16X3/4 | D158: 3 | E158: Kg | F158: 15100 | G158: 45300 | H158: Indirecto
A159: DECORACION ( PISO EN LAMINA) | B159: Instalación de piso en lámina | C159: Sika 221x400 blanca | D159: 800 | E159: Gr | F159: 75 | G159: 60000 | H159: Indirecto
A160: DECORACION (VIDRIOS Y LUJOS) | B160: Adecuacion de cajones internos | C160: Angulo 1/8 X 1 1/2 | D160: 2 | E160: Und | F160: 27000 | G160: =+F160*D160 -> 54000 | H160: Directo
A161: DECORACION (VIDRIOS Y LUJOS) | B161: Adecuacion de cajones internos | C161: Angulos 3/4 | D161: 5 | E161: und | F161: 22600 | G161: =+F161*D161 -> 113000 | H161: Directo
A162: DECORACION (VIDRIOS Y LUJOS) | B162: Adecuacion de cajones internos | C162: Sika 265 x 250g | D162: 250 | E162: Gr | F162: 120 | G162: 30000 | H162: Indirecto
A163: DECORACION (VIDRIOS Y LUJOS) | B163: Adecuacion de cajones internos | C163: Broca 1/8 | D163: 1 | E163: Und | F163: 4000 | G163: 4000 | H163: Indirecto
A164: DECORACION (VIDRIOS Y LUJOS) | B164: Adecuacion de cajones internos | C164: Tornillo Terca ZN 1/4 | D164: 25 | E164: Und | F164: 20.88 | G164: 522 | H164: Indirecto
A165: DECORACION (VIDRIOS Y LUJOS) | B165: Adecuacion de cajones internos | C165: Sika 221 x400g | D165: 100 | E165: Gr | F165: 125 | G165: 12500 | H165: Indirecto
A166: DECORACION (VIDRIOS Y LUJOS) | B166: Instalar claraboyá | C166: Claraboya | D166: 1 | E166: Und | F166: 350000 | G166: 350000 | H166: Indirecto
A167: DECORACION (VIDRIOS Y LUJOS) | B167: Instalar claraboyá | C167: Broca 3/16 | D167: 1 | E167: Und | F167: 3126 | G167: 3126 | H167: Indirecto
A168: DECORACION (VIDRIOS Y LUJOS) | B168: Instalar claraboyá | C168: Sika 265 x 250g | D168: 20 | E168: Gr | F168: 120 | G168: 2400 | H168: Indirecto
A169: DECORACION (VIDRIOS Y LUJOS) | B169: Instalar Unidades | C169: Juego de Unidades | D169: 1 | E169: Und | F169: 850000 | G169: 850000 | H169: Indirecto
A170: DECORACION (VIDRIOS Y LUJOS) | B170: Instalar vidrios | C170: Vidrio Fijo no estandar 65 X 1220 | D170: 1 | E170: Und | F170: 90000 | G170: =+F170*D170 -> 90000 | H170: Directo
A171: DECORACION (VIDRIOS Y LUJOS) | B171: Instalar vidrios | C171: Vidrio Flaco 490X1000 | D171: 2 | E171: Und | F171: 49300 | G171: =+F171*D171 -> 98600 | H171: Directo
A172: DECORACION (VIDRIOS Y LUJOS) | B172: Instalar vidrios | C172: Vidrio Fijo no estandar 650X1320 | D172: 4 | E172: Und | F172: 96628 | G172: 386512 | H172: Directo
A173: DECORACION (VIDRIOS Y LUJOS) | B173: Instalar vidrios | C173: Vidrio Flaco No estandar 570X1000 | D173: 2 | E173: Und | F173: 59160 | G173: 118320 | H173: Directo
A174: DECORACION (VIDRIOS Y LUJOS) | B174: Instalar vidrios | C174: Corredera no estandar 280X630 | D174: 8 | E174: Und | F174: 18560 | G174: 148480 | H174: Indirecto
A175: DECORACION (VIDRIOS Y LUJOS) | B175: Instalar vidrios | C175: Corredera no estandar 280X630 | D175: 2 | E175: Und | F175: 18560 | G175: 37120 | H175: Indirecto
A176: DECORACION (VIDRIOS Y LUJOS) | B176: Instalar vidrios | C176: Puerta no estandar 180X1220 | D176: 1 | E176: Und | F176: 25636 | G176: 25636 | H176: Indirecto
A177: DECORACION (VIDRIOS Y LUJOS) | B177: Instalar vidrios | C177: Vidrio Fijo no estandar 260X1570 | D177: 3 | E177: Und | F177: 38419 | G177: 115257 | H177: Indirecto
A178: DECORACION (VIDRIOS Y LUJOS) | B178: Instalar vidrios | C178: Vidrio Trasero 1610X700 | D178: 1 | E178: Und | F178: 117334 | G178: 117334 | H178: Indirecto
A179: DECORACION (VIDRIOS Y LUJOS) | B179: Instalar vidrios | C179: Vidrio Fijo No Estandar 450X1050 | D179: 2 | E179: Und | F179: 44022 | G179: 88044 | H179: Indirecto
A180: DECORACION (VIDRIOS Y LUJOS) | B180: Instalar vidrios | C180: Vidrio Fijo estandar 660X290 | D180: 2 | E180: Und | F180: 18560 | G180: 37120 | H180: Indirecto
A181: DECORACION (VIDRIOS Y LUJOS) | B181: Instalar vidrios | C181: Vidrio Parabrisas 230X1100 | D181: 1 | E181: Und | F181: 500000 | G181: 500000 | H181: Indirecto
A182: DECORACION (VIDRIOS Y LUJOS) | B182: Instalar vidrios | C182: vidrios Fijo no estandar 770X 1050 | D182: 2 | E182: Und | F182: 150435.5 | G182: 300871 | H182: Indirecto
A183: DECORACION (VIDRIOS Y LUJOS) | B183: Instalar vidrios | C183: Correderas puerta 400X450 | D183: 2 | E183: Und | F183: 18560 | G183: 37120 | H183: Indirecto
A184: DECORACION (VIDRIOS Y LUJOS) | B184: Instalar vidrios | C184: SIKA 221 x400g | D184: 2000 | E184: Gr | F184: 75 | G184: 150000 | H184: Indirecto
A185: DECORACION (VIDRIOS Y LUJOS) | B185: Instalar vidrios | C185: SIKA PRAIMER x250g | D185: =250*4 -> 1000 | E185: Gr | F185: 412 | G185: 412000 | H185: Indirecto
A186: DECORACION (VIDRIOS Y LUJOS) | B186: Instalar vidrios | C186: SIKA ACTIVADOR x400g | D186: 400 | E186: Gr | F186: 88 | G186: 35200 | H186: Indirecto
A187: DECORACION (VIDRIOS Y LUJOS) | B187: Instalar vidrios | C187: 1/2 M BALLETILLA BLANCA | D187: 0.5 | E187: Mts | F187: 4000 | G187: 2000 | H187: Indirecto
A188: ADECUACIONES ELÉCTRICAS | B188: Instalación de motores de limpia brisas | C188: Smichit limpiabrisas | D188: 1 | E188: Und | F188: 16000 | G188: =+D188*F188 -> 16000 | H188: Directo
A189: ADECUACIONES ELÉCTRICAS | B189: Instalación de motores de limpia brisas | C189: Cable Monopolar N 18 | D189: 6 | E189: Mts | F189: 500 | G189: =+D189*F189 -> 3000 | H189: Directo
A190: ADECUACIONES ELÉCTRICAS | B190: Instalación de motores de limpia brisas | C190: Sistema Limpiaparabrisas | D190: 1 | E190: Und | F190: 650000 | G190: 650000 | H190: Directo
A191: ADECUACIONES ELÉCTRICAS | B191: Instalación de velas | C191: Cable Monopolar N 10 | D191: 15 | E191: Mts | F191: 209 | G191: 3135 | H191: Directo
A192: ADECUACIONES ELÉCTRICAS | B192: Instalación de velas | C192: Juego de velas | D192: 1 | E192: und | F192: 84000 | G192: 84000 | H192: Directo
A193: ADECUACIONES ELÉCTRICAS | B193: Instalación de velas | C193: Cinta aislante | D193: 1 | E193: rollo | F193: 1500 | G193: 1500 | H193: Directo
A194: ADECUACIONES ELÉCTRICAS | B194: Instalacion de espejos | C194: espejos | D194: 2 | E194: und | F194: 60000 | G194: 120000 | H194: Directo
A195: ADECUACIONES ELÉCTRICAS | B195: Instalación de licuadoras | C195: Licuadora | D195: 2 | E195: Und | F195: 130000 | G195: 260000 | H195: Directo
A196: ADECUACIONES ELÉCTRICAS | B196: Instalación de licuadoras | C196: Cable Monopolar N 10 | D196: 10 | E196: Mts | F196: 209 | G196: 2090 | H196: Indirecto
A197: ADECUACIONES ELÉCTRICAS | B197: Instalación de licuadoras | C197: Terminal 3/16 1/4 | D197: 1 | E197: Und | F197: 200 | G197: 200 | H197: Directo
A198: ADECUACIONES ELÉCTRICAS | B198: Instalación de licuadoras | C198: Corazas negra abierta 3/16 | D198: 6 | E198: Mts | F198: 1100 | G198: 6600 | H198: Directo
A199: ADECUACIONES ELÉCTRICAS | B199: Instalación de radio | C199: Cable monopolar N 18 | D199: 10 | E199: Mts | F199: 500 | G199: 5000 | H199: Indirecto
A200: ADECUACIONES ELÉCTRICAS | B200: Instalación de radio | C200: Cable monopolar N 16 | D200: 5 | E200: Mts | F200: 600 | G200: 3000 | H200: Indirecto
A201: ADECUACIONES ELÉCTRICAS | B201: Instalación de radio | C201: Cinta aislante | D201: 1 | E201: Rollo | F201: 1500 | G201: 1500 | H201: Indirecto
A202: ADECUACIONES ELÉCTRICAS | B202: Instalación de radio | C202: Radio | D202: 1 | E202: Und | F202: 420000 | G202: 420000 | H202: Directo
A203: ADECUACIONES ELÉCTRICAS | B203: Instalación de parlantes | C203: Juego de parlantes ovalados | D203: 2 | E203: Und | F203: 80000 | G203: 160000 | H203: Directo
A204: ADECUACIONES ELÉCTRICAS | B204: Instalación de parlantes | C204: Juego de parlantes redondos | D204: 1 | E204: Und | F204: 70000 | G204: 70000 | H204: Directo
... 37 more rows

Sheet Hoja4 (hidden)
A3: Suma de VALOR TOTAL | B3: Rótulos de columna
A4: Rótulos de fila | B4: Directo | C4: Indirecto | D4: 0 | E4: Total general
A5: FRENTES Y TRACEROS EN FIBRA DE VIDRIO | B5: 2319000 | C5: 738650 | D5: 0 | E5: 3057650
A6: Adecuación de las partes montadas | C6: 4000 | E6: 4000
A7: Elaboración de piezas de frente en fibra de vidrio | B7: 932000 | C7: 359300 | E7: 1291300
A8: Elaboración de piezas traseras en fibra de vidrio | B8: 932000 | C8: 359300 | E8: 1291300
A9: Encerar los moldes | B9: 455000 | E9: 455000
A10: Instalación de las partes | C10: 16050 | E10: 16050
A11: Desmonte de partes de los moldes | D11: 0 | E11: 0
A12: ADECUACIONES ELÉCTRICAS | B12: 2852844 | C12: 281308 | E12: 3134152
A13: Adecuación de alumbrado interno | B13: 1055500 | C13: 23700 | E13: 1079200
A14: Adecuación de Boster | C14: 162400 | E14: 162400
A15: Instalación de licuadoras | B15: 689000 | C15: 2508 | E15: 691508
A16: Instalación de motores de limpia brisas | B16: 669500 | E16: 669500
A17: Instalación de parlantes | B17: 230000 | C17: 81600 | E17: 311600
A18: Instalación de radio | C18: 11100 | E18: 11100
A19: Instalación de velas | B19: 88844 | E19: 88844
A20: Instalacion de espejos | B20: 120000 | E20: 120000
A21: ALISTAMIENTO CHASIS | C21: 116100 | E21: 116100
A22: Acondicimiento de bateria | C22: 0 | E22: 0
A23: Acondicimineto de portarepuestos | C23: 0 | E23: 0
A24: Acondicionamiento de filtro de aire | C24: 34100 | E24: 34100
A25: Acondicionamiento de filtro de combustible | C25: 0 | E25: 0
A26: Instalación de banda | C26: 32000 | E26: 32000
A27: (en blanco) | C27: 50000 | E27: 50000
A28: DECORACION ( PISO EN HULE) | B28: 941419 | C28: 74246.7 | E28: 1015665.7
A29: Instalación de piso en caucho | B29: 241423 | C29: 44666.66667 | E29: 286089.6667
A30: Instalación de piso en madera | B30: 540000 | C30: 7246.7 | E30: 547246.7
A31: piso parte delantera | B31: 159996 | C31: 22333.33333 | E31: 182329.3333
A32: DECORACION ( PISO EN LAMINA) | B32: 906000 | C32: 151196.7 | E32: 1057196.7
A33: Instalación de piso en lámina | B33: 366000 | C33: 143950 | E33: 509950
A34: Instalación de piso en madera | B34: 540000 | C34: 7246.7 | E34: 547246.7
A35: DECORACION ( TECHO FIBRA) | B35: 1048000 | C35: 776250 | E35: 1824250
A36: Aplicación capa de praymer | C36: 14500 | E36: 14500
A37: Aplicación de Capa de fondo | C37: 193000 | E37: 193000
A38: Aplicación de Capa de masilla | C38: 53500 | E38: 53500
A39: Fabricar piezas | B39: 1048000 | E39: 1048000
A40: Lijado de Piezas | C40: 12500 | E40: 12500
A41: Lijado sobre capa de fondo | C41: 12500 | E41: 12500
A42: Lijado sobre capa de masilla | C42: 10250 | E42: 10250
A43: Lijado sobre capa de praymer | C43: 42500 | E43: 42500
A44: Lijado sobre la capa de fondo | C44: 12500 | E44: 12500
A45: Limpiar moldes | C45: 30000 | E45: 30000
A46: Pintar piezas | C46: 395000 | E46: 395000
A47: DECORACION ( TECHO FORRADO) | B47: 183000 | C47: 370757.1429 | E47: 553757.1429
A48: Doblar Lámina | B48: 183000 | E48: 183000
A49: Forrar cajones | C49: 222857.1429 | E49: 222857.1429
A50: Instalar | C50: 17400 | E50: 17400
A51: Preparación de techo | C51: 120000 | E51: 120000
A52: Soldar | C52: 10500 | E52: 10500
A53: DECORACION (VIDRIOS Y LUJOS) | B53: 1027032 | C53: 3906435.5 | E53: 4933467.5
A54: Adecuacion de cajones internos | B54: 243600 | C54: 94044 | E54: 337644
A55: Instalar claraboyá | C55: 711052 | E55: 711052
A56: Instalar Unidades | C56: 850000 | E56: 850000
A57: Instalar vidrios | B57: 783432 | C57: 2251339.5 | E57: 3034771.5
A58: DECORACION GENERAL INTERNA | B58: 361000 | C58: 214500 | E58: 575500
A59: Instalacion de calcomanias de emergencia | B59: 12000 | E59: 12000
A60: Instalacion de martillos de seguridad | B60: 24000 | E60: 24000
A61: Instalacion de tubos pasamanos | B61: 325000 | C61: 214500 | E61: 539500
A62: ENLATADO | B62: 1044508 | C62: 820630 | E62: 1865138
A63: Colocar lámina | B63: 1044508 | C63: 402790 | E63: 1447298
A64: Inmunizar estructura | C64: 417840 | E64: 417840
A65: ESTRIBOS y PUERTAS | B65: 487946.4286 | C65: 203379 | E65: 691325.4286
A66: Adecuacion de bodegas | C66: 10500 | E66: 10500
A67: Elaboracion de estribos | B67: 274446.4286 | C67: 10500 | E67: 284946.4286
A68: Elaboracion de puertas | B68: 213500 | C68: 17500 | E68: 231000
A69: Instalacion de estribos | C69: 28212 | E69: 28212
A70: Instalacion de puertas | C70: 136667 | E70: 136667
A71: PINTURA | C71: 1603000 | E71: 1603000
A72: Aplicación capa de praymer | C72: 67500 | E72: 67500
A73: Aplicación de Capa de fondo | C73: 554000 | E73: 554000
A74: Aplicación de Capa de masilla | C74: 301000 | E74: 301000
A75: Aplicacion de pintura | C75: 487500 | E75: 487500
A76: Lijado de carroceria | C76: 25000 | E76: 25000
A77: Lijado sobre capa de fondo | C77: 25000 | E77: 25000
A78: Lijado sobre capa de masilla | C78: 33000 | E78: 33000
A79: Lijado sobre capa de praymer | C79: 85000 | E79: 85000
A80: Lijado sobre la capa de fondo | C80: 25000 | E80: 25000
A81: PLATAFORMA Y ESTRUCTURA | B81: 5469000 | C81: 1703884.26 | E81: 7172884.26
A82: Armar estructura | C82: 608884.26 | E82: 608884.26
A83: Armar plataforma con los puentes | C83: 600000 | E83: 600000
A84: Cortar Lámina | B84: 345000 | E84: 345000
A85: Elaboración de arcos y frentes | B85: 5124000 | E85: 5124000
A86: Soldada de puentes | C86: 495000 | E86: 495000
A87: SILLETERIA | B87: 1287390 | C87: 836664.2 | E87: 2124054.2
A88: Hechura de estructura | B88: 620890 | C88: 74200 | E88: 695090
A89: Tapizada | B89: 666500 | C89: 762464.2 | E89: 1428964.2
A90: Total general | B90: 17927139.43 | C90: 11797001.5 | D90: 0 | E90: 29724140.93

Sheet Hoja10 (hidden)
A3: Suma de VALOR TOTAL | B3: Rótulos de columna
A4: Rótulos de fila | B4: 0 | C4: Directo | D4: Indirecto | E4: Total general
A5: FRENTES Y TRACEROS EN FIBRA DE VIDRIO | B5: 0 | C5: 2319000 | D5: 738650 | E5: 3057650
A6: ADECUACIONES ELÉCTRICAS | C6: 2852844 | D6: 281308 | E6: 3134152
A7: ALISTAMIENTO CHASIS | D7: 116100 | E7: 116100
A8: DECORACION ( PISO EN HULE) | C8: 941419 | D8: 74246.7 | E8: 1015665.7
A9: DECORACION ( PISO EN LAMINA) | C9: 906000 | D9: 151196.7 | E9: 1057196.7
A10: DECORACION ( TECHO FIBRA) | C10: 1048000 | D10: 776250 | E10: 1824250
A11: DECORACION ( TECHO FORRADO) | C11: 183000 | D11: 370757.1429 | E11: 553757.1429
A12: DECORACION (VIDRIOS Y LUJOS) | C12: 1027032 | D12: 3906435.5 | E12: 4933467.5
A13: DECORACION GENERAL INTERNA | C13: 391000 | D13: 214500 | E13: 605500
A14: ENLATADO | C14: 1044508 | D14: 820630 | E14: 1865138
A15: ESTRIBOS y PUERTAS | C15: 487946.4286 | D15: 203379 | E15: 691325.4286
A16: PINTURA | D16: 1603000 | E16: 1603000
A17: PLATAFORMA Y ESTRUCTURA | C17: 5469000 | D17: 1703884.26 | E17: 7172884.26
A18: SILLETERIA | C18: 1287390 | D18: 836664.2 | E18: 2124054.2
A19: Total general | B19: 0 | C19: 17957139.43 | D19: 11797001.5 | E19: 29754140.93

Sheet MPINTER
A5: PROCESOS | B5: ACTIVIDADES | C5: MATERIALES | D5: CANTIDAD UTILIZADA | E5: UNIDAD DE MEDIDA | F5: VALOR UNITARIO | G5: VALOR TOTAL | H5: CLASIFICACION
A6: ALISTAMIENTO CHASIS | B6: Acondicionamiento de filtro de aire | C6: Codo metalico 1m*2 1/4 | D6: 1 | E6: UND | F6: 3500 | G6: =+F6*D6 -> 3500 | H6: Indirecto
A7: ALISTAMIENTO CHASIS | B7: Acondicionamiento de filtro de aire | C7: Manguera de 2 y 3/4 | D7: 1 | E7: MTS | F7: 6000 | G7: =+F7*D7 -> 6000 | H7: Indirecto
A8: ALISTAMIENTO CHASIS | B8: Acondicionamiento de filtro de aire | C8: Abrazaderas 2 y 3/4 | D8: 4 | E8: UND | F8: 800 | G8: 3200 | H8: Indirecto
A9: ALISTAMIENTO CHASIS | B9: Acondicionamiento de filtro de aire | C9: Codo 5 y 1/2 pulgadas | D9: 1 | E9: UND | F9: 900 | G9: 900 | H9: Indirecto
A10: ALISTAMIENTO CHASIS | B10: Acondicionamiento de filtro de aire | C10: 1m de tubo 4 pulgadas | D10: 1 | E10: MTS | F10: 9700 | G10: 9700 | H10: Indirecto
A11: ALISTAMIENTO CHASIS | B11: Acondicionamiento de filtro de aire | C11: Codos pvc 4 pulgadas | D11: 3 | E11: UND | F11: 2100 | G11: 6300 | H11: Indirecto
A12: ALISTAMIENTO CHASIS | B12: Acondicionamiento de filtro de aire | C12: Abrazaderas 5 1/2 | D12: 5 | E12: UND | F12: 900 | G12: 4500 | H12: Indirecto
A13: ALISTAMIENTO CHASIS | B13: Acondicionamiento de filtro de combustible | G13: 0 | H13: Indirecto
A14: ALISTAMIENTO CHASIS | B14: Acondicimiento de bateria | G14: 0 | H14: Indirecto
A15: ALISTAMIENTO CHASIS | B15: Acondicimineto de portarepuestos | G15: 0 | H15: Indirecto
A16: ALISTAMIENTO CHASIS | B16: Instalación de banda | C16: Palos de 4m Abarco de rio | D16: 2 | E16: UND | F16: 16000 | G16: 32000 | H16: Indirecto
A17: ALISTAMIENTO CHASIS | C17: Pegante Boxer | D17: 100 | E17: GR | F17: 500 | G17: 50000 | H17: Indirecto
A18: PLATAFORMA Y ESTRUCTURA | B18: Cortar Lámina | C18: Lámina calibre 14 4*8 | D18: 3 | E18: UND | F18: 115000 | G18: =+F18*D18 -> 345000 | H18: Directo
A19: PLATAFORMA Y ESTRUCTURA | B19: Elaboración de arcos y frentes | C19: Lámina calibre 16 | D19: 5 | E19: UND | F19: 565000 | G19: =+F19*D19 -> 2825000 | H19: Directo
A20: PLATAFORMA Y ESTRUCTURA | B20: Elaboración de arcos y frentes | C20: Lámina de 1/8 | D20: 1 | E20: UND | F20: 115000 | G20: =+F20*D20 -> 115000 | H20: Directo
A21: PLATAFORMA Y ESTRUCTURA | B21: Elaboración de arcos y frentes | C21: Tubos redondos de 1 pulgada | D21: 7 | E21: UND | F21: 172000 | G21: =+F21*D21 -> 1204000 | H21: Directo
A22: PLATAFORMA Y ESTRUCTURA | B22: Elaboración de arcos y frentes | C22: Tubos cuadrados de 1 y 1/2 pulgada | D22: 7 | E22: UND | F22: 140000 | G22: =+F22*D22 -> 980000 | H22: Directo
A23: PLATAFORMA Y ESTRUCTURA | B23: Soldada de puentes | C23: Gas | D23: 0.5 | E23: Cilindro | F23: 210000 | G23: 105000 | H23: Indirecto
A24: PLATAFORMA Y ESTRUCTURA | B24: Soldada de puentes | C24: Alambre Mig | D24: 2 | E24: KG | F24: 195000 | G24: 390000 | H24: Indirecto
A25: PLATAFORMA Y ESTRUCTURA | B25: Armar plataforma con los puentes | C25: Gas | D25: 1 | E25: CILINDRO | F25: 210000 | G25: 210000 | H25: Indirecto
A26: PLATAFORMA Y ESTRUCTURA | B26: Armar plataforma con los puentes | C26: Alambre Mig | D26: 2 | E26: KG | F26: 195000 | G26: 390000 | H26: Indirecto
A27: PLATAFORMA Y ESTRUCTURA | B27: Armar estructura | C27: Gas | D27: 0.5 | E27: Cilindro | F27: 210000 | G27: 105000 | H27: Indirecto
A28: PLATAFORMA Y ESTRUCTURA | B28: Armar estructura | C28: Alambre Mig | D28: 2.5 | E28: KG | F28: 195000 | G28: 487500 | H28: Indirecto
A29: PLATAFORMA Y ESTRUCTURA | B29: Armar estructura | C29: Tornillo HEX 5/16X 1/4 | D29: 12 | E29: Und | F29: 786 | G29: 9432 | H29: Indirecto
A30: PLATAFORMA Y ESTRUCTURA | B30: Armar estructura | C30: Brocas 3/16 | D30: 2 | E30: Und | F30: 3216 | G30: 6432 | H30: Indirecto
A31: PLATAFORMA Y ESTRUCTURA | B31: Armar estructura | C31: Remaches de 1/4 | D31: 46 | E31: Und | F31: 11.31 | G31: 520.26 | H31: Indirecto
A32: ENLATADO | B32: Colocar lámina | C32: Lamina coll roll calibre 14 | D32: 2 | E32: und | F32: 102254 | G32: =+F32*D32 -> 204508 | H32: Directo
A33: ENLATADO | B33: Colocar lámina | C33: Laminas galvanizadas calibre 20 4X8 | D33: 7 | E33: Und | F33: 61000 | G33: =+F33*D33 -> 427000 | H33: Directo
A34: ENLATADO | B34: Colocar lámina | C34: Laminas Galvanizadas calibre 18 | D34: 5 | E34: Und | F34: 82600 | G34: =+F34*D34 -> 413000 | H34: Directo
A35: ENLATADO | B35: Inmunizar estructura | C35: Brea | D35: 7 | E35: KG | F35: 55000 | G35: =+D35*F35 -> 385000 | H35: Indirecto
A36: ENLATADO | B36: Inmunizar estructura | C36: Gasolina | D36: 4 | E36: GL | F36: 8210 | G36: 32840 | H36: Indirecto
A37: ENLATADO | B37: Colocar lámina | C37: Sika 252 | D37: 550 | E37: Gr | F37: 120 | G37: 66000 | H37: Indirecto
A38: ENLATADO | B38: Colocar lámina | C38: sika 221 X 400GR | D38: 1400 | E38: Gr | F38: 75 | G38: 105000 | H38: Indirecto
A39: ENLATADO | B39: Colocar lámina | C39: Sika praiwer | D39: 320 | E39: Gr | F39: 412 | G39: 131840 | H39: Indirecto
A40: ENLATADO | B40: Colocar lámina | C40: Sika activador | D40: 500 | E40: Gr | F40: 87.5 | G40: 43750 | H40: Indirecto
A41: ENLATADO | B41: Colocar lámina | C41: Bayetilla | D41: 1 | E41: mts | F41: 4000 | G41: 4000 | H41: Indirecto
A42: ENLATADO | B42: Colocar lámina | C42: Kilo de remacho golpe ¼ x 1/2 (hierro zincado) | D42: 1.5 | E42: kg | F42: 34800 | G42: 52200 | H42: Indirecto
A43: FRENTES Y TRACEROS EN FIBRA DE VIDRIO | B43: Encerar los moldes | C43: Cera | D43: 350 | E43: gr | F43: =390000/300 -> 1300 | G43: =+F43*D43 -> 455000 | H43: Directo
A44: FRENTES Y TRACEROS EN FIBRA DE VIDRIO | B44: Elaboración de piezas de frente en fibra de vidrio | C44: Componente A | D44: 20 | E44: kg | F44: 16000 | G44: =+F44*D44 -> 320000 | H44: Directo
A45: FRENTES Y TRACEROS EN FIBRA DE VIDRIO | B45: Elaboración de piezas de frente en fibra de vidrio | C45: Componente B | D45: 15 | E45: KG | F45: 9000 | G45: 135000 | H45: Directo
A46: FRENTES Y TRACEROS EN FIBRA DE VIDRIO | B46: Elaboración de piezas de frente en fibra de vidrio | C46: Resina | D46: 53 | E46: kg | F46: 9000 | G46: 477000 | H46: Directo
A47: FRENTES Y TRACEROS EN FIBRA DE VIDRIO | B47: Elaboración de piezas traseras en fibra de vidrio | C47: Componente A | D47: 20 | E47: kg | F47: 16000 | G47: 320000 | H47: Directo
A48: FRENTES Y TRACEROS EN FIBRA DE VIDRIO | B48: Elaboración de piezas traseras en fibra de vidrio | C48: Componente B | D48: 15 | E48: Kg | F48: 9000 | G48: 135000 | H48: Directo
A49: FRENTES Y TRACEROS EN FIBRA DE VIDRIO | B49: Elaboración de piezas traseras en fibra de vidrio | C49: Resina | D49: 53 | E49: kg | F49: 9000 | G49: 477000 | H49: Directo
A50: FRENTES Y TRACEROS EN FIBRA DE VIDRIO | B50: Elaboración de piezas de frente en fibra de vidrio | C50: Yelco | D50: 13 | E50: kg | F50: 800 | G50: 10400 | H50: Indirecto
A51: FRENTES Y TRACEROS EN FIBRA DE VIDRIO | B51: Elaboración de piezas de frente en fibra de vidrio | C51: Mat | D51: 19 | E51: kg | F51: 9000 | G51: 171000 | H51: Indirecto
A52: FRENTES Y TRACEROS EN FIBRA DE VIDRIO | B52: Elaboración de piezas de frente en fibra de vidrio | C52: Mek | D52: 2.5 | E52: kg | F52: 15000 | G52: 37500 | H52: Indirecto
A53: FRENTES Y TRACEROS EN FIBRA DE VIDRIO | B53: Elaboración de piezas de frente en fibra de vidrio | C53: Cera | D53: 108 | E53: Gr | F53: 1300 | G53: 140400 | H53: Indirecto
A54: FRENTES Y TRACEROS EN FIBRA DE VIDRIO | B54: Elaboración de piezas de frente en fibra de vidrio | C54: Tiner | D54: 1 | E54: Lt | G54: 0 | H54: Indirecto
A55: FRENTES Y TRACEROS EN FIBRA DE VIDRIO | B55: Elaboración de piezas de frente en fibra de vidrio | C55: Estopa | D55: 0 | G55: 0 | H55: Indirecto
A56: FRENTES Y TRACEROS EN FIBRA DE VIDRIO | B56: Elaboración de piezas traseras en fibra de vidrio | C56: Yelco | D56: 13 | E56: kg | F56: 800 | G56: 10400 | H56: Indirecto
A57: FRENTES Y TRACEROS EN FIBRA DE VIDRIO | B57: Elaboración de piezas traseras en fibra de vidrio | C57: Mat | D57: 19 | E57: kg | F57: 9000 | G57: 171000 | H57: Indirecto
A58: FRENTES Y TRACEROS EN FIBRA DE VIDRIO | B58: Elaboración de piezas traseras en fibra de vidrio | C58: Mek | D58: 2.5 | E58: kg | F58: 15000 | G58: 37500 | H58: Indirecto
A59: FRENTES Y TRACEROS EN FIBRA DE VIDRIO | B59: Elaboración de piezas traseras en fibra de vidrio | C59: Cera | D59: 108 | E59: Gr | F59: 1300 | G59: 140400 | H59: Indirecto
A60: FRENTES Y TRACEROS EN FIBRA DE VIDRIO | B60: Elaboración de piezas traseras en fibra de vidrio | C60: Tiner | D60: 1 | E60: Lt | G60: 0 | H60: Indirecto
A61: FRENTES Y TRACEROS EN FIBRA DE VIDRIO | B61: Elaboración de piezas traseras en fibra de vidrio | C61: Estopa | D61: 0 | G61: 0 | H61: Indirecto
A62: FRENTES Y TRACEROS EN FIBRA DE VIDRIO | B62: Instalación de las partes | C62: REMACHE POP 5/32 X 5/8 | D62: 1.5 | E62: Kg | F62: 10700 | G62: =+D62*F62 -> 16050 | H62: Indirecto
A63: FRENTES Y TRACEROS EN FIBRA DE VIDRIO | B63: Adecuación de las partes montadas | C63: disco de pulidora | D63: 1 | E63: Und | F63: 4000 | G63: =+F63*D63 -> 4000 | H63: Indirecto
A64: FRENTES Y TRACEROS EN FIBRA DE VIDRIO | B64: Desmonte de partes de los moldes | C64: 0 | D64: 0 | E64: 0 | F64: 0 | G64: 0 | H64: 0
A65: ESTRIBOS y PUERTAS | B65: Elaboracion de puertas | C65: laminas C.20 Galvanizada 4x8 | D65: 3.5 | E65: Und | F65: 61000 | G65: =+F65*D65 -> 213500 | H65: Directo
A66: ESTRIBOS y PUERTAS | B66: Elaboracion de estribos | C66: lamina C.16 C.R. 4X8 | D66: 1.5 | E66: Und | F66: 80714.28571 | G66: =+F66*D66 -> 121071.4286 | H66: Directo
A67: ESTRIBOS y PUERTAS | B67: Elaboracion de estribos | C67: lamina C. 16 galvanizada 4x8 | D67: 1.5 | E67: Und | F67: 102250 | G67: =+F67*D67 -> 153375 | H67: Directo
A68: ESTRIBOS y PUERTAS | B68: Elaboracion de puertas | C68: Kilos soldadura electrodo 1/8 | D68: 2.5 | E68: Kg | F68: 7000 | G68: 17500 | H68: Indirecto
A69: ESTRIBOS y PUERTAS | B69: Elaboracion de estribos | C69: Kilos soldadura electrodo 1/8 | D69: 1.5 | E69: Kg | F69: 7000 | G69: 10500 | H69: Indirecto
A70: ESTRIBOS y PUERTAS | B70: Adecuacion de bodegas | C70: Kilos soldadura electrodo 1/8 | D70: 1.5 | E70: Kg | F70: 7000 | G70: 10500 | H70: Indirecto
A71: ESTRIBOS y PUERTAS | B71: Instalacion de puertas | C71: Tornillos 3/8 x 1 | D71: 16 | E71: Und | F71: 237.75 | G71: 3804 | H71: Indirecto
A72: ESTRIBOS y PUERTAS | B72: Instalacion de puertas | C72: Bujes | D72: 14 | E72: Und | F72: 3042 | G72: 42588 | H72: Indirecto
A73: ESTRIBOS y PUERTAS | B73: Instalacion de puertas | C73: Bisagra De 9 Cm Volteo | D73: 12 | E73: Und | F73: 3650 | G73: 43800 | H73: Indirecto
A74: ESTRIBOS y PUERTAS | B74: Instalacion de puertas | C74: REMACHE POP 5/32 X 5/8 | D74: 0.5 | E74: kg | F74: 5350 | G74: 2675 | H74: Indirecto
A75: ESTRIBOS y PUERTAS | B75: Instalacion de puertas | C75: Bisagra para puerta | D75: 12 | E75: Und | F75: 3650 | G75: 43800 | H75: Indirecto
A76: ESTRIBOS y PUERTAS | B76: Instalacion de estribos | C76: Tornillos 5/16 x 2 ½ | D76: 14 | E76: Und | F76: 90 | G76: 1260 | H76: Indirecto
A77: ESTRIBOS y PUERTAS | B77: Instalacion de estribos | C77: Bujes | D77: 6 | E77: Und | F77: 3042 | G77: 18252 | H77: Indirecto
A78: ESTRIBOS y PUERTAS | B78: Instalacion de estribos | C78: Remache Pop 3/16X3/4 | D78: 0.5 | E78: Kg | F78: 17400 | G78: 8700 | H78: Indirecto
A79: PINTURA | B79: Lijado de carroceria | C79: Lija 80 220 320 | D79: 1 | E79: Pliego | F79: 25000 | G79: =+F79*D79 -> 25000 | H79: Indirecto
A80: PINTURA | B80: Aplicación capa de praymer | C80: Impericell 4/4 | D80: 1.5 | E80: Gl | F80: 13000 | G80: =+F80*D80 -> 19500 | H80: Indirecto
A81: PINTURA | B81: Aplicación capa de praymer | C81: Wash priwer 1/4 | D81: 3 | E81: Gl | F81: 16000 | G81: 48000 | H81: Indirecto
A82: PINTURA | B82: Lijado sobre capa de praymer | C82: Tiner | D82: 1 | E82: Lts | F82: 60000 | G82: 60000 | H82: Indirecto
A83: PINTURA | B83: Lijado sobre capa de praymer | C83: Lija 80 220 320 | D83: 1 | E83: Pliego | F83: 25000 | G83: 25000 | H83: Indirecto
A84: PINTURA | B84: Aplicación de Capa de fondo | C84: Estopa | D84: 1 | E84: bolsa | F84: 30000 | G84: 30000 | H84: Indirecto
A85: PINTURA | B85: Aplicación de Capa de fondo | C85: Galón base gris | D85: 2 | E85: Gl | F85: 11000 | G85: 22000 | H85: Indirecto
A86: PINTURA | B86: Aplicación de Capa de fondo | C86: Apresto Tonner 1/4 | D86: 3 | E86: Gl | F86: 85000 | G86: 255000 | H86: Indirecto
A87: PINTURA | B87: Aplicación de Capa de fondo | C87: Tinher | D87: 1 | E87: Lts | F87: 60000 | G87: 60000 | H87: Indirecto
A88: PINTURA | B88: Lijado sobre capa de fondo | C88: Lija 80 220 320 | D88: 1 | E88: Pliego | F88: 25000 | G88: 25000 | H88: Indirecto
A89: PINTURA | B89: Aplicación de Capa de masilla | C89: Galón hueso duro (SUPERMASILLA) | D89: 2 | E89: Gl | F89: 11000 | G89: 22000 | H89: Indirecto
A90: PINTURA | B90: Aplicación de Capa de masilla | C90: Galón masilla | D90: 2 | E90: Gl | F90: 72000 | G90: 144000 | H90: Indirecto
A91: PINTURA | B91: Aplicación de Capa de masilla | C91: Galones Thiner Corriente | D91: 2 | E91: Lts | F91: 60000 | G91: 120000 | H91: Indirecto
A92: PINTURA | B92: Aplicación de Capa de masilla | C92: Stopa | D92: 0.5 | E92: bolsa | F92: 30000 | G92: 15000 | H92: Indirecto
A93: PINTURA | B93: Lijado sobre capa de masilla | C93: Lija 80 220 320 | D93: 1 | E93: Pieglo | F93: 25000 | G93: 25000 | H93: Indirecto
A94: PINTURA | B94: Lijado sobre capa de masilla | C94: Cinta 1" 1/2 3/4 | D94: 1 | E94: Rollo | F94: 8000 | G94: 8000 | H94: Indirecto
A95: PINTURA | B95: Aplicación de Capa de fondo | C95: Galón negro sintetico | D95: 1.5 | E95: Gl | F95: 35000 | G95: 52500 | H95: Indirecto
A96: PINTURA | B96: Aplicación de Capa de fondo | C96: Negro Mate 1/4 | D96: 0.25 | E96: Gl | F96: 160000 | G96: 40000 | H96: Indirecto
A97: PINTURA | B97: Aplicación de Capa de fondo | C97: Sika 221x400 blanca | D97: 500 | E97: Gr | F97: 75 | G97: 37500 | H97: Indirecto
A98: PINTURA | B98: Aplicación de Capa de fondo | C98: Galón disolvente "U" 200 | D98: 1.5 | E98: Gl | F98: 38000 | G98: 57000 | H98: Indirecto
A99: PINTURA | B99: Lijado sobre la capa de fondo | C99: Lija 80 220 320 | D99: 1 | E99: Pliego | F99: 25000 | G99: 25000 | H99: Indirecto
A100: PINTURA | B100: Aplicacion de pintura | C100: Blanco puro | D100: 0.5 | E100: Gl | F100: 190000 | G100: 95000 | H100: Indirecto
A101: PINTURA | B101: Aplicacion de pintura | C101: Barniz | D101: 0.5 | E101: Gl | F101: 95000 | G101: 47500 | H101: Indirecto
A102: PINTURA | B102: Aplicacion de pintura | C102: Thiner duretan | D102: 1 | E102: Gl | F102: 60000 | G102: 60000 | H102: Indirecto
A103: PINTURA | B103: Aplicacion de pintura | C103: Pintura poliuretano | D103: 3 | E103: Gl | F103: 95000 | G103: 285000 | H103: Indirecto
A104: DECORACION ( TECHO FORRADO) | B104: Doblar Lámina | C104: Laminas galvanizadas calibre 20 4X8 | D104: 3 | E104: Und | F104: 61000 | G104: =+D104*F104 -> 183000 | H104: Directo
A105: DECORACION ( TECHO FORRADO) | B105: Preparación de techo | C105: Estopa | D105: 2 | E105: Lbs | F105: 30000 | G105: 60000 | H105: Indirecto
A106: DECORACION ( TECHO FORRADO) | B106: Preparación de techo | C106: Thiner corriente | D106: 1 | E106: Lts | F106: 60000 | G106: 60000 | H106: Indirecto
A107: DECORACION ( TECHO FORRADO) | B107: Soldar | C107: Kilos soldadura electrodo 1/8 | D107: 1.5 | E107: Kg | F107: 7000 | G107: 10500 | H107: Indirecto
A108: DECORACION ( TECHO FORRADO) | B108: Forrar cajones | C108: Hule azul | D108: 12 | E108: Mts | F108: 18571.42857 | G108: 222857.1429 | H108: Indirecto
A109: DECORACION ( TECHO FORRADO) | B109: Instalar | C109: Kilo de remacho golpe ¼ x 1/2 (hierro zincado) | D109: 0.5 | E109: Kg | F109: 34800 | G109: 17400 | H109: Indirecto
A110: DECORACION ( TECHO FIBRA) | B110: Fabricar piezas | C110: Componente A | D110: 7 | E110: Kg | F110: 16000 | G110: =+F110*D110 -> 112000 | H110: Directo
A111: DECORACION ( TECHO FIBRA) | B111: Fabricar piezas | C111: Componente B | D111: 4 | E111: KG | F111: 9000 | G111: =+F111*D111 -> 36000 | H111: Directo
A112: DECORACION ( TECHO FIBRA) | B112: Fabricar piezas | C112: Resina | D112: 10 | E112: kg | F112: 90000 | G112: =+F112*D112 -> 900000 | H112: Directo
A113: DECORACION ( TECHO FIBRA) | B113: Limpiar moldes | C113: Thiner duretan | D113: 0.5 | E113: Gl | F113: 60000 | G113: =+D113*F113 -> 30000 | H113: Indirecto
A114: DECORACION ( TECHO FIBRA) | B114: Lijado de Piezas | C114: Lija 80 220 320 | D114: 0.5 | E114: Pliego | F114: 25000 | G114: =+D114*F114 -> 12500 | H114: Indirecto
A115: DECORACION ( TECHO FIBRA) | B115: Aplicación capa de praymer | C115: Impericell 4/4 | D115: 0.5 | E115: Gl | F115: 13000 | G115: 6500 | H115: Indirecto
A116: DECORACION ( TECHO FIBRA) | B116: Aplicación capa de praymer | C116: Wash priwer 1/4 | D116: 0.5 | E116: Gl | F116: 16000 | G116: 8000 | H116: Indirecto
A117: DECORACION ( TECHO FIBRA) | B117: Lijado sobre capa de praymer | C117: Tiner | D117: 0.5 | E117: Lts | F117: 60000 | G117: 30000 | H117: Indirecto
A118: DECORACION ( TECHO FIBRA) | B118: Lijado sobre capa de praymer | C118: Lija 80 220 320 | D118: 0.5 | E118: Pliego | F118: 25000 | G118: 12500 | H118: Indirecto
A119: DECORACION ( TECHO FIBRA) | B119: Aplicación de Capa de fondo | C119: Estopa | D119: 1 | E119: Lb | F119: 30000 | G119: 30000 | H119: Indirecto
A120: DECORACION ( TECHO FIBRA) | B120: Aplicación de Capa de fondo | C120: Galón base gris | D120: 0.25 | E120: Gl | F120: 11000 | G120: 2750 | H120: Indirecto
A121: DECORACION ( TECHO FIBRA) | B121: Aplicación de Capa de fondo | C121: Apresto Tonner 1/4 | D121: 0.25 | E121: Gl | F121: 85000 | G121: 21250 | H121: Indirecto
A122: DECORACION ( TECHO FIBRA) | B122: Aplicación de Capa de fondo | C122: Tinher | D122: 0.25 | E122: Lts | F122: 60000 | G122: 15000 | H122: Indirecto
A123: DECORACION ( TECHO FIBRA) | B123: Lijado sobre capa de fondo | C123: Lija 80 220 320 | D123: 0.5 | E123: Pliego | F123: 25000 | G123: 12500 | H123: Indirecto
A124: DECORACION ( TECHO FIBRA) | B124: Aplicación de Capa de masilla | C124: Galón hueso duro (SUPERMASILLA) | D124: 0.5 | E124: Gl | F124: 11000 | G124: 5500 | H124: Indirecto
A125: DECORACION ( TECHO FIBRA) | B125: Aplicación de Capa de masilla | C125: Galón masilla | D125: 0.25 | E125: Gl | F125: 72000 | G125: 18000 | H125: Indirecto
A126: DECORACION ( TECHO FIBRA) | B126: Aplicación de Capa de masilla | C126: Galones Thiner Corriente | D126: 0.25 | E126: Lts | F126: 60000 | G126: 15000 | H126: Indirecto
A127: DECORACION ( TECHO FIBRA) | B127: Aplicación de Capa de masilla | C127: Stopa | D127: 0.5 | E127: bolsa | F127: 30000 | G127: 15000 | H127: Indirecto
A128: DECORACION ( TECHO FIBRA) | B128: Lijado sobre capa de masilla | C128: Lija 80 220 320 | D128: 0.25 | E128: Pieglo | F128: 25000 | G128: 6250 | H128: Indirecto
A129: DECORACION ( TECHO FIBRA) | B129: Lijado sobre capa de masilla | C129: Cinta 1" 1/2 3/4 | D129: 0.5 | E129: Rollo | F129: 8000 | G129: 4000 | H129: Indirecto
A130: DECORACION ( TECHO FIBRA) | B130: Aplicación de Capa de fondo | C130: Galón negro sintetico | D130: 0.5 | E130: Gl | F130: 35000 | G130: 17500 | H130: Indirecto
A131: DECORACION ( TECHO FIBRA) | B131: Aplicación de Capa de fondo | C131: Negro Mate 1/4 | D131: 0.5 | E131: Gl | F131: 160000 | G131: 80000 | H131: Indirecto
A132: DECORACION ( TECHO FIBRA) | B132: Aplicación de Capa de fondo | C132: Sika 221x400 blanca | D132: 100 | E132: Gr | F132: 75 | G132: 7500 | H132: Indirecto
A133: DECORACION ( TECHO FIBRA) | B133: Aplicación de Capa de fondo | C133: Galón disolvente "U" 200 | D133: 0.5 | E133: Gl | F133: 38000 | G133: 19000 | H133: Indirecto
A134: DECORACION ( TECHO FIBRA) | B134: Lijado sobre la capa de fondo | C134: Lija 80 220 320 | D134: 0.5 | E134: Pliego | F134: 25000 | G134: 12500 | H134: Indirecto
A135: DECORACION ( TECHO FIBRA) | B135: Pintar piezas | C135: Blanco puro | D135: 0.25 | E135: Gl | F135: 190000 | G135: 47500 | H135: Indirecto
A136: DECORACION ( TECHO FIBRA) | B136: Pintar piezas | C136: Barniz | D136: 0.5 | E136: Gl | F136: 95000 | G136: 47500 | H136: Indirecto
A137: DECORACION ( TECHO FIBRA) | B137: Pintar piezas | C137: Thiner duretan | D137: 0.25 | E137: Gl | F137: 60000 | G137: 15000 | H137: Indirecto
A138: DECORACION ( TECHO FIBRA) | B138: Pintar piezas | C138: Pintura poliuretano | D138: 3 | E138: Gl | F138: 95000 | G138: 285000 | H138: Indirecto
A139: DECORACION ( PISO EN HULE) | B139: Instalación de piso en madera | C139: Tablas de 14 m | D139: 6 | E139: Mts | F139: =360000/4 -> 90000 | G139: =+F139*D139 -> 540000 | H139: Directo
A140: DECORACION ( PISO EN HULE) | B140: Instalación de piso en caucho | C140: Hule azul cielo experess primario | D140: 13 | E140: Mts | F140: 18571 | G140: =+F140*D140 -> 241423 | H140: Directo
A141: DECORACION ( PISO EN HULE) | B141: piso parte delantera | C141: Hule piso experess | D141: 6 | E141: MTS | F141: 26666 | G141: =+F141*D141 -> 159996 | H141: Directo
A142: DECORACION ( PISO EN HULE) | B142: Instalación de piso en madera | C142: Tornillo HEX 1/4X3/4 | D142: 23 | E142: Und | F142: 45.24 | G142: 1040.52 | H142: Indirecto
A143: DECORACION ( PISO EN HULE) | B143: Instalación de piso en madera | C143: Tornillo HEX 1/4 X 1 R | D143: 9 | E143: Und | F143: 54.52 | G143: 490.68 | H143: Indirecto
A144: DECORACION ( PISO EN HULE) | B144: Instalación de piso en madera | C144: Tornillo CARRIAJE 1/4X2 | D144: 14 | E144: Und | F144: 225 | G144: 3150 | H144: Indirecto
A145: DECORACION ( PISO EN HULE) | B145: Instalación de piso en madera | C145: Tornillo AVELLAM 1/4X1 | D145: 14 | E145: Und | F145: 183.25 | G145: 2565.5 | H145: Indirecto
A146: DECORACION ( PISO EN HULE) | B146: Instalación de piso en caucho | C146: Pegante | D146: 1 | E146: Gl | F146: 44666.66667 | G146: 44666.66667 | H146: Indirecto
A147: DECORACION ( PISO EN HULE) | B147: piso parte delantera | C147: Pegante | D147: 0.5 | E147: GL | F147: 44666.66667 | G147: 22333.33333 | H147: Indirecto
A148: DECORACION ( PISO EN LAMINA) | B148: Instalación de piso en madera | C148: Tablas de 14 m | D148: 6 | E148: Mts | F148: =360000/4 -> 90000 | G148: =+F148*D148 -> 540000 | H148: Directo
A149: DECORACION ( PISO EN LAMINA) | B149: Instalación de piso en lámina | C149: Laminas galvanizadas calibre 20 4X8 | D149: 6 | E149: und | F149: 61000 | G149: =+F149*D149 -> 366000 | H149: Directo
A150: DECORACION ( PISO EN LAMINA) | B150: Instalación de piso en madera | C150: Tornillo HEX 1/4X3/4 | D150: 23 | E150: Und | F150: 45.24 | G150: 1040.52 | H150: Indirecto
A151: DECORACION ( PISO EN LAMINA) | B151: Instalación de piso en madera | C151: Tornillo HEX 1/4 X 1 R | D151: 9 | E151: Und | F151: 54.52 | G151: 490.68 | H151: Indirecto
A152: DECORACION ( PISO EN LAMINA) | B152: Instalación de piso en madera | C152: Tornillo CARRIAJE 1/4X2 | D152: 14 | E152: Und | F152: 225 | G152: 3150 | H152: Indirecto
A153: DECORACION ( PISO EN LAMINA) | B153: Instalación de piso en madera | C153: Tornillo AVELLAM 1/4X1 | D153: 14 | E153: Und | F153: 183.25 | G153: 2565.5 | H153: Indirecto
A154: DECORACION ( PISO EN LAMINA) | B154: Instalación de piso en lámina | C154: Remache POP 3/16 X 1/2 | D154: 1.5 | E154: Kg | F154: 10700 | G154: 16050 | H154: Indirecto
A155: DECORACION ( PISO EN LAMINA) | B155: Instalación de piso en lámina | C155: Remache POP 3/16X3/4 | D155: 4 | E155: Kg | F155: 15100 | G155: 60400 | H155: Indirecto
A156: DECORACION ( PISO EN LAMINA) | B156: Instalación de piso en lámina | C156: Sika 221x400 blanca | D156: 900 | E156: Gr | F156: 75 | G156: 67500 | H156: Indirecto
A157: DECORACION (VIDRIOS Y LUJOS) | B157: Adecuacion de cajones internos | C157: Angulo 1/8 X 1 1/2 | D157: 4 | E157: Und | F157: 27000 | G157: =+F157*D157 -> 108000 | H157: Directo
A158: DECORACION (VIDRIOS Y LUJOS) | B158: Adecuacion de cajones internos | C158: Angulos 3/4 | D158: 6 | E158: und | F158: 22600 | G158: 135600 | H158: Directo
A159: DECORACION (VIDRIOS Y LUJOS) | B159: Instalar vidrios | C159: Vidrio Fijo no estandar 65 X 1220 | D159: 2 | E159: Und | F159: 90000 | G159: 180000 | H159: Directo
A160: DECORACION (VIDRIOS Y LUJOS) | B160: Instalar vidrios | C160: Vidrio Flaco 490X1000 | D160: 2 | E160: Und | F160: 49300 | G160: 98600 | H160: Directo
A161: DECORACION (VIDRIOS Y LUJOS) | B161: Instalar vidrios | C161: Vidrio Fijo no estandar 650X1320 | D161: 4 | E161: Und | F161: 96628 | G161: 386512 | H161: Directo
A162: DECORACION (VIDRIOS Y LUJOS) | B162: Instalar vidrios | C162: Vidrio Flaco No estandar 570X1000 | D162: 2 | E162: Und | F162: 59160 | G162: 118320 | H162: Directo
A163: DECORACION (VIDRIOS Y LUJOS) | B163: Adecuacion de cajones internos | C163: Sika 265 x 250g | D163: 500 | E163: Gr | F163: 120 | G163: 60000 | H163: Indirecto
A164: DECORACION (VIDRIOS Y LUJOS) | B164: Adecuacion de cajones internos | C164: Broca 1/8 | D164: 2 | E164: Und | F164: 4000 | G164: 8000 | H164: Indirecto
A165: DECORACION (VIDRIOS Y LUJOS) | B165: Adecuacion de cajones internos | C165: Tornillo Terca ZN 1/4 | D165: 50 | E165: Und | F165: 20.88 | G165: 1044 | H165: Indirecto
A166: DECORACION (VIDRIOS Y LUJOS) | B166: Adecuacion de cajones internos | C166: Sika 221 x400g | D166: 200 | E166: Gr | F166: 125 | G166: 25000 | H166: Indirecto
A167: DECORACION (VIDRIOS Y LUJOS) | B167: Instalar claraboyá | C167: Claraboya | D167: 2 | E167: Und | F167: 350000 | G167: 700000 | H167: Indirecto
A168: DECORACION (VIDRIOS Y LUJOS) | B168: Instalar claraboyá | C168: Broca 3/16 | D168: 2 | E168: Und | F168: 3126 | G168: 6252 | H168: Indirecto
A169: DECORACION (VIDRIOS Y LUJOS) | B169: Instalar claraboyá | C169: Sika 265 x 250g | D169: 40 | E169: Gr | F169: 120 | G169: 4800 | H169: Indirecto
A170: DECORACION (VIDRIOS Y LUJOS) | B170: Instalar Unidades | C170: Juego de Unidades | D170: 1 | E170: Und | F170: 850000 | G170: 850000 | H170: Indirecto
A171: DECORACION (VIDRIOS Y LUJOS) | B171: Instalar vidrios | C171: Corredera no estandar 280X630 | D171: 8 | E171: Und | F171: 18560 | G171: 148480 | H171: Indirecto
A172: DECORACION (VIDRIOS Y LUJOS) | B172: Instalar vidrios | C172: Corredera no estandar 280X630 | D172: 2 | E172: Und | F172: 18560 | G172: 37120 | H172: Indirecto
A173: DECORACION (VIDRIOS Y LUJOS) | B173: Instalar vidrios | C173: Puerta no estandar 180X1220 | D173: 1 | E173: Und | F173: 25636 | G173: 25636 | H173: Indirecto
A174: DECORACION (VIDRIOS Y LUJOS) | B174: Instalar vidrios | C174: Vidrio Fijo no estandar 260X1570 | D174: 3 | E174: Und | F174: 38419 | G174: 115257 | H174: Indirecto
A175: DECORACION (VIDRIOS Y LUJOS) | B175: Instalar vidrios | C175: Vidrio Trasero 1610X700 | D175: 1 | E175: Und | F175: 117334 | G175: 117334 | H175: Indirecto
A176: DECORACION (VIDRIOS Y LUJOS) | B176: Instalar vidrios | C176: Vidrio Fijo No Estandar 450X1050 | D176: 3 | E176: Und | F176: 44022 | G176: 132066 | H176: Indirecto
A177: DECORACION (VIDRIOS Y LUJOS) | B177: Instalar vidrios | C177: Vidrio Fijo estandar 660X290 | D177: 2 | E177: Und | F177: 18560 | G177: 37120 | H177: Indirecto
A178: DECORACION (VIDRIOS Y LUJOS) | B178: Instalar vidrios | C178: Vidrio Parabrisas 230X1100 | D178: 1 | E178: Und | F178: 500000 | G178: 500000 | H178: Indirecto
A179: DECORACION (VIDRIOS Y LUJOS) | B179: Instalar vidrios | C179: vidrios Fijo no estandar 770X 1050 | D179: 3 | E179: Und | F179: 150435.5 | G179: 451306.5 | H179: Indirecto
A180: DECORACION (VIDRIOS Y LUJOS) | B180: Instalar vidrios | C180: Correderas puerta 400X450 | D180: 2 | E180: Und | F180: 18560 | G180: 37120 | H180: Indirecto
A181: DECORACION (VIDRIOS Y LUJOS) | B181: Instalar vidrios | C181: SIKA 221 x400g | D181: 2500 | E181: Gr | F181: 75 | G181: 187500 | H181: Indirecto
A182: DECORACION (VIDRIOS Y LUJOS) | B182: Instalar vidrios | C182: SIKA PRAIMER x250g | D182: 1000 | E182: Gr | F182: 412 | G182: 412000 | H182: Indirecto
A183: DECORACION (VIDRIOS Y LUJOS) | B183: Instalar vidrios | C183: SIKA ACTIVADOR x400g | D183: 550 | E183: Gr | F183: 88 | G183: 48400 | H183: Indirecto
A184: DECORACION (VIDRIOS Y LUJOS) | B184: Instalar vidrios | C184: 1/2 M BALLETILLA BLANCA | D184: 0.5 | E184: Mts | F184: 4000 | G184: 2000 | H184: Indirecto
A185: ADECUACIONES ELÉCTRICAS | B185: Instalación de motores de limpia brisas | C185: Smichit limpiabrisas | D185: 1 | E185: Und | F185: 16000 | G185: =+D185*F185 -> 16000 | H185: Directo
A186: ADECUACIONES ELÉCTRICAS | B186: Instalación de motores de limpia brisas | C186: Cable Monopolar N 18 | D186: 7 | E186: Mts | F186: 500 | G186: =+D186*F186 -> 3500 | H186: Directo
A187: ADECUACIONES ELÉCTRICAS | B187: Instalación de motores de limpia brisas | C187: Sistema Limpiaparabrisas | D187: 1 | E187: Und | F187: 650000 | G187: 650000 | H187: Directo
A188: ADECUACIONES ELÉCTRICAS | B188: Instalación de velas | C188: Cable Monopolar N 10 | D188: 16 | E188: Mts | F188: 209 | G188: 3344 | H188: Directo
A189: ADECUACIONES ELÉCTRICAS | B189: Instalación de velas | C189: Juego de velas | D189: 1 | E189: und | F189: 84000 | G189: 84000 | H189: Directo
A190: ADECUACIONES ELÉCTRICAS | B190: Instalación de velas | C190: Cinta aislante | D190: 1 | E190: rollo | F190: 1500 | G190: 1500 | H190: Directo
A191: ADECUACIONES ELÉCTRICAS | B191: Instalación de licuadoras | C191: Licuadora | D191: 2 | E191: Und | F191: 130000 | G191: 260000 | H191: Directo
A192: ADECUACIONES ELÉCTRICAS | B192: Instalación de licuadoras | C192: Terminal 3/16 1/4 | D192: 1 | E192: Und | F192: 200 | G192: 200 | H192: Directo
A193: ADECUACIONES ELÉCTRICAS | B193: Instalación de licuadoras | C193: Corazas negra abierta 3/16 | D193: 8 | E193: Mts | F193: 1100 | G193: 8800 | H193: Directo
A194: ADECUACIONES ELÉCTRICAS | B194: Instalación de licuadoras | C194: Radio | D194: 1 | E194: Und | F194: 420000 | G194: 420000 | H194: Directo
A195: ADECUACIONES ELÉCTRICAS | B195: Instalación de parlantes | C195: Juego de parlantes ovalados | D195: 2 | E195: Und | F195: 80000 | G195: 160000 | H195: Directo
A196: ADECUACIONES ELÉCTRICAS | B196: Instalación de parlantes | C196: Juego de parlantes redondos | D196: 1 | E196: Und | F196: 70000 | G196: 70000 | H196: Directo
A197: ADECUACIONES ELÉCTRICAS | B197: Adecuación de alumbrado interno | C197: Regletas | D197: 7 | E197: Und | F197: 36500 | G197: 255500 | H197: Directo
A198: ADECUACIONES ELÉCTRICAS | B198: Adecuación de alumbrado interno | C198: Lampara Cabina | D198: 1 | E198: Und | F198: 50000 | G198: 50000 | H198: Directo
A199: ADECUACIONES ELÉCTRICAS | B199: Adecuación de alumbrado interno | C199: Boster Electrico a 24 V | D199: 1 | E199: Und | F199: 750000 | G199: 750000 | H199: Directo
A200: ADECUACIONES ELÉCTRICAS | B200: Instalación de licuadoras | C200: Cable Monopolar N 10 | D200: 12 | E200: Mts | F200: 209 | G200: 2508 | H200: Indirecto
A201: ADECUACIONES ELÉCTRICAS | B201: Instalación de radio | C201: Cable monopolar N 18 | D201: 12 | E201: Mts | F201: 500 | G201: 6000 | H201: Indirecto
A202: ADECUACIONES ELÉCTRICAS | B202: Instalación de radio | C202: Cable monopolar N 16 | D202: 6 | E202: Mts | F202: 600 | G202: 3600 | H202: Indirecto
A203: ADECUACIONES ELÉCTRICAS | B203: Instalación de radio | C203: Cinta aislante | D203: 1 | E203: Rollo | F203: 1500 | G203: 1500 | H203: Indirecto
A204: ADECUACIONES ELÉCTRICAS | B204: Instalación de parlantes | C204: Cable monopolar N 18 | D204: 136 | E204: Mts | F204: 600 | G204: 81600 | H204: Indirecto
... 34 more rows

Sheet Hoja7 (hidden)
A3: Rótulos de fila | B3: Suma de VALOR TOTAL
A4: FRENTES Y TRACEROS EN FIBRA DE VIDRIO | B4: 697446.6275
A5: ADECUACIONES ELÉCTRICAS | B5: 275496.7175
A6: ALISTAMIENTO CHASIS | B6: 188582.08
A7: DECORACION ( PISO EN HULE) | B7: 230071.7
A8: DECORACION ( PISO EN LAMINA) | B8: 109284.0575
A9: DECORACION ( TECHO FIBRA) | B9: 380246.2
A10: DECORACION ( TECHO FORRADO) | B10: 143794.8125
A11: DECORACION (VIDRIOS Y LUJOS) | B11: 5328758.963
A12: DECORACION GENERAL | B12: 56653.2275
A13: ENLATADO | B13: 506157.74
A14: ESTRIBOS y PUERTAS | B14: 500000
A15: PINTURA | B15: 740213.265
A16: PLATAFORMA Y ESTRUCTURA | B16: 851419.58
A17: SILLETERIA | B17: 1594046.933
A18: (en blanco)
A19: Total general | B19: 11602171.9

Sheet MODURBANA
A5: PROCESO | B5: ACTIVIDADES | C5: TIEMPO REQUERIDO HORAS HOMBRE | D5: # TRABAJADORES | E5: VALOR HORA | F5: VALOR TOTAL
A6: ALISTAMIENTO CHASIS | B6: Acondicionamiento de filtro de aire | C6: 8 | D6: 1 | E6: =EMPLEADOS!K8 -> 5751.7925 | F6: =+E6*C6 -> 46014.34
A7: ALISTAMIENTO CHASIS | B7: Acondicionamiento de filtro de combustible | C7: 2 | D7: 1 | E7: =EMPLEADOS!K10 -> 5751.7925 | F7: 11503.585
A8: ALISTAMIENTO CHASIS | B8: Acondicimiento de bateria | C8: 2 | D8: 1 | E8: =EMPLEADOS!K10 -> 5751.7925 | F8: 11503.585
A9: ALISTAMIENTO CHASIS | B9: Acondicimineto de portarepuestos | C9: 4 | D9: 1 | E9: 5730.0425 | F9: 22920.17
A10: ALISTAMIENTO CHASIS | B10: Instalación de banda | C10: 8 | D10: 2 | E10: =+EMPLEADOS!K5+EMPLEADOS!K10 -> 12080.05 | F10: 96640.4
A11: PLATAFORMA Y ESTRUCTURA | B11: Cortar Lámina | C11: 16 | D11: 1 | E11: =+EMPLEADOS!K4 -> 6328.2575 | F11: 101252.12
A12: PLATAFORMA Y ESTRUCTURA | B12: Doblar Lámina | C12: 8 | D12: 1 | E12: =+EMPLEADOS!K4 -> 6328.2575 | F12: 50626.06
A13: PLATAFORMA Y ESTRUCTURA | B13: Soldada de puentes | C13: 16 | D13: 1 | E13: =+EMPLEADOS!K4 -> 6328.2575 | F13: 101252.12
A14: PLATAFORMA Y ESTRUCTURA | B14: Elaboración de arcos y frentes | C14: 24 | D14: 1 | E14: =+EMPLEADOS!K4 -> 6328.2575 | F14: =+E14*C14 -> 151878.18
A15: PLATAFORMA Y ESTRUCTURA | B15: Armar plataforma con los puentes | C15: 12 | D15: 2 | E15: =+EMPLEADOS!K5+EMPLEADOS!K4 -> 12656.515 | F15: 151878.18
A16: PLATAFORMA Y ESTRUCTURA | B16: Armar estructura | C16: 16 | D16: 3 | E16: =+EMPLEADOS!K4+EMPLEADOS!K5+EMPLEADOS!K10 -> 18408.3075 | F16: 294532.92
A17: ENLATADO | B17: Inmunizar estructura | C17: 20 | D17: 2 | E17: =+EMPLEADOS!K9+EMPLEADOS!K10 -> 11503.585 | F17: =+E17*C17 -> 230071.7
A18: ENLATADO | B18: Colocar lámina | C18: 24 | D18: 2 | E18: =+EMPLEADOS!K9+EMPLEADOS!K10 -> 11503.585 | F18: =+E18*C18 -> 276086.04
A19: FRENTES Y TRACEROS EN FIBRA DE VIDRIO | B19: Encerar los moldes | C19: 4 | D19: 1 | E19: =+EMPLEADOS!K4 -> 6328.2575 | F19: =+E19*C19 -> 25313.03
A20: FRENTES Y TRACEROS EN FIBRA DE VIDRIO | B20: Elaboración de piezas de frente en fibra de vidrio | C20: 12 | D20: 2 | E20: =+EMPLEADOS!K3+EMPLEADOS!K4 -> 11791.8175 | F20: 141501.81
A21: FRENTES Y TRACEROS EN FIBRA DE VIDRIO | B21: Elaboración de piezas traseras en fibra de vidrio | C21: 17 | D21: 2 | E21: =+EMPLEADOS!K3+EMPLEADOS!K4 -> 11791.8175 | F21: 200460.8975
A22: FRENTES Y TRACEROS EN FIBRA DE VIDRIO | B22: Desmonte de partes de los moldes | C22: 7 | D22: 2 | E22: =+EMPLEADOS!$K$3+EMPLEADOS!$K$4 -> 11791.8175 | F22: 82542.7225
A23: FRENTES Y TRACEROS EN FIBRA DE VIDRIO | B23: Instalación de las partes | C23: 15 | D23: 2 | E23: =+EMPLEADOS!$K$3+EMPLEADOS!$K$4 -> 11791.8175 | F23: 176877.2625
A24: FRENTES Y TRACEROS EN FIBRA DE VIDRIO | B24: Adecuación de las partes montadas | C24: 6 | D24: 2 | E24: =+EMPLEADOS!$K$3+EMPLEADOS!$K$4 -> 11791.8175 | F24: 70750.905
A25: ESTRIBOS y PUERTAS | B25: Elaboracion de puertas | C25: CONTRATO | E25: 500000 | F25: 500000
A26: ESTRIBOS y PUERTAS | B26: Elaboracion de estribos
A27: ESTRIBOS y PUERTAS | B27: Instalacion de puertas
A28: ESTRIBOS y PUERTAS | B28: Instalacion de estribos
A29: PINTURA | B29: Lijado de carroceria | C29: 5 | D29: 2 | E29: =+EMPLEADOS!$K$6+EMPLEADOS!$K$7 -> 11215.3525 | F29: =+E29*C29 -> 56076.7625
A30: PINTURA | B30: Aplicación capa de praymer | C30: 8 | D30: 2 | E30: =+EMPLEADOS!$K$6+EMPLEADOS!$K$7 -> 11215.3525 | F30: =+E30*C30 -> 89722.82
A31: PINTURA | B31: Lijado sobre capa de praymer | C31: 5 | D31: 2 | E31: =+EMPLEADOS!$K$6+EMPLEADOS!$K$7 -> 11215.3525 | F31: 56076.7625
A32: PINTURA | B32: Aplicación de Capa de fondo | C32: 8 | D32: 2 | E32: =+EMPLEADOS!$K$6+EMPLEADOS!$K$7 -> 11215.3525 | F32: 89722.82
A33: PINTURA | B33: Lijado sobre capa de fondo | C33: 5 | D33: 2 | E33: =+EMPLEADOS!$K$6+EMPLEADOS!$K$7 -> 11215.3525 | F33: 56076.7625
A34: PINTURA | B34: Aplicación de Capa de masilla | C34: 8 | D34: 2 | E34: =+EMPLEADOS!$K$6+EMPLEADOS!$K$7 -> 11215.3525 | F34: 89722.82
A35: PINTURA | B35: Lijado sobre capa de masilla | C35: 5 | D35: 2 | E35: =+EMPLEADOS!$K$6+EMPLEADOS!$K$7 -> 11215.3525 | F35: 56076.7625
A36: PINTURA | B36: Aplicación de Capa de fondo | C36: 8 | D36: 2 | E36: =+EMPLEADOS!$K$6+EMPLEADOS!$K$7 -> 11215.3525 | F36: 89722.82
A37: PINTURA | B37: Lijado sobre la capa de fondo | C37: 5 | D37: 2 | E37: =+EMPLEADOS!$K$6+EMPLEADOS!$K$7 -> 11215.3525 | F37: 56076.7625
A38: PINTURA | B38: Aplicacion de pintura | C38: 9 | D38: 2 | E38: =+EMPLEADOS!$K$6+EMPLEADOS!$K$7 -> 11215.3525 | F38: 100938.1725
A39: DECORACION ( TECHO FORRADO) | B39: Preparación de techo | C39: 2 | D39: 1 | E39: =+EMPLEADOS!$K$10 -> 5751.7925 | F39: =+E39*C39 -> 11503.585
A40: DECORACION ( TECHO FORRADO) | B40: Doblar Lámina | C40: 4 | D40: 1 | E40: =+EMPLEADOS!$K$10 -> 5751.7925 | F40: 23007.17
A41: DECORACION ( TECHO FORRADO) | B41: Soldar | C41: 6 | D41: 1 | E41: =+EMPLEADOS!$K$10 -> 5751.7925 | F41: 34510.755
A42: DECORACION ( TECHO FORRADO) | B42: Forrar cajones | C42: 5 | D42: 1 | E42: =+EMPLEADOS!$K$10 -> 5751.7925 | F42: 28758.9625
A43: DECORACION ( TECHO FORRADO) | B43: Instalar | C43: 4 | D43: 2 | E43: =+EMPLEADOS!$K$10+EMPLEADOS!$K$9 -> 11503.585 | F43: 46014.34
A44: DECORACION ( TECHO FIBRA) | B44: Limpiar moldes | C44: 1 | D44: 1 | E44: =+EMPLEADOS!$K$4 -> 6328.2575 | F44: 6328.2575
A45: DECORACION ( TECHO FIBRA) | B45: Fabricar piezas | C45: 6 | D45: 2 | E45: =+EMPLEADOS!$K$3+EMPLEADOS!$K$4 -> 11791.8175 | F45: =+E45*C45 -> 70750.905
A46: DECORACION ( TECHO FIBRA) | B46: Lijado de Piezas | C46: 4 | D46: 2 | E46: =+EMPLEADOS!$K$3+EMPLEADOS!$K$4 -> 11791.8175 | F46: 47167.27
A47: DECORACION ( TECHO FIBRA) | B47: Aplicación capa de praymer | C47: 3 | D47: 1 | E47: =+EMPLEADOS!$K$4 -> 6328.2575 | F47: 18984.7725
A48: DECORACION ( TECHO FIBRA) | B48: Lijado sobre capa de praymer | C48: 4 | D48: 2 | E48: =+EMPLEADOS!$K$3+EMPLEADOS!$K$4 -> 11791.8175 | F48: 47167.27
A49: DECORACION ( TECHO FIBRA) | B49: Aplicación de Capa de fondo | C49: 3 | D49: 1 | E49: =+EMPLEADOS!$K$4 -> 6328.2575 | F49: 18984.7725
A50: DECORACION ( TECHO FIBRA) | B50: Lijado sobre capa de fondo | C50: 4 | D50: 1 | E50: =+EMPLEADOS!$K$4 -> 6328.2575 | F50: 25313.03
A51: DECORACION ( TECHO FIBRA) | B51: Aplicación de Capa de masilla | C51: 4 | D51: 1 | E51: =+EMPLEADOS!$K$4 -> 6328.2575 | F51: 25313.03
A52: DECORACION ( TECHO FIBRA) | B52: Lijado sobre capa de masilla | C52: 4 | D52: 1 | E52: =+EMPLEADOS!$K$4 -> 6328.2575 | F52: 25313.03
A53: DECORACION ( TECHO FIBRA) | B53: Aplicación de Capa de fondo | C53: 3 | D53: 1 | E53: =+EMPLEADOS!$K$4 -> 6328.2575 | F53: 18984.7725
A54: DECORACION ( TECHO FIBRA) | B54: Lijado sobre la capa de fondo | C54: 4 | D54: 1 | E54: =+EMPLEADOS!$K$4 -> 6328.2575 | F54: 25313.03
A55: DECORACION ( TECHO FIBRA) | B55: Pintar piezas | C55: 8 | D55: 1 | E55: =+EMPLEADOS!$K$4 -> 6328.2575 | F55: 50626.06
A56: DECORACION ( PISO EN HULE) | B56: Preparación de piso | C56: 3 | D56: 1 | E56: =+EMPLEADOS!K10 -> 5751.7925 | F56: =+E56*C56 -> 17255.3775
A57: DECORACION ( PISO EN HULE) | B57: Instalación de piso en madera | C57: 9 | D57: 2 | E57: =+EMPLEADOS!$K$9+EMPLEADOS!$K$10 -> 11503.585 | F57: 103532.265
A58: DECORACION ( PISO EN HULE) | B58: Instalación de piso en caucho | C58: 8 | D58: 2 | E58: =+EMPLEADOS!$K$9+EMPLEADOS!$K$10 -> 11503.585 | F58: 92028.68
A59: DECORACION ( PISO EN HULE) | B59: piso parte delantera | C59: 3 | D59: 1 | E59: =+EMPLEADOS!$K$10 -> 5751.7925 | F59: 17255.3775
A60: DECORACION ( PISO EN LAMINA) | B60: Preparación de piso | C60: 1 | D60: 1 | E60: =+EMPLEADOS!$K$10 -> 5751.7925 | F60: 5751.7925
A61: DECORACION ( PISO EN LAMINA) | B61: Instalación de piso en madera | C61: 4 | D61: 2 | E61: =+EMPLEADOS!$K$9+EMPLEADOS!$K$10 -> 11503.585 | F61: 46014.34
A62: DECORACION ( PISO EN LAMINA) | B62: Instalación de piso en lámina | C62: 5 | D62: 2 | E62: =+EMPLEADOS!$K$9+EMPLEADOS!$K$10 -> 11503.585 | F62: 57517.925
A63: DECORACION (VIDRIOS Y LUJOS) | B63: Adecuacion de cajones internos | C63: 2 | D63: 1 | E63: =+EMPLEADOS!$K$10 -> 5751.7925 | F63: 11503.585
A64: DECORACION (VIDRIOS Y LUJOS) | B64: Instalar claraboyá | C64: 1 | D64: 1 | E64: =+EMPLEADOS!$K$10 -> 5751.7925 | F64: =+E64*C64 -> 5751.7925
A65: DECORACION (VIDRIOS Y LUJOS) | B65: Instalar unidades | C65: 2 | D65: 1 | E65: =+EMPLEADOS!$K$10 -> 5751.7925 | F65: =+C65*E65 -> 11503.585
A66: DECORACION (VIDRIOS Y LUJOS) | B66: Instalar vidrios | C66: CONTRATO | E66: 5300000 | F66: =+E66 -> 5300000
A67: ADECUACIONES ELÉCTRICAS | B67: Instalación de motores de limpia brisas | C67: 2 | D67: 2 | E67: =+EMPLEADOS!$K$3+EMPLEADOS!$K$10 -> 11215.3525 | F67: =+E67*C67 -> 22430.705
A68: ADECUACIONES ELÉCTRICAS | B68: Instalación de espejos | C68: 3 | D68: 1 | E68: =+EMPLEADOS!$K$10 -> 5751.7925 | F68: =+E68*C68 -> 17255.3775
A69: ADECUACIONES ELÉCTRICAS | B69: Instalación de velas | C69: 2 | D69: 1 | E69: =+EMPLEADOS!$K$10 -> 5751.7925 | F69: 11503.585
A70: ADECUACIONES ELÉCTRICAS | B70: Instalación de licuadoras | C70: 3 | D70: 2 | E70: =+EMPLEADOS!$K$3+EMPLEADOS!$K$10 -> 11215.3525 | F70: 33646.0575
A71: ADECUACIONES ELÉCTRICAS | B71: Instalación de radio | C71: 4 | D71: 2 | E71: =+EMPLEADOS!$K$3+EMPLEADOS!$K$10 -> 11215.3525 | F71: 44861.41
A72: ADECUACIONES ELÉCTRICAS | B72: Instalación de parlantes | C72: 3 | D72: 2 | E72: =+EMPLEADOS!$K$3+EMPLEADOS!$K$10 -> 11215.3525 | F72: 33646.0575
A73: ADECUACIONES ELÉCTRICAS | B73: Adecuación de alumbrado interno | C73: 6 | D73: 2 | E73: =+EMPLEADOS!$K$3+EMPLEADOS!$K$10 -> 11215.3525 | F73: 67292.115
A74: ADECUACIONES ELÉCTRICAS | B74: Adecuación de Boster | C74: 4 | D74: 2 | E74: =+EMPLEADOS!$K$3+EMPLEADOS!$K$10 -> 11215.3525 | F74: 44861.41
A75: SILLETERIA | B75: Hechura de estructura | C75: 88 | D75: 1 | E75: =+EMPLEADOS!$K$10 -> 5751.7925 | F75: =+E75*C75 -> 506157.74
A76: SILLETERIA | B76: Tapizada | C76: 65 | D76: 2 | E76: =+EMPLEADOS!$K$3+EMPLEADOS!$K$10 -> 11215.3525 | F76: 728997.9125
A77: SILLETERIA | B77: Instalación de sillas | C77: 32 | D77: 2 | E77: =+EMPLEADOS!$K$3+EMPLEADOS!$K$10 -> 11215.3525 | F77: 358891.28
A78: DECORACION GENERAL | B78: Instalacion de tubos pasamanos | C78: 3 | D78: 2 | E78: =+EMPLEADOS!$K$3+EMPLEADOS!$K$10 -> 11215.3525 | F78: 33646.0575
A79: DECORACION GENERAL | B79: Instalacion de calcomanias de emergencia | C79: 1 | D79: 1 | E79: =+EMPLEADOS!$K$10 -> 5751.7925 | F79: 5751.7925
A80: DECORACION GENERAL | B80: Instalacion de logos | C80: 2 | D80: 1 | E80: =+EMPLEADOS!$K$10 -> 5751.7925 | F80: 11503.585
A81: DECORACION GENERAL | B81: Instalacion de martillos de seguridad | C81: 1 | D81: 1 | E81: =+EMPLEADOS!$K$10 -> 5751.7925 | F81: 5751.7925

Sheet Hoja8 (hidden)
A3: Rótulos de fila | B3: Suma de VALOR TOTAL
A4: FRENTES Y TRACEROS EN FIBRA DE VIDRIO | B4: 697446.6275
A5: ADECUACIONES ELÉCTRICAS | B5: 286712.07
A6: ALISTAMIENTO CHASIS | B6: 188669.08
A7: DECORACION ( PISO EN HULE) | B7: 281837.8325
A8: DECORACION ( PISO EN LAMINA) | B8: 166801.9825
A9: DECORACION ( TECHO FIBRA) | B9: 401530.4037
A10: DECORACION ( TECHO FORRADO) | B10: 207064.53
A11: DECORACION (VIDRIOS Y LUJOS) | B11: 5357517.925
A12: DECORACION GENERAL | B12: 56653.2275
A13: ENLATADO | B13: 575179.25
A14: ESTRIBOS y PUERTAS | B14: 500000
A15: PINTURA | B15: 874797.495
A16: PLATAFORMA Y ESTRUCTURA | B16: 1045289.702
A17: SILLETERIA | B17: 2078901.183
A18: Total general | B18: 12718401.31

Sheet MODINTER
A6: PROCESOS | B6: ACTIVIDADES | C6: TIEMPO REQUERIDO HORAS HOMBRE | D6: # TRABAJADORES | E6: VALOR HORA | F6: VALOR TOTAL
A7: ALISTAMIENTO CHASIS | B7: Acondicionamiento de filtro de aire | C7: 8 | D7: 1 | E7: =EMPLEADOS!$K$8 -> 5751.7925 | F7: =+E7*C7 -> 46014.34
A8: ALISTAMIENTO CHASIS | B8: Acondicionamiento de filtro de combustible | C8: 2 | D8: 1 | E8: =EMPLEADOS!$K$10 -> 5751.7925 | F8: =+E8*C8 -> 11503.585
A9: ALISTAMIENTO CHASIS | B9: Acondicimiento de bateria | C9: 2 | D9: 1 | E9: =EMPLEADOS!$K$10 -> 5751.7925 | F9: =+E9*C9 -> 11503.585
A10: ALISTAMIENTO CHASIS | B10: Acondicimineto de portarepuestos | C10: 4 | D10: 1 | E10: =EMPLEADOS!$K$10 -> 5751.7925 | F10: =+E10*C10 -> 23007.17
A11: ALISTAMIENTO CHASIS | B11: Instalación de banda | C11: 8 | D11: 2 | E11: =+EMPLEADOS!$K$5+EMPLEADOS!$K$10 -> 12080.05 | F11: =+E11*C11 -> 96640.4
A12: PLATAFORMA Y ESTRUCTURA | B12: Cortar Lámina | C12: 18 | D12: 2 | E12: =+EMPLEADOS!K4 -> 6328.2575 | F12: =+E12*C12 -> 113908.635
A13: PLATAFORMA Y ESTRUCTURA | B13: Doblar Lámina | C13: 10 | D13: 1 | E13: =+EMPLEADOS!K4 -> 6328.2575 | F13: 63282.575
A14: PLATAFORMA Y ESTRUCTURA | B14: Soldada de puentes | C14: 19 | D14: 1 | E14: =+EMPLEADOS!K4 -> 6328.2575 | F14: 120236.8925
A15: PLATAFORMA Y ESTRUCTURA | B15: Elaboración de arcos y frentes | C15: 28 | D15: 1 | E15: =+EMPLEADOS!K4 -> 6328.2575 | F15: 177191.21
A16: PLATAFORMA Y ESTRUCTURA | B16: Armar plataforma con los puentes | C16: 16 | D16: 2 | E16: =+EMPLEADOS!K5+EMPLEADOS!K4 -> 12656.515 | F16: 202504.24
A17: PLATAFORMA Y ESTRUCTURA | B17: Armar estructura | C17: 20 | D17: 3 | E17: =+EMPLEADOS!K4+EMPLEADOS!K5+EMPLEADOS!K10 -> 18408.3075 | F17: 368166.15
A18: ENLATADO | B18: Inmunizar estructura | C18: 23 | D18: 2 | E18: =+EMPLEADOS!K9+EMPLEADOS!K10 -> 11503.585 | F18: =+E18*C18 -> 264582.455
A19: ENLATADO | B19: Colocar lámina | C19: 27 | D19: 2 | E19: =+EMPLEADOS!K9+EMPLEADOS!K10 -> 11503.585 | F19: =+E19*C19 -> 310596.795
A20: FRENTES Y TRACEROS EN FIBRA DE VIDRIO | B20: Encerar los moldes | C20: 4 | D20: 1 | E20: =+EMPLEADOS!K4 -> 6328.2575 | F20: =+E20*C20 -> 25313.03
A21: FRENTES Y TRACEROS EN FIBRA DE VIDRIO | B21: Elaboración de piezas de frente en fibra de vidrio | C21: 12 | D21: 2 | E21: =+EMPLEADOS!K3+EMPLEADOS!K4 -> 11791.8175 | F21: 141501.81
A22: FRENTES Y TRACEROS EN FIBRA DE VIDRIO | B22: Elaboración de piezas traseras en fibra de vidrio | C22: 17 | D22: 2 | E22: =+EMPLEADOS!K3+EMPLEADOS!K4 -> 11791.8175 | F22: 200460.8975
A23: FRENTES Y TRACEROS EN FIBRA DE VIDRIO | B23: Desmonte de partes de los moldes | C23: 7 | D23: 2 | E23: =+EMPLEADOS!$K$3+EMPLEADOS!$K$4 -> 11791.8175 | F23: 82542.7225
A24: FRENTES Y TRACEROS EN FIBRA DE VIDRIO | B24: Instalación de las partes | C24: 15 | D24: 2 | E24: =+EMPLEADOS!$K$3+EMPLEADOS!$K$4 -> 11791.8175 | F24: 176877.2625
A25: FRENTES Y TRACEROS EN FIBRA DE VIDRIO | B25: Adecuación de las partes montadas | C25: 6 | D25: 2 | E25: =+EMPLEADOS!$K$3+EMPLEADOS!$K$4 -> 11791.8175 | F25: 70750.905
A26: ESTRIBOS y PUERTAS | B26: Elaboracion de puertas | C26: CONTRATO | E26: 500000 | F26: 500000
A27: ESTRIBOS y PUERTAS | B27: Elaboracion de estribos
A28: ESTRIBOS y PUERTAS | B28: Instalacion de puertas
A29: ESTRIBOS y PUERTAS | B29: Instalacion de estribos
A30: PINTURA | B30: Lijado de carroceria | C30: 6 | D30: 2 | E30: =+EMPLEADOS!$K$6+EMPLEADOS!$K$7 -> 11215.3525 | F30: =+E30*C30 -> 67292.115
A31: PINTURA | B31: Aplicación capa de praymer | C31: 10 | D31: 2 | E31: =+EMPLEADOS!$K$6+EMPLEADOS!$K$7 -> 11215.3525 | F31: =+E31*C31 -> 112153.525
A32: PINTURA | B32: Lijado sobre capa de praymer | C32: 6 | D32: 2 | E32: =+EMPLEADOS!$K$6+EMPLEADOS!$K$7 -> 11215.3525 | F32: 67292.115
A33: PINTURA | B33: Aplicación de Capa de fondo | C33: 9 | D33: 2 | E33: =+EMPLEADOS!$K$6+EMPLEADOS!$K$7 -> 11215.3525 | F33: 100938.1725
A34: PINTURA | B34: Lijado sobre capa de fondo | C34: 6 | D34: 2 | E34: =+EMPLEADOS!$K$6+EMPLEADOS!$K$7 -> 11215.3525 | F34: 67292.115
A35: PINTURA | B35: Aplicación de Capa de masilla | C35: 9 | D35: 2 | E35: =+EMPLEADOS!$K$6+EMPLEADOS!$K$7 -> 11215.3525 | F35: 100938.1725
A36: PINTURA | B36: Lijado sobre capa de masilla | C36: 7 | D36: 2 | E36: =+EMPLEADOS!$K$6+EMPLEADOS!$K$7 -> 11215.3525 | F36: 78507.4675
A37: PINTURA | B37: Aplicación de Capa de fondo | C37: 9 | D37: 2 | E37: =+EMPLEADOS!$K$6+EMPLEADOS!$K$7 -> 11215.3525 | F37: 100938.1725
A38: PINTURA | B38: Lijado sobre la capa de fondo | C38: 6 | D38: 2 | E38: =+EMPLEADOS!$K$6+EMPLEADOS!$K$7 -> 11215.3525 | F38: 67292.115
A39: PINTURA | B39: Aplicacion de pintura | C39: 10 | D39: 2 | E39: =+EMPLEADOS!$K$6+EMPLEADOS!$K$7 -> 11215.3525 | F39: 112153.525
A40: DECORACION ( TECHO FORRADO) | B40: Preparación de techo | C40: 4 | D40: 1 | E40: =+EMPLEADOS!$K$10 -> 5751.7925 | F40: =+E40*C40 -> 23007.17
A41: DECORACION ( TECHO FORRADO) | B41: Doblar Lámina | C41: 6 | D41: 1 | E41: =+EMPLEADOS!$K$10 -> 5751.7925 | F41: 34510.755
A42: DECORACION ( TECHO FORRADO) | B42: Soldar | C42: 7 | D42: 1 | E42: =+EMPLEADOS!$K$10 -> 5751.7925 | F42: 40262.5475
A43: DECORACION ( TECHO FORRADO) | B43: Forrar cajones | C43: 7 | D43: 1 | E43: =+EMPLEADOS!$K$10 -> 5751.7925 | F43: 40262.5475
A44: DECORACION ( TECHO FORRADO) | B44: Instalar | C44: 6 | D44: 2 | E44: =+EMPLEADOS!$K$10+EMPLEADOS!$K$9 -> 11503.585 | F44: 69021.51
A45: DECORACION ( TECHO FIBRA) | B45: Limpiar moldes | C45: 1.5 | D45: 1 | E45: =+EMPLEADOS!$K$4 -> 6328.2575 | F45: 9492.38625
A46: DECORACION ( TECHO FIBRA) | B46: Fabricar piezas | C46: 8 | D46: 2 | E46: =+EMPLEADOS!$K$3+EMPLEADOS!$K$4 -> 11791.8175 | F46: =+E46*C46 -> 94334.54
A47: DECORACION ( TECHO FIBRA) | B47: Lijado de Piezas | C47: 4 | D47: 2 | E47: =+EMPLEADOS!$K$3+EMPLEADOS!$K$4 -> 11791.8175 | F47: 47167.27
A48: DECORACION ( TECHO FIBRA) | B48: Aplicación capa de praymer | C48: 4 | D48: 1 | E48: =+EMPLEADOS!$K$4 -> 6328.2575 | F48: 25313.03
A49: DECORACION ( TECHO FIBRA) | B49: Lijado sobre capa de praymer | C49: 3 | D49: 2 | E49: =+EMPLEADOS!$K$3+EMPLEADOS!$K$4 -> 11791.8175 | F49: 35375.4525
A50: DECORACION ( TECHO FIBRA) | B50: Aplicación de Capa de fondo | C50: 4 | D50: 1 | E50: =+EMPLEADOS!$K$4 -> 6328.2575 | F50: 25313.03
A51: DECORACION ( TECHO FIBRA) | B51: Lijado sobre capa de fondo | C51: 3 | D51: 1 | E51: =+EMPLEADOS!$K$4 -> 6328.2575 | F51: 18984.7725
A52: DECORACION ( TECHO FIBRA) | B52: Aplicación de Capa de masilla | C52: 4 | D52: 1 | E52: =+EMPLEADOS!$K$4 -> 6328.2575 | F52: 25313.03
A53: DECORACION ( TECHO FIBRA) | B53: Lijado sobre capa de masilla | C53: 3 | D53: 1 | E53: =+EMPLEADOS!$K$4 -> 6328.2575 | F53: 18984.7725
A54: DECORACION ( TECHO FIBRA) | B54: Aplicación de Capa de fondo | C54: 4 | D54: 1 | E54: =+EMPLEADOS!$K$4 -> 6328.2575 | F54: 25313.03
A55: DECORACION ( TECHO FIBRA) | B55: Lijado sobre la capa de fondo | C55: 3 | D55: 1 | E55: =+EMPLEADOS!$K$4 -> 6328.2575 | F55: 18984.7725
A56: DECORACION ( TECHO FIBRA) | B56: Pintar piezas | C56: 9 | D56: 1 | E56: =+EMPLEADOS!$K$4 -> 6328.2575 | F56: 56954.3175
A57: DECORACION ( PISO EN HULE) | B57: Preparación de piso | C57: 5 | D57: 1 | E57: =+EMPLEADOS!K10 -> 5751.7925 | F57: =+E57*C57 -> 28758.9625
A58: DECORACION ( PISO EN HULE) | B58: Instalación de piso en madera | C58: 11 | D58: 2 | E58: =+EMPLEADOS!$K$9+EMPLEADOS!$K$10 -> 11503.585 | F58: 126539.435
A59: DECORACION ( PISO EN HULE) | B59: Instalación de piso en caucho | C59: 9 | D59: 2 | E59: =+EMPLEADOS!$K$9+EMPLEADOS!$K$10 -> 11503.585 | F59: 103532.265
A60: DECORACION ( PISO EN HULE) | B60: piso parte delantera | C60: 4 | D60: 1 | E60: =+EMPLEADOS!$K$10 -> 5751.7925 | F60: 23007.17
A61: DECORACION ( PISO EN LAMINA) | B61: Preparación de piso | C61: 3 | D61: 1 | E61: =+EMPLEADOS!$K$10 -> 5751.7925 | F61: 17255.3775
A62: DECORACION ( PISO EN LAMINA) | B62: Instalación de piso en madera | C62: 6 | D62: 2 | E62: =+EMPLEADOS!$K$9+EMPLEADOS!$K$10 -> 11503.585 | F62: 69021.51
A63: DECORACION ( PISO EN LAMINA) | B63: Instalación de piso en lámina | C63: 7 | D63: 2 | E63: =+EMPLEADOS!$K$9+EMPLEADOS!$K$10 -> 11503.585 | F63: 80525.095
A64: DECORACION (VIDRIOS Y LUJOS) | B64: Adecuacion de cajones internos | C64: 3 | D64: 1 | E64: =+EMPLEADOS!$K$10 -> 5751.7925 | F64: 17255.3775
A65: DECORACION (VIDRIOS Y LUJOS) | B65: Instalar claraboyá | C65: 4 | D65: 1 | E65: =+EMPLEADOS!$K$10 -> 5751.7925 | F65: 23007.17
A66: DECORACION (VIDRIOS Y LUJOS) | B66: Instalar unidades | C66: 3 | D66: 1 | E66: =+EMPLEADOS!$K$10 -> 5751.7925 | F66: 17255.3775
A67: DECORACION (VIDRIOS Y LUJOS) | B67: Instalar vidrios | C67: CONTRATO | E67: 5300000 | F67: =+E67 -> 5300000
A68: ADECUACIONES ELÉCTRICAS | B68: Instalación de motores de limpia brisas | C68: 3 | D68: 2 | E68: =+EMPLEADOS!$K$3+EMPLEADOS!$K$10 -> 11215.3525 | F68: =+E68*C68 -> 33646.0575
A69: ADECUACIONES ELÉCTRICAS | B69: Instalación de espejos | C69: 3 | D69: 1 | E69: =+EMPLEADOS!$K$10 -> 5751.7925 | F69: =+E69*C69 -> 17255.3775
A70: ADECUACIONES ELÉCTRICAS | B70: Instalación de velas | C70: 2 | D70: 1 | E70: =+EMPLEADOS!$K$10 -> 5751.7925 | F70: 11503.585
A71: ADECUACIONES ELÉCTRICAS | B71: Instalación de licuadoras | C71: 3 | D71: 2 | E71: =+EMPLEADOS!$K$3+EMPLEADOS!$K$10 -> 11215.3525 | F71: 33646.0575
A72: ADECUACIONES ELÉCTRICAS | B72: Instalación de radio | C72: 4 | D72: 2 | E72: =+EMPLEADOS!$K$3+EMPLEADOS!$K$10 -> 11215.3525 | F72: 44861.41
A73: ADECUACIONES ELÉCTRICAS | B73: Instalación de parlantes | C73: 3 | D73: 2 | E73: =+EMPLEADOS!$K$3+EMPLEADOS!$K$10 -> 11215.3525 | F73: 33646.0575
A74: ADECUACIONES ELÉCTRICAS | B74: Adecuación de alumbrado interno | C74: 6 | D74: 2 | E74: =+EMPLEADOS!$K$3+EMPLEADOS!$K$10 -> 11215.3525 | F74: 67292.115
A75: ADECUACIONES ELÉCTRICAS | B75: Adecuación de Boster | C75: 4 | D75: 2 | E75: =+EMPLEADOS!$K$3+EMPLEADOS!$K$10 -> 11215.3525 | F75: 44861.41
A76: SILLETERIA | B76: Hechura de estructura | C76: =88+18 -> 106 | D76: 1 | E76: =+EMPLEADOS!$K$10 -> 5751.7925 | F76: =+E76*C76 -> 609690.005
A77: SILLETERIA | B77: Tapizada | C77: =65+16 -> 81 | D77: 2 | E77: =+EMPLEADOS!$K$3+EMPLEADOS!$K$10 -> 11215.3525 | F77: 908443.5525
A78: SILLETERIA | B78: Instalación de sillas | C78: =32+18 -> 50 | D78: 2 | E78: =+EMPLEADOS!$K$3+EMPLEADOS!$K$10 -> 11215.3525 | F78: 560767.625
A79: DECORACION GENERAL | B79: Instalacion de tubos pasamanos | C79: 3 | D79: 2 | E79: =+EMPLEADOS!$K$3+EMPLEADOS!$K$10 -> 11215.3525 | F79: 33646.0575
A80: DECORACION GENERAL | B80: Instalacion de calcomanias de emergencia | C80: 1 | D80: 1 | E80: =+EMPLEADOS!$K$10 -> 5751.7925 | F80: 5751.7925
A81: DECORACION GENERAL | B81: Instalacion de logos | C81: 2 | D81: 1 | E81: =+EMPLEADOS!$K$10 -> 5751.7925 | F81: 11503.585
A82: DECORACION GENERAL | B82: Instalacion de martillos de seguridad | C82: 1 | D82: 1 | E82: =+EMPLEADOS!$K$10 -> 5751.7925 | F82: 5751.7925
B83: TOTAL | F83: =SUM(F7:F82) -> 12718401.31

Sheet EMPLEADOS
A1: EMPLEADO | B1: CARGO | C1: SUELDO MENSUAL | D1: AUXILIO DE TRANSPORTE | E1: SEGURIDAD SOCIAL | F1: VLR HORA SUELDO | G1: VLR HORA PRIMA | H1: VLR HORA CESANTIAS | I1: VLR HORA INTERESES | J1: VL HORA VACACIONES | K1: VALOR HORA DE TRABAJO
A2: NEMECIO | B2: JEFE DE PRODUCCION | C2: =1360000-D2 -> 1360000 | D2: 0 | E2: =+(((C2+D2)/240)*16.522%) -> 936.2466667 | F2: =(+C2+D2)/240 -> 5666.666667 | G2: =((((+C2+D2)*8.33%)/240)) -> 472.0333333 | H2: =+((((C2+D2)*8.33%)/240)) -> 472.0333333 | I2: =+H2*12% -> 56.644 | J2: =(+C2*4.17%)/240 -> 236.3 | K2: =SUM(E2:J2) -> 7839.924
A3: JOSE RATIVA | B3: ELECTRICO Y FIBRA DE VIDRIO | C3: =950000-D3 -> 876000 | D3: 74000 | E3: =+(((C3+D3)/240)*16.522%) -> 653.9958333 | F3: =(+C3+D3)/240 -> 3958.333333 | G3: =((((+C3+D3)*8.33%)/240)) -> 329.7291667 | H3: =+((((C3+D3)*8.33%)/240)) -> 329.7291667 | I3: =+H3*12% -> 39.5675 | J3: =(+C3*4.17%)/240 -> 152.205 | K3: =SUM(E3:J3) -> 5463.56
A4: ALBERTO CASTIBLANCO | B4: FIBRA DE VIDRIO- PLATAFORMA | C4: =1100000-D4 -> 1026000 | D4: 74000 | E4: 757.2583333 | F4: 4583.333333 | G4: 381.7916667 | H4: 381.7916667 | I4: 45.815 | J4: 178.2675 | K4: 6328.2575
A5: ORLANDO GUIO | B5: PLATAFORMA Y ESTRUCTURA | C5: =1100000-D5 -> 1026000 | D5: 74000 | E5: 757.2583333 | F5: 4583.333333 | G5: 381.7916667 | H5: 381.7916667 | I5: 45.815 | J5: 178.2675 | K5: 6328.2575
A6: LUIS GONZALEZ | B6: PINTURA | C6: =950000-D6 -> 876000 | D6: 74000 | E6: 653.9958333 | F6: 3958.333333 | G6: 329.7291667 | H6: 329.7291667 | I6: 39.5675 | J6: 152.205 | K6: 5463.56
A7: HERMES ZABALA | B7: PINTURA | C7: =1000000-D7 -> 926000 | D7: 74000 | E7: 688.4166667 | F7: 4166.666667 | G7: 347.0833333 | H7: 347.0833333 | I7: 41.65 | J7: 160.8925 | K7: 5751.7925
A8: ALEXANDER PEÑA | B8: SILLETERIA Y PLATAFORMA | C8: =1000000-D8 -> 926000 | D8: 74000 | E8: 688.4166667 | F8: 4166.666667 | G8: 347.0833333 | H8: 347.0833333 | I8: 41.65 | J8: 160.8925 | K8: 5751.7925
A9: ADELMO SILVA | B9: PLATAFORMA Y ENLATADO Y DECORACION | C9: =1000000-D9 -> 926000 | D9: 74000 | E9: 688.4166667 | F9: 4166.666667 | G9: 347.0833333 | H9: 347.0833333 | I9: 41.65 | J9: 160.8925 | K9: 5751.7925
A10: FELIPE CASTRO | B10: ALISTAMIENTO DE CHASIS Y DECORACION | C10: =1000000-D10 -> 926000 | D10: 74000 | E10: 688.4166667 | F10: =(+C10+D10)/240 -> 4166.666667 | G10: =((((+C10+D10)*8.33%)/240)) -> 347.0833333 | H10: =+((((C10+D10)*8.33%)/240)) -> 347.0833333 | I10: 41.65 | J10: =(+C10*4.17%)/240 -> 160.8925 | K10: =SUM(E10:J10) -> 5751.7925
A11: MARIBEL PATARROYO | B11: ASISTENTE ADMINISTRATIVA | C11: 700000 | D11: 74000 | E11: 532.8345 | F11: =(+C11+D11)/240 -> 3225 | G11: =((((+C11+D11)*8.33%)/240)) -> 268.6425 | H11: =+((((C11+D11)*8.33%)/240)) -> 268.6425 | I11: 32.2371 | J11: =(+C11*4.17%)/240 -> 121.625 | K11: =SUM(E11:J11) -> 4448.9816
A12: HUGO ALFONSO ESTUPIÑAN MEJIA | B12: GERENTE | C12: 1420000 | D12: 0 | E12: 0 | F12: 5916.666667 | G12: 0 | H12: 0 | I12: 0 | J12: 0 | K12: 5916.666667

Sheet CIF
A1: PROCESO | B1: SALARIOS ADMINISTRATIVOS | C1: SALARIO JEFE DE PRODUCCION | D1: ARRENDAMIENTO | E1: DEPRECIACION CORTADORA | F1: DEPRECIACION DOBLADORA | G1: ENERGIA ELECTRICA | H1: ACUEDUCTO | I1: ALCANTARILLADO | J1: TELEFONIA | K1: INTERNET
A2: ALISTAMIENTO DE CHASIS | B2: 0.05 | C2: 2.4 | D2: 12 | G2: 39.92 | H2: 0
A3: PLATAFORMA Y ESTRUCTURA | B3: 0.05 | C3: 18 | D3: 20 | E3: 0.8 | F3: 0.8 | G3: 329.34
A4: ENLATADO | B4: 0.05 | C4: 9.6 | D4: 12 | G4: 69.86
A5: FRENTES Y TRACEROS EN FIBRA DE VIDRIO | B5: 0.05 | C5: 12 | D5: 20 | G5: 59.88 | H5: 25.5 | I5: 10.5
A6: ESTRIBOS, PUERTAS Y BODEGAS | B6: 0.05 | C6: 1.2 | D6: 9 | G6: 69.86 | I6: 0
A7: PINTURA | B7: 0.05 | C7: 8.4 | D7: 13 | G7: 59.88 | H7: 51 | I7: 21
A8: DECORACIÓN | B8: 0.05 | C8: 36 | D8: 10 | E8: 0.2 | F8: 0.2 | G8: 99.8 | I8: 0
A9: ADECUACIONES ELÉCTRICAS | B9: 0.05 | C9: 14.4 | D9: 12 | G9: 59.88 | I9: 0
A10: MANTENIMIENTO | B10: 0.05 | C10: 7.2 | D10: 7 | G10: 49.9 | H10: 51 | I10: 21
A11: SILLETERIA | B11: 0.05 | C11: 10.8 | D11: 12 | G11: 69.86 | I11: 0
A12: DEPARTAMENTO ADMINISTRATIVO | B12: 0.5 | C12: 0 | D12: 23 | G12: 89.82 | H12: 42.5 | I12: 17.5 | J12: 450 | K12: 2
D13: =SUM(D2:D12) -> 150
A15: DISTRIBUCION DE OTROS COSTOS INDIRECTOS DE FABRICACION
A16: PROCESO | B16: SALARIOS ADMINISTRATIVOS | C16: SALARIO JEFE DE PRODUCCION | D16: ARRENDAMIENTO | E16: DEPRECIACION CORTADORA | F16: DEPRECIACION DOBLADORA | G16: ENERGIA ELECTRICA | H16: ACUEDUCTO | I16: ALCANTARILLADO | J16: TELEFONIA | K16: INTERNET | L16: TOTAL
A17: ALISTAMIENTO DE CHASIS | B17: =((((EMPLEADOS!$K$11+EMPLEADOS!$K$12)*240)/PLIQUIDACION!$D$12)*B2) -> 124387.7792 | C17: =EMPLEADOS!K2*CIF!C2 -> 18815.8176 | D17: =(($F$31/150)*D2) -> 105600 | G17: =+$F$34*G2 -> 17987.952 | H17: =+$F$35*H2 -> 0 | I17: =$F$36*I2 -> 0 | J17: =+J2*$F$37 -> 0 | K17: =+$F$38*K2 -> 0 | L17: =SUM(B17:K17) -> 266791.5488
A18: PLATAFORMA Y ESTRUCTURA | B18: =((((EMPLEADOS!$K$11+EMPLEADOS!$K$12)*240)/PLIQUIDACION!$D$12)*B3) -> 124387.7792 | C18: =EMPLEADOS!K3*CIF!C3 -> 98344.08 | D18: =(($F$31/150)*D3) -> 176000 | E18: =250000*80% -> 200000 | F18: =F33*80% -> 248000 | G18: =+$F$34*G3 -> 148400.604 | H18: =+$F$35*H3 -> 0 | I18: =$F$36*I3 -> 0 | J18: =+J3*$F$37 -> 0 | K18: =+$F$38*K3 -> 0 | L18: =SUM(B18:K18) -> 995132.4632
A19: ENLATADO | B19: =((((EMPLEADOS!$K$11+EMPLEADOS!$K$12)*240)/PLIQUIDACION!$D$12)*B4) -> 124387.7792 | C19: =EMPLEADOS!K4*CIF!C4 -> 60751.272 | D19: 105600 | G19: 31478.916 | H19: 0 | I19: 0 | J19: 0 | K19: 0 | L19: 322217.9672
A20: FRENTES Y TRACEROS EN FIBRA DE VIDRIO | B20: =((((EMPLEADOS!$K$11+EMPLEADOS!$K$12)*240)/PLIQUIDACION!$D$12)*B5) -> 124387.7792 | C20: =EMPLEADOS!K5*CIF!C5 -> 75939.09 | D20: 176000 | G20: 26981.928 | H20: 21726 | I20: 9030 | J20: 0 | K20: 0 | L20: 434064.7972
A21: ESTRIBOS, PUERTAS Y BODEGAS | B21: =((((EMPLEADOS!$K$11+EMPLEADOS!$K$12)*240)/PLIQUIDACION!$D$12)*B6) -> 124387.7792 | C21: =EMPLEADOS!K6*CIF!C6 -> 6556.272 | D21: 79200 | G21: 31478.916 | H21: 0 | I21: 0 | J21: 0 | K21: 0 | L21: 241622.9672
A22: PINTURA | B22: =((((EMPLEADOS!$K$11+EMPLEADOS!$K$12)*240)/PLIQUIDACION!$D$12)*B7) -> 124387.7792 | C22: =EMPLEADOS!K7*CIF!C7 -> 48315.057 | D22: 114400 | G22: 26981.928 | H22: 43452 | I22: 18060 | J22: 0 | K22: 0 | L22: 375596.7642
A23: DECORACIÓN | B23: =((((EMPLEADOS!$K$11+EMPLEADOS!$K$12)*240)/PLIQUIDACION!$D$12)*B8) -> 124387.7792 | C23: =EMPLEADOS!K8*CIF!C8 -> 207064.53 | D23: 88000 | E23: 50000 | F23: =F33*20% -> 62000 | G23: 44969.88 | H23: 0 | I23: 0 | J23: 0 | K23: 0 | L23: 576422.1892
A24: ADECUACIONES ELÉCTRICAS | B24: =((((EMPLEADOS!$K$11+EMPLEADOS!$K$12)*240)/PLIQUIDACION!$D$12)*B9) -> 124387.7792 | C24: =EMPLEADOS!K9*CIF!C9 -> 82825.812 | D24: 105600 | G24: 26981.928 | H24: 0 | I24: 0 | J24: 0 | K24: 0 | L24: 339795.5192
A25: MANTENIMIENTO | B25: =((((EMPLEADOS!$K$11+EMPLEADOS!$K$12)*240)/PLIQUIDACION!$D$12)*B10) -> 124387.7792 | C25: =EMPLEADOS!K10*CIF!C10 -> 41412.906 | D25: 61600 | G25: 22484.94 | H25: 43452 | I25: 18060 | J25: 0 | K25: 0 | L25: 311397.6252
A26: SILLETERIA | B26: =((((EMPLEADOS!$K$11+EMPLEADOS!$K$12)*240)/PLIQUIDACION!$D$12)*B11) -> 124387.7792 | C26: =EMPLEADOS!K11*CIF!C11 -> 48049.00128 | D26: 105600 | G26: 31478.916 | H26: 0 | I26: 0 | J26: 0 | K26: 0 | L26: 309515.6965
A27: DEPARTAMENTO ADMINISTRATIVO | B27: =((((EMPLEADOS!$K$11+EMPLEADOS!$K$12)*240)/PLIQUIDACION!$D$12)*B12) -> 1243877.792 | C27: =EMPLEADOS!K12*CIF!C12 -> 0 | D27: 202400 | G27: 40472.892 | H27: 36210 | I27: 15050 | J27: =+J12*$F$37 -> 45000 | K27: 50000 | L27: 1633010.684
D28: CONCEPTO | E28: INDUCTOR | F28: VALOR MENSUAL
A29: FORMULA UTILIZADA | D29: SALARIOS ADMINISTRATIVOS | E29: HORAS HOMBRE | F29: $ 2.484.000.00
A30: =+B16 -> SALARIOS ADMINISTRATIVOS | B30: =(SAL.TRAB/240*HORAS TRABAJADAS)/#CARROCERIAS FAB | D30: SALARIO JEFE DE PRODUCCION | E30: HORAS HOMBRE | F30: 1300000
A31: =+C16 -> SALARIO JEFE DE PRODUCCION | B31: =SAL.JEF.PROD/240*HORASTRABAJADAS | D31: ARRENDAMIENTO | E31: MTS CUADRADOS | F31: 1320000
A32: =+D16 -> ARRENDAMIENTO | B32: =VLR ARREN/MTS2 UTILIZADOS | D32: DEPRECIACION CORTADORA | E32: HORAS MAQUINA | F32: 250000
A33: =+E16 -> DEPRECIACION CORTADORA | B33: =VLR DEPR MENS/# CARROCERIAS FAB | D33: DEPRECIACION DOBLADORA | E33: HORAS MAQUINA | F33: 310000
A34: =+F16 -> DEPRECIACION DOBLADORA | B34: =VLR DEPR MENS/# CARROCERIAS FAB | D34: ENERGIA ELECTRICA | E34: KW | F34: 450.6
A35: =+G16 -> ENERGIA ELECTRICA | B35: =VLR KW*KW UTILIZADO | D35: ACUEDUCTO | E35: M3 | F35: 852
A36: =+H16 -> ACUEDUCTO | B36: =VLR M3 *M3 UTILIZADO | D36: ALCANTARILLADO | E36: M3 | F36: 860
A37: =+I16 -> ALCANTARILLADO | B37: =VLR M3 *M3 UTILIZADO | D37: TELEFONIA | E37: MINUTOS | F37: 100
A38: =+J16 -> TELEFONIA | B38: =VLR MIN*MIN UTILIZADO | D38: INTERNET | E38: GB | F38: 25000
A39: =+K16 -> INTERNET | B39: =VLR GB*GB UTILIZADO

Sheet LD (hidden)
A2: TIPO DE CARROCERIAS
A3: URBANA
A4: INTERMUNICIPAL

Sheet Hoja3 (hidden)

Sheet INFORMES
A1: INFORME DE COSTEO POR ABC
J3: COSTOS INDIRECTOS DE FABRICACION
A4: FASES EN EL PROCESO PRODUCTIVO | B4: ACTIVIDADES | C4: TIPPO CARROCERIA | D4: VARIABLE 2 | E4: MPD | F4: MOD | G4: MID | H4: MATERIALES DIRECTOS | I4: MANO DE OBRA DIRECTA | J4: MPI | K4: MOI | L4: OTROS CIF | M4: TOTAL COSTOS | N4: PROCESO
A5: ALISTAMIENTO DE CHASIS | B5: Acondicionamiento de filtro de aire | C5: =IF(PLIQUIDACION!$D$6="URBANA","URBANA","INTERMUNICIPAL") -> INTERMUNICIPAL | H5: =IF(INFORMES!C5="URBANA",VLOOKUP(B5,CONMPU!$A$1:$E$91,2,FALSE),VLOOKUP(INFORMES!B5,CONMPI!$A$1:$D$93,2,FALSE)) -> 0 | I5: =IF(C5="URBANA",VLOOKUP(B5,MODURBANA!$B$6:$F$81,5,FALSE),VLOOKUP(B5,MODINTER!$B$7:$F$82,5,FALSE)) -> 46014.34 | J5: =IF(INFORMES!C5="URBANA",VLOOKUP(B5,CONMPU!$A$1:$E$91,3,FALSE),VLOOKUP(INFORMES!B5,CONMPI!$A$1:$D$93,3,FALSE)) -> 34100 | K5: =+CIF!B17+CIF!C17 -> 143203.5968 | L5: =+CIF!D17+CIF!E17+CIF!F17+CIF!G17+CIF!H17+CIF!I17+CIF!J17+CIF!K17 -> 123587.952 | M5: =+H5+I5+J5+K5+L5 -> 346905.8888 | N5: ALISTAMIENTO CHASIS
B6: Acondicionamiento de filtro de combustible | C6: =IF(PLIQUIDACION!$D$6="URBANA","URBANA","INTERMUNICIPAL") -> INTERMUNICIPAL | H6: =IF(INFORMES!C6="URBANA",VLOOKUP(B6,CONMPU!$A$1:$E$91,2,FALSE),VLOOKUP(INFORMES!B6,CONMPI!$A$1:$D$93,2,FALSE)) -> 0 | I6: =IF(C6="URBANA",VLOOKUP(B6,MODURBANA!$B$6:$F$81,5,FALSE),VLOOKUP(B6,MODINTER!$B$7:$F$82,5,FALSE)) -> 11503.585 | J6: =IF(INFORMES!C6="URBANA",VLOOKUP(B6,CONMPU!$A$1:$E$91,3,FALSE),VLOOKUP(INFORMES!B6,CONMPI!$A$1:$D$93,3,FALSE)) -> 0 | M6: =+H6+I6+J6+K6+L6 -> 11503.585 | N6: ALISTAMIENTO CHASIS
B7: Acondicimiento de bateria | C7: =IF(PLIQUIDACION!$D$6="URBANA","URBANA","INTERMUNICIPAL") -> INTERMUNICIPAL | H7: =IF(INFORMES!C7="URBANA",VLOOKUP(B7,CONMPU!$A$1:$E$91,2,FALSE),VLOOKUP(INFORMES!B7,CONMPI!$A$1:$D$93,2,FALSE)) -> 0 | I7: =IF(C7="URBANA",VLOOKUP(B7,MODURBANA!$B$6:$F$81,5,FALSE),VLOOKUP(B7,MODINTER!$B$7:$F$82,5,FALSE)) -> 11503.585 | J7: =IF(INFORMES!C7="URBANA",VLOOKUP(B7,CONMPU!$A$1:$E$91,3,FALSE),VLOOKUP(INFORMES!B7,CONMPI!$A$1:$D$93,3,FALSE)) -> 0 | M7: 11503.585 | N7: ALISTAMIENTO CHASIS
B8: Acondicimineto de portarepuestos | C8: =IF(PLIQUIDACION!$D$6="URBANA","URBANA","INTERMUNICIPAL") -> INTERMUNICIPAL | H8: =IF(INFORMES!C8="URBANA",VLOOKUP(B8,CONMPU!$A$1:$E$91,2,FALSE),VLOOKUP(INFORMES!B8,CONMPI!$A$1:$D$93,2,FALSE)) -> 0 | I8: =IF(C8="URBANA",VLOOKUP(B8,MODURBANA!$B$6:$F$81,5,FALSE),VLOOKUP(B8,MODINTER!$B$7:$F$82,5,FALSE)) -> 23007.17 | J8: =IF(INFORMES!C8="URBANA",VLOOKUP(B8,CONMPU!$A$1:$E$91,3,FALSE),VLOOKUP(INFORMES!B8,CONMPI!$A$1:$D$93,3,FALSE)) -> 0 | M8: 23007.17 | N8: ALISTAMIENTO CHASIS
B9: Instalación de banda | C9: =IF(PLIQUIDACION!$D$6="URBANA","URBANA","INTERMUNICIPAL") -> INTERMUNICIPAL | H9: =IF(INFORMES!C9="URBANA",VLOOKUP(B9,CONMPU!$A$1:$E$91,2,FALSE),VLOOKUP(INFORMES!B9,CONMPI!$A$1:$D$93,2,FALSE)) -> 0 | I9: =IF(C9="URBANA",VLOOKUP(B9,MODURBANA!$B$6:$F$81,5,FALSE),VLOOKUP(B9,MODINTER!$B$7:$F$82,5,FALSE)) -> 96640.4 | J9: =IF(INFORMES!C9="URBANA",VLOOKUP(B9,CONMPU!$A$1:$E$91,3,FALSE),VLOOKUP(INFORMES!B9,CONMPI!$A$1:$D$93,3,FALSE)) -> 32000 | M9: 128640.4 | N9: ALISTAMIENTO CHASIS
A10: PLATAFORMA Y ESTRUCTURA | B10: Cortar Lámina | C10: =IF(PLIQUIDACION!$D$6="URBANA","URBANA","INTERMUNICIPAL") -> INTERMUNICIPAL | H10: =IF(INFORMES!C10="URBANA",VLOOKUP(B10,CONMPU!$A$81:$E$86,2,FALSE),VLOOKUP(INFORMES!B10,CONMPI!$A$83:$D$88,2,FALSE)) -> 345000 | I10: =IF(C10="URBANA",VLOOKUP(B10,MODURBANA!$B$6:$F$81,5,FALSE),VLOOKUP(B10,MODINTER!$B$7:$F$82,5,FALSE)) -> 113908.635 | J10: =IF(INFORMES!C10="URBANA",VLOOKUP(B10,CONMPU!$A$1:$E$91,3,FALSE),VLOOKUP(INFORMES!B10,CONMPI!$A$1:$D$93,3,FALSE)) -> 0 | K10: =+CIF!B18+CIF!C18 -> 222731.8592 | L10: =+CIF!D18+CIF!E18+CIF!F18+CIF!G18+CIF!H18+CIF!I18+CIF!J18+CIF!K18 -> 772400.604 | M10: 1454041.098 | N10: PLATAFORMA Y ESTRUCTURA
B11: Doblar Lámina | C11: =IF(PLIQUIDACION!$D$6="URBANA","URBANA","INTERMUNICIPAL") -> INTERMUNICIPAL | H11: =IF(INFORMES!C11="URBANA",VLOOKUP(B11,CONMPU!$A$81:$E$86,2,FALSE),VLOOKUP(INFORMES!B11,CONMPI!$A$83:$D$88,2,FALSE)) -> 0 | I11: =IF(C11="URBANA",VLOOKUP(B11,MODURBANA!$B$6:$F$81,5,FALSE),VLOOKUP(B11,MODINTER!$B$7:$F$82,5,FALSE)) -> 63282.575 | J11: =IF(INFORMES!C11="URBANA",VLOOKUP(B11,CONMPU!$A$1:$E$91,3,FALSE),VLOOKUP(INFORMES!B11,CONMPI!$A$1:$D$93,3,FALSE)) -> 0 | M11: 63282.575 | N11: PLATAFORMA Y ESTRUCTURA
B12: Soldada de puentes | C12: =IF(PLIQUIDACION!$D$6="URBANA","URBANA","INTERMUNICIPAL") -> INTERMUNICIPAL | H12: =IF(INFORMES!C12="URBANA",VLOOKUP(B12,CONMPU!$A$81:$E$86,2,FALSE),VLOOKUP(INFORMES!B12,CONMPI!$A$83:$D$88,2,FALSE)) -> 0 | I12: =IF(C12="URBANA",VLOOKUP(B12,MODURBANA!$B$6:$F$81,5,FALSE),VLOOKUP(B12,MODINTER!$B$7:$F$82,5,FALSE)) -> 120236.8925 | J12: =IF(INFORMES!C12="URBANA",VLOOKUP(B12,CONMPU!$A$1:$E$91,3,FALSE),VLOOKUP(INFORMES!B12,CONMPI!$A$1:$D$93,3,FALSE)) -> 495000 | M12: 615236.8925 | N12: PLATAFORMA Y ESTRUCTURA
B13: Elaboración de arcos y frentes | C13: =IF(PLIQUIDACION!$D$6="URBANA","URBANA","INTERMUNICIPAL") -> INTERMUNICIPAL | H13: =IF(INFORMES!C13="URBANA",VLOOKUP(B13,CONMPU!$A$81:$E$86,2,FALSE),VLOOKUP(INFORMES!B13,CONMPI!$A$83:$D$88,2,FALSE)) -> 5124000 | I13: =IF(C13="URBANA",VLOOKUP(B13,MODURBANA!$B$6:$F$81,5,FALSE),VLOOKUP(B13,MODINTER!$B$7:$F$82,5,FALSE)) -> 177191.21 | J13: =IF(INFORMES!C13="URBANA",VLOOKUP(B13,CONMPU!$A$1:$E$91,3,FALSE),VLOOKUP(INFORMES!B13,CONMPI!$A$1:$D$93,3,FALSE)) -> 0 | M13: 5301191.21 | N13: PLATAFORMA Y ESTRUCTURA
B14: Armar plataforma con los puentes | C14: =IF(PLIQUIDACION!$D$6="URBANA","URBANA","INTERMUNICIPAL") -> INTERMUNICIPAL | H14: =IF(INFORMES!C14="URBANA",VLOOKUP(B14,CONMPU!$A$81:$E$86,2,FALSE),VLOOKUP(INFORMES!B14,CONMPI!$A$83:$D$88,2,FALSE)) -> 0 | I14: =IF(C14="URBANA",VLOOKUP(B14,MODURBANA!$B$6:$F$81,5,FALSE),VLOOKUP(B14,MODINTER!$B$7:$F$82,5,FALSE)) -> 202504.24 | J14: =IF(INFORMES!C14="URBANA",VLOOKUP(B14,CONMPU!$A$1:$E$91,3,FALSE),VLOOKUP(INFORMES!B14,CONMPI!$A$1:$D$93,3,FALSE)) -> 600000 | M14: 802504.24 | N14: PLATAFORMA Y ESTRUCTURA
B15: Armar estructura | C15: =IF(PLIQUIDACION!$D$6="URBANA","URBANA","INTERMUNICIPAL") -> INTERMUNICIPAL | H15: =IF(INFORMES!C15="URBANA",VLOOKUP(B15,CONMPU!$A$81:$E$86,2,FALSE),VLOOKUP(INFORMES!B15,CONMPI!$A$83:$D$88,2,FALSE)) -> 0 | I15: =IF(C15="URBANA",VLOOKUP(B15,MODURBANA!$B$6:$F$81,5,FALSE),VLOOKUP(B15,MODINTER!$B$7:$F$82,5,FALSE)) -> 368166.15 | J15: =IF(INFORMES!C15="URBANA",VLOOKUP(B15,CONMPU!$A$1:$E$91,3,FALSE),VLOOKUP(INFORMES!B15,CONMPI!$A$1:$D$93,3,FALSE)) -> 608884.26 | M15: 977050.41 | N15: PLATAFORMA Y ESTRUCTURA
A16: ENLATADO | B16: Inmunizar estructura | C16: =IF(PLIQUIDACION!$D$6="URBANA","URBANA","INTERMUNICIPAL") -> INTERMUNICIPAL | H16: =IF(INFORMES!C16="URBANA",VLOOKUP(B16,CONMPU!$A$1:$E$91,2,FALSE),VLOOKUP(INFORMES!B16,CONMPI!$A$1:$D$93,2,FALSE)) -> 0 | I16: =IF(C16="URBANA",VLOOKUP(B16,MODURBANA!$B$6:$F$81,5,FALSE),VLOOKUP(B16,MODINTER!$B$7:$F$82,5,FALSE)) -> 264582.455 | J16: =IF(INFORMES!C16="URBANA",VLOOKUP(B16,CONMPU!$A$1:$E$91,3,FALSE),VLOOKUP(INFORMES!B16,CONMPI!$A$1:$D$93,3,FALSE)) -> 417840 | K16: =+CIF!B19+CIF!C19 -> 185139.0512 | L16: =+CIF!D19+CIF!E19+CIF!F19+CIF!G19+CIF!H19+CIF!I19+CIF!J19+CIF!K19 -> 137078.916 | M16: 1004640.422 | N16: ENLATADO
B17: Colocar lámina | C17: =IF(PLIQUIDACION!$D$6="URBANA","URBANA","INTERMUNICIPAL") -> INTERMUNICIPAL | H17: =IF(INFORMES!C17="URBANA",VLOOKUP(B17,CONMPU!$A$1:$E$91,2,FALSE),VLOOKUP(INFORMES!B17,CONMPI!$A$1:$D$93,2,FALSE)) -> 1044508 | I17: =IF(C17="URBANA",VLOOKUP(B17,MODURBANA!$B$6:$F$81,5,FALSE),VLOOKUP(B17,MODINTER!$B$7:$F$82,5,FALSE)) -> 310596.795 | J17: =IF(INFORMES!C17="URBANA",VLOOKUP(B17,CONMPU!$A$1:$E$91,3,FALSE),VLOOKUP(INFORMES!B17,CONMPI!$A$1:$D$93,3,FALSE)) -> 402790 | M17: 1757894.795 | N17: ENLATADO
A18: FRENTES Y TRACEROS EN FIBRA DE VIDRIO | B18: Encerar los moldes | C18: =IF(PLIQUIDACION!$D$6="URBANA","URBANA","INTERMUNICIPAL") -> INTERMUNICIPAL | H18: =IF(INFORMES!C18="URBANA",VLOOKUP(B18,CONMPU!$A$1:$E$91,2,FALSE),VLOOKUP(INFORMES!B18,CONMPI!$A$1:$D$93,2,FALSE)) -> 455000 | I18: =IF(C18="URBANA",VLOOKUP(B18,MODURBANA!$B$6:$F$81,5,FALSE),VLOOKUP(B18,MODINTER!$B$7:$F$82,5,FALSE)) -> 25313.03 | J18: =IF(INFORMES!C18="URBANA",VLOOKUP(B18,CONMPU!$A$1:$E$91,3,FALSE),VLOOKUP(INFORMES!B18,CONMPI!$A$1:$D$93,3,FALSE)) -> 0 | K18: =+CIF!B20+CIF!C20 -> 200326.8692 | L18: =+CIF!D20+CIF!E20+CIF!F20+CIF!G20+CIF!H20+CIF!I20+CIF!J20+CIF!K20 -> 233737.928 | M18: 914377.8272 | N18: FRENTES Y TRASEROS EN FIBRA DE VIDRIO
B19: Elaboración de piezas de frente en fibra de vidrio | C19: =IF(PLIQUIDACION!$D$6="URBANA","URBANA","INTERMUNICIPAL") -> INTERMUNICIPAL | H19: =IF(INFORMES!C19="URBANA",VLOOKUP(B19,CONMPU!$A$1:$E$91,2,FALSE),VLOOKUP(INFORMES!B19,CONMPI!$A$1:$D$93,2,FALSE)) -> 932000 | I19: =IF(C19="URBANA",VLOOKUP(B19,MODURBANA!$B$6:$F$81,5,FALSE),VLOOKUP(B19,MODINTER!$B$7:$F$82,5,FALSE)) -> 141501.81 | J19: =IF(INFORMES!C19="URBANA",VLOOKUP(B19,CONMPU!$A$1:$E$91,3,FALSE),VLOOKUP(INFORMES!B19,CONMPI!$A$1:$D$93,3,FALSE)) -> 359300 | M19: 1432801.81 | N19: FRENTES Y TRASEROS EN FIBRA DE VIDRIO
B20: Elaboración de piezas traseras en fibra de vidrio | C20: =IF(PLIQUIDACION!$D$6="URBANA","URBANA","INTERMUNICIPAL") -> INTERMUNICIPAL | H20: =IF(INFORMES!C20="URBANA",VLOOKUP(B20,CONMPU!$A$1:$E$91,2,FALSE),VLOOKUP(INFORMES!B20,CONMPI!$A$1:$D$93,2,FALSE)) -> 932000 | I20: =IF(C20="URBANA",VLOOKUP(B20,MODURBANA!$B$6:$F$81,5,FALSE),VLOOKUP(B20,MODINTER!$B$7:$F$82,5,FALSE)) -> 200460.8975 | J20: =IF(INFORMES!C20="URBANA",VLOOKUP(B20,CONMPU!$A$1:$E$91,3,FALSE),VLOOKUP(INFORMES!B20,CONMPI!$A$1:$D$93,3,FALSE)) -> 359300 | M20: 1491760.897 | N20: FRENTES Y TRASEROS EN FIBRA DE VIDRIO
B21: Desmonte de partes de los moldes | C21: =IF(PLIQUIDACION!$D$6="URBANA","URBANA","INTERMUNICIPAL") -> INTERMUNICIPAL | H21: =IF(INFORMES!C21="URBANA",VLOOKUP(B21,CONMPU!$A$1:$E$91,2,FALSE),VLOOKUP(INFORMES!B21,CONMPI!$A$1:$D$93,2,FALSE)) -> 0 | I21: =IF(C21="URBANA",VLOOKUP(B21,MODURBANA!$B$6:$F$81,5,FALSE),VLOOKUP(B21,MODINTER!$B$7:$F$82,5,FALSE)) -> 82542.7225 | J21: =IF(INFORMES!C21="URBANA",VLOOKUP(B21,CONMPU!$A$1:$E$91,3,FALSE),VLOOKUP(INFORMES!B21,CONMPI!$A$1:$D$93,3,FALSE)) -> 0 | M21: 82542.7225 | N21: FRENTES Y TRASEROS EN FIBRA DE VIDRIO
B22: Instalación de las partes | C22: =IF(PLIQUIDACION!$D$6="URBANA","URBANA","INTERMUNICIPAL") -> INTERMUNICIPAL | H22: =IF(INFORMES!C22="URBANA",VLOOKUP(B22,CONMPU!$A$1:$E$91,2,FALSE),VLOOKUP(INFORMES!B22,CONMPI!$A$1:$D$93,2,FALSE)) -> 0 | I22: =IF(C22="URBANA",VLOOKUP(B22,MODURBANA!$B$6:$F$81,5,FALSE),VLOOKUP(B22,MODINTER!$B$7:$F$82,5,FALSE)) -> 176877.2625 | J22: =IF(INFORMES!C22="URBANA",VLOOKUP(B22,CONMPU!$A$1:$E$91,3,FALSE),VLOOKUP(INFORMES!B22,CONMPI!$A$1:$D$93,3,FALSE)) -> 16050 | M22: 192927.2625 | N22: FRENTES Y TRASEROS EN FIBRA DE VIDRIO
B23: Adecuación de las partes montadas | C23: =IF(PLIQUIDACION!$D$6="URBANA","URBANA","INTERMUNICIPAL") -> INTERMUNICIPAL | H23: =IF(INFORMES!C23="URBANA",VLOOKUP(B23,CONMPU!$A$1:$E$91,2,FALSE),VLOOKUP(INFORMES!B23,CONMPI!$A$1:$D$93,2,FALSE)) -> 0 | I23: =IF(C23="URBANA",VLOOKUP(B23,MODURBANA!$B$6:$F$81,5,FALSE),VLOOKUP(B23,MODINTER!$B$7:$F$82,5,FALSE)) -> 70750.905 | J23: =IF(INFORMES!C23="URBANA",VLOOKUP(B23,CONMPU!$A$1:$E$91,3,FALSE),VLOOKUP(INFORMES!B23,CONMPI!$A$1:$D$93,3,FALSE)) -> 4000 | M23: 74750.905 | N23: FRENTES Y TRASEROS EN FIBRA DE VIDRIO
A24: ESTRIBOS, PUERTAS Y BODEGAS | B24: Elaboracion de puertas | C24: =IF(PLIQUIDACION!$D$6="URBANA","URBANA","INTERMUNICIPAL") -> INTERMUNICIPAL | H24: =IF(INFORMES!C24="URBANA",VLOOKUP(B24,CONMPU!$A$1:$E$91,2,FALSE),VLOOKUP(INFORMES!B24,CONMPI!$A$1:$D$93,2,FALSE)) -> 213500 | I24: =IF(C24="URBANA",VLOOKUP(B24,MODURBANA!$B$6:$F$81,5,FALSE),VLOOKUP(B24,MODINTER!$B$7:$F$82,5,FALSE)) -> 500000 | J24: =IF(INFORMES!C24="URBANA",VLOOKUP(B24,CONMPU!$A$1:$E$91,3,FALSE),VLOOKUP(INFORMES!B24,CONMPI!$A$1:$D$93,3,FALSE)) -> 17500 | K24: =+CIF!B21+CIF!C21 -> 130944.0512 | L24: =+CIF!D21+CIF!E21+CIF!F21+CIF!G21+CIF!H21+CIF!I21+CIF!J21+CIF!K21 -> 110678.916 | M24: 972622.9672 | N24: ESTRIBOS PUERTAS Y BODEGAS
B25: Elaboracion de estribos | C25: =IF(PLIQUIDACION!$D$6="URBANA","URBANA","INTERMUNICIPAL") -> INTERMUNICIPAL | H25: =IF(INFORMES!C25="URBANA",VLOOKUP(B25,CONMPU!$A$1:$E$91,2,FALSE),VLOOKUP(INFORMES!B25,CONMPI!$A$1:$D$93,2,FALSE)) -> 274446.4286 | J25: =IF(INFORMES!C25="URBANA",VLOOKUP(B25,CONMPU!$A$1:$E$91,3,FALSE),VLOOKUP(INFORMES!B25,CONMPI!$A$1:$D$93,3,FALSE)) -> 10500 | M25: 284946.4286 | N25: ESTRIBOS PUERTAS Y BODEGAS
B26: Adecuacion de bodegas | C26: =IF(PLIQUIDACION!$D$6="URBANA","URBANA","INTERMUNICIPAL") -> INTERMUNICIPAL | H26: =IF(INFORMES!C26="URBANA",VLOOKUP(B26,CONMPU!$A$1:$E$91,2,FALSE),VLOOKUP(INFORMES!B26,CONMPI!$A$1:$D$93,2,FALSE)) -> 0 | J26: =IF(INFORMES!C26="URBANA",VLOOKUP(B26,CONMPU!$A$1:$E$91,3,FALSE),VLOOKUP(INFORMES!B26,CONMPI!$A$1:$D$93,3,FALSE)) -> 10500 | M26: 10500 | N26: ESTRIBOS PUERTAS Y BODEGAS
B27: Instalacion de puertas | C27: =IF(PLIQUIDACION!$D$6="URBANA","URBANA","INTERMUNICIPAL") -> INTERMUNICIPAL | H27: =IF(INFORMES!C27="URBANA",VLOOKUP(B27,CONMPU!$A$1:$E$91,2,FALSE),VLOOKUP(INFORMES!B27,CONMPI!$A$1:$D$93,2,FALSE)) -> 0 | J27: =IF(INFORMES!C27="URBANA",VLOOKUP(B27,CONMPU!$A$1:$E$91,3,FALSE),VLOOKUP(INFORMES!B27,CONMPI!$A$1:$D$93,3,FALSE)) -> 136667 | M27: 136667 | N27: ESTRIBOS PUERTAS Y BODEGAS
B28: Instalacion de estribos | C28: =IF(PLIQUIDACION!$D$6="URBANA","URBANA","INTERMUNICIPAL") -> INTERMUNICIPAL | H28: =IF(INFORMES!C28="URBANA",VLOOKUP(B28,CONMPU!$A$1:$E$91,2,FALSE),VLOOKUP(INFORMES!B28,CONMPI!$A$1:$D$93,2,FALSE)) -> 0 | J28: =IF(INFORMES!C28="URBANA",VLOOKUP(B28,CONMPU!$A$1:$E$91,3,FALSE),VLOOKUP(INFORMES!B28,CONMPI!$A$1:$D$93,3,FALSE)) -> 28212 | M28: 28212 | N28: ESTRIBOS PUERTAS Y BODEGAS
A29: PINTURA | B29: Lijado de carroceria | C29: =IF(PLIQUIDACION!$D$6="URBANA","URBANA","INTERMUNICIPAL") -> INTERMUNICIPAL | H29: =IF(INFORMES!C29="URBANA",VLOOKUP(B29,CONMPU!$A$1:$E$91,2,FALSE),VLOOKUP(INFORMES!B29,CONMPI!$A$1:$D$93,2,FALSE)) -> 0 | I29: =IF(C29="URBANA",VLOOKUP(B29,MODURBANA!$B$6:$F$81,5,FALSE),VLOOKUP(B29,MODINTER!$B$7:$F$82,5,FALSE)) -> 67292.115 | J29: =IF(INFORMES!C29="URBANA",VLOOKUP(B29,CONMPU!$A$1:$E$91,3,FALSE),VLOOKUP(INFORMES!B29,CONMPI!$A$1:$D$93,3,FALSE)) -> 25000 | K29: =+CIF!B22+CIF!C22 -> 172702.8362 | L29: =+CIF!D22+CIF!E22+CIF!F22+CIF!G22+CIF!H22+CIF!I22+CIF!J22+CIF!K22 -> 202893.928 | M29: 467888.8792 | N29: PINTURA
B30: Aplicación capa de praymer | C30: =IF(PLIQUIDACION!$D$6="URBANA","URBANA","INTERMUNICIPAL") -> INTERMUNICIPAL | H30: =IF(INFORMES!C30="URBANA",VLOOKUP(B30,CONMPU!$A$1:$E$91,2,FALSE),VLOOKUP(INFORMES!B30,CONMPI!$A$1:$D$93,2,FALSE)) -> 0 | I30: =IF(C30="URBANA",VLOOKUP(B30,MODURBANA!$B$6:$F$81,5,FALSE),VLOOKUP(B30,MODINTER!$B$7:$F$82,5,FALSE)) -> 112153.525 | J30: =IF(INFORMES!C30="URBANA",VLOOKUP(B30,CONMPU!$A$1:$E$91,3,FALSE),VLOOKUP(INFORMES!B30,CONMPI!$A$1:$D$93,3,FALSE)) -> 14500 | M30: 126653.525 | N30: PINTURA
B31: Lijado sobre capa de praymer | C31: =IF(PLIQUIDACION!$D$6="URBANA","URBANA","INTERMUNICIPAL") -> INTERMUNICIPAL | H31: =IF(INFORMES!C31="URBANA",VLOOKUP(B31,CONMPU!$A$1:$E$91,2,FALSE),VLOOKUP(INFORMES!B31,CONMPI!$A$1:$D$93,2,FALSE)) -> 0 | I31: =IF(C31="URBANA",VLOOKUP(B31,MODURBANA!$B$6:$F$81,5,FALSE),VLOOKUP(B31,MODINTER!$B$7:$F$82,5,FALSE)) -> 67292.115 | J31: =IF(INFORMES!C31="URBANA",VLOOKUP(B31,CONMPU!$A$1:$E$91,3,FALSE),VLOOKUP(INFORMES!B31,CONMPI!$A$1:$D$93,3,FALSE)) -> 42500 | M31: 109792.115 | N31: PINTURA
B32: Aplicación de Capa de fondo | C32: =IF(PLIQUIDACION!$D$6="URBANA","URBANA","INTERMUNICIPAL") -> INTERMUNICIPAL | H32: =IF(INFORMES!C32="URBANA",VLOOKUP(B32,CONMPU!$A$1:$E$91,2,FALSE),VLOOKUP(INFORMES!B32,CONMPI!$A$1:$D$93,2,FALSE)) -> 0 | I32: =IF(C32="URBANA",VLOOKUP(B32,MODURBANA!$B$6:$F$81,5,FALSE),VLOOKUP(B32,MODINTER!$B$7:$F$82,5,FALSE)) -> 100938.1725 | J32: =IF(INFORMES!C32="URBANA",VLOOKUP(B32,CONMPU!$A$1:$E$91,3,FALSE),VLOOKUP(INFORMES!B32,CONMPI!$A$1:$D$93,3,FALSE)) -> 193000 | M32: 293938.1725 | N32: PINTURA
B33: Lijado sobre capa de fondo | C33: =IF(PLIQUIDACION!$D$6="URBANA","URBANA","INTERMUNICIPAL") -> INTERMUNICIPAL | H33: =IF(INFORMES!C33="URBANA",VLOOKUP(B33,CONMPU!$A$1:$E$91,2,FALSE),VLOOKUP(INFORMES!B33,CONMPI!$A$1:$D$93,2,FALSE)) -> 0 | I33: =IF(C33="URBANA",VLOOKUP(B33,MODURBANA!$B$6:$F$81,5,FALSE),VLOOKUP(B33,MODINTER!$B$7:$F$82,5,FALSE)) -> 67292.115 | J33: =IF(INFORMES!C33="URBANA",VLOOKUP(B33,CONMPU!$A$1:$E$91,3,FALSE),VLOOKUP(INFORMES!B33,CONMPI!$A$1:$D$93,3,FALSE)) -> 12500 | M33: 79792.115 | N33: PINTURA
B34: Aplicación de Capa de masilla | C34: =IF(PLIQUIDACION!$D$6="URBANA","URBANA","INTERMUNICIPAL") -> INTERMUNICIPAL | H34: =IF(INFORMES!C34="URBANA",VLOOKUP(B34,CONMPU!$A$1:$E$91,2,FALSE),VLOOKUP(INFORMES!B34,CONMPI!$A$1:$D$93,2,FALSE)) -> 0 | I34: =IF(C34="URBANA",VLOOKUP(B34,MODURBANA!$B$6:$F$81,5,FALSE),VLOOKUP(B34,MODINTER!$B$7:$F$82,5,FALSE)) -> 100938.1725 | J34: =IF(INFORMES!C34="URBANA",VLOOKUP(B34,CONMPU!$A$1:$E$91,3,FALSE),VLOOKUP(INFORMES!B34,CONMPI!$A$1:$D$93,3,FALSE)) -> 53500 | M34: 154438.1725 | N34: PINTURA
B35: Lijado sobre capa de masilla | C35: =IF(PLIQUIDACION!$D$6="URBANA","URBANA","INTERMUNICIPAL") -> INTERMUNICIPAL | H35: =IF(INFORMES!C35="URBANA",VLOOKUP(B35,CONMPU!$A$1:$E$91,2,FALSE),VLOOKUP(INFORMES!B35,CONMPI!$A$1:$D$93,2,FALSE)) -> 0 | I35: =IF(C35="URBANA",VLOOKUP(B35,MODURBANA!$B$6:$F$81,5,FALSE),VLOOKUP(B35,MODINTER!$B$7:$F$82,5,FALSE)) -> 78507.4675 | J35: =IF(INFORMES!C35="URBANA",VLOOKUP(B35,CONMPU!$A$1:$E$91,3,FALSE),VLOOKUP(INFORMES!B35,CONMPI!$A$1:$D$93,3,FALSE)) -> 10250 | M35: 88757.4675 | N35: PINTURA
B36: Aplicación de Capa de fondo | C36: =IF(PLIQUIDACION!$D$6="URBANA","URBANA","INTERMUNICIPAL") -> INTERMUNICIPAL | H36: =IF(INFORMES!C36="URBANA",VLOOKUP(B36,CONMPU!$A$1:$E$91,2,FALSE),VLOOKUP(INFORMES!B36,CONMPI!$A$1:$D$93,2,FALSE)) -> 0 | I36: =IF(C36="URBANA",VLOOKUP(B36,MODURBANA!$B$6:$F$81,5,FALSE),VLOOKUP(B36,MODINTER!$B$7:$F$82,5,FALSE)) -> 100938.1725 | J36: =IF(INFORMES!C36="URBANA",VLOOKUP(B36,CONMPU!$A$1:$E$91,3,FALSE),VLOOKUP(INFORMES!B36,CONMPI!$A$1:$D$93,3,FALSE)) -> 193000 | M36: 293938.1725 | N36: PINTURA
B37: Lijado sobre la capa de fondo | C37: =IF(PLIQUIDACION!$D$6="URBANA","URBANA","INTERMUNICIPAL") -> INTERMUNICIPAL | H37: =IF(INFORMES!C37="URBANA",VLOOKUP(B37,CONMPU!$A$1:$E$91,2,FALSE),VLOOKUP(INFORMES!B37,CONMPI!$A$1:$D$93,2,FALSE)) -> 0 | I37: =IF(C37="URBANA",VLOOKUP(B37,MODURBANA!$B$6:$F$81,5,FALSE),VLOOKUP(B37,MODINTER!$B$7:$F$82,5,FALSE)) -> 67292.115 | J37: =IF(INFORMES!C37="URBANA",VLOOKUP(B37,CONMPU!$A$1:$E$91,3,FALSE),VLOOKUP(INFORMES!B37,CONMPI!$A$1:$D$93,3,FALSE)) -> 12500 | M37: 79792.115 | N37: PINTURA
B38: Aplicacion de pintura | C38: =IF(PLIQUIDACION!$D$6="URBANA","URBANA","INTERMUNICIPAL") -> INTERMUNICIPAL | H38: =IF(INFORMES!C38="URBANA",VLOOKUP(B38,CONMPU!$A$1:$E$91,2,FALSE),VLOOKUP(INFORMES!B38,CONMPI!$A$1:$D$93,2,FALSE)) -> 0 | I38: =IF(C38="URBANA",VLOOKUP(B38,MODURBANA!$B$6:$F$81,5,FALSE),VLOOKUP(B38,MODINTER!$B$7:$F$82,5,FALSE)) -> 112153.525 | J38: =IF(INFORMES!C38="URBANA",VLOOKUP(B38,CONMPU!$A$1:$E$91,3,FALSE),VLOOKUP(INFORMES!B38,CONMPI!$A$1:$D$93,3,FALSE)) -> 487500 | M38: 599653.525 | N38: PINTURA
A39: DECORACION TECHO FORRADO | B39: Preparación de techo | C39: =IF(PLIQUIDACION!$D$6="URBANA","URBANA","INTERMUNICIPAL") -> INTERMUNICIPAL | D39: =IF(PLIQUIDACION!$D$8="FORRADO","FORRADO","FIBRA") -> FIBRA | E39: =IF(AND(C39="URBANA",D39="FORRADO"),VLOOKUP(B39,CONMPU!$A$46:$E$50,2,FALSE),IF(AND(C39="URBANA",D39="FIBRA"),0,IF(AND(C39="INTERMUNICIPAL",D39="FORRADO"),VLOOKUP(B39,CONMPI!$A$47:$D$51,2,FALSE),IF(AND(C39="INTERMUNICIPAL",D39="FIBRA"),0," ")))) -> 0 | F39: =IF(AND(C39="URBANA",D39="FORRADO"),VLOOKUP(B39,MODURBANA!$B$39:$F$43,5,FALSE),IF(AND(INFORMES!C39="URBANA",INFORMES!D39="FIBRA"),0,IF(AND(INFORMES!C39="INTERMUNICIPAL",INFORMES!D39="FORRADO"),VLOOKUP(INFORMES!B39,MODINTER!$B$40:$F$44,5,FALSE),IF(AND(INFORMES!C39="INTERMUNICIPAL",INFORMES!D39="FIBRA"),0," ")))) -> 0 | G39: =IF(AND(C39="URBANA",D39="FORRADO"),VLOOKUP(B39,CONMPU!$A$46:$E$50,3,FALSE),IF(AND(C39="URBANA",D39="FIBRA"),0,IF(AND(C39="INTERMUNICIPAL",D39="FORRADO"),VLOOKUP(B39,CONMPI!$A$47:$D$51,3,FALSE),IF(AND(C39="INTERMUNICIPAL",D39="FIBRA"),0," ")))) -> 0 | H39: =E39 -> 0 | I39: =F39 -> 0 | J39: =+G39 -> 0 | M39: 0 | N39: DECORACION TECHO FORRADO
B40: Doblar Lámina | C40: =IF(PLIQUIDACION!$D$6="URBANA","URBANA","INTERMUNICIPAL") -> INTERMUNICIPAL | D40: =IF(PLIQUIDACION!$D$8="FORRADO","FORRADO","FIBRA") -> FIBRA | E40: =IF(AND(C40="URBANA",D40="FORRADO"),VLOOKUP(B40,CONMPU!$A$46:$E$50,2,FALSE),IF(AND(C40="URBANA",D40="FIBRA"),0,IF(AND(C40="INTERMUNICIPAL",D40="FORRADO"),VLOOKUP(B40,CONMPI!$A$47:$D$51,2,FALSE),IF(AND(C40="INTERMUNICIPAL",D40="FIBRA"),0," ")))) -> 0 | F40: =IF(AND(C40="URBANA",D40="FORRADO"),VLOOKUP(B40,MODURBANA!$B$39:$F$43,5,FALSE),IF(AND(INFORMES!C40="URBANA",INFORMES!D40="FIBRA"),0,IF(AND(INFORMES!C40="INTERMUNICIPAL",INFORMES!D40="FORRADO"),VLOOKUP(INFORMES!B40,MODINTER!$B$40:$F$44,5,FALSE),IF(AND(INFORMES!C40="INTERMUNICIPAL",INFORMES!D40="FIBRA"),0," ")))) -> 0 | G40: =IF(AND(C40="URBANA",D40="FORRADO"),VLOOKUP(B40,CONMPU!$A$46:$E$50,3,FALSE),IF(AND(C40="URBANA",D40="FIBRA"),0,IF(AND(C40="INTERMUNICIPAL",D40="FORRADO"),VLOOKUP(B40,CONMPI!$A$47:$D$51,3,FALSE),IF(AND(C40="INTERMUNICIPAL",D40="FIBRA"),0," ")))) -> 0 | H40: =E40 -> 0 | I40: =F40 -> 0 | J40: =+G40 -> 0 | M40: 0 | N40: DECORACION TECHO FORRADO
B41: Soldar | C41: =IF(PLIQUIDACION!$D$6="URBANA","URBANA","INTERMUNICIPAL") -> INTERMUNICIPAL | D41: =IF(PLIQUIDACION!$D$8="FORRADO","FORRADO","FIBRA") -> FIBRA | E41: =IF(AND(C41="URBANA",D41="FORRADO"),VLOOKUP(B41,CONMPU!$A$46:$E$50,2,FALSE),IF(AND(C41="URBANA",D41="FIBRA"),0,IF(AND(C41="INTERMUNICIPAL",D41="FORRADO"),VLOOKUP(B41,CONMPI!$A$47:$D$51,2,FALSE),IF(AND(C41="INTERMUNICIPAL",D41="FIBRA"),0," ")))) -> 0 | F41: =IF(AND(C41="URBANA",D41="FORRADO"),VLOOKUP(B41,MODURBANA!$B$39:$F$43,5,FALSE),IF(AND(INFORMES!C41="URBANA",INFORMES!D41="FIBRA"),0,IF(AND(INFORMES!C41="INTERMUNICIPAL",INFORMES!D41="FORRADO"),VLOOKUP(INFORMES!B41,MODINTER!$B$40:$F$44,5,FALSE),IF(AND(INFORMES!C41="INTERMUNICIPAL",INFORMES!D41="FIBRA"),0," ")))) -> 0 | G41: =IF(AND(C41="URBANA",D41="FORRADO"),VLOOKUP(B41,CONMPU!$A$46:$E$50,3,FALSE),IF(AND(C41="URBANA",D41="FIBRA"),0,IF(AND(C41="INTERMUNICIPAL",D41="FORRADO"),VLOOKUP(B41,CONMPI!$A$47:$D$51,3,FALSE),IF(AND(C41="INTERMUNICIPAL",D41="FIBRA"),0," ")))) -> 0 | H41: 0 | I41: 0 | J41: 0 | M41: 0 | N41: DECORACION TECHO FORRADO
B42: Forrar cajones | C42: =IF(PLIQUIDACION!$D$6="URBANA","URBANA","INTERMUNICIPAL") -> INTERMUNICIPAL | D42: =IF(PLIQUIDACION!$D$8="FORRADO","FORRADO","FIBRA") -> FIBRA | E42: =IF(AND(C42="URBANA",D42="FORRADO"),VLOOKUP(B42,CONMPU!$A$46:$E$50,2,FALSE),IF(AND(C42="URBANA",D42="FIBRA"),0,IF(AND(C42="INTERMUNICIPAL",D42="FORRADO"),VLOOKUP(B42,CONMPI!$A$47:$D$51,2,FALSE),IF(AND(C42="INTERMUNICIPAL",D42="FIBRA"),0," ")))) -> 0 | F42: =IF(AND(C42="URBANA",D42="FORRADO"),VLOOKUP(B42,MODURBANA!$B$39:$F$43,5,FALSE),IF(AND(INFORMES!C42="URBANA",INFORMES!D42="FIBRA"),0,IF(AND(INFORMES!C42="INTERMUNICIPAL",INFORMES!D42="FORRADO"),VLOOKUP(INFORMES!B42,MODINTER!$B$40:$F$44,5,FALSE),IF(AND(INFORMES!C42="INTERMUNICIPAL",INFORMES!D42="FIBRA"),0," ")))) -> 0 | G42: =IF(AND(C42="URBANA",D42="FORRADO"),VLOOKUP(B42,CONMPU!$A$46:$E$50,3,FALSE),IF(AND(C42="URBANA",D42="FIBRA"),0,IF(AND(C42="INTERMUNICIPAL",D42="FORRADO"),VLOOKUP(B42,CONMPI!$A$47:$D$51,3,FALSE),IF(AND(C42="INTERMUNICIPAL",D42="FIBRA"),0," ")))) -> 0 | H42: 0 | I42: 0 | J42: 0 | M42: 0 | N42: DECORACION TECHO FORRADO
B43: Instalar | C43: =IF(PLIQUIDACION!$D$6="URBANA","URBANA","INTERMUNICIPAL") -> INTERMUNICIPAL | D43: =IF(PLIQUIDACION!$D$8="FORRADO","FORRADO","FIBRA") -> FIBRA | E43: =IF(AND(C43="URBANA",D43="FORRADO"),VLOOKUP(B43,CONMPU!$A$46:$E$50,2,FALSE),IF(AND(C43="URBANA",D43="FIBRA"),0,IF(AND(C43="INTERMUNICIPAL",D43="FORRADO"),VLOOKUP(B43,CONMPI!$A$47:$D$51,2,FALSE),IF(AND(C43="INTERMUNICIPAL",D43="FIBRA"),0," ")))) -> 0 | F43: =IF(AND(C43="URBANA",D43="FORRADO"),VLOOKUP(B43,MODURBANA!$B$39:$F$43,5,FALSE),IF(AND(INFORMES!C43="URBANA",INFORMES!D43="FIBRA"),0,IF(AND(INFORMES!C43="INTERMUNICIPAL",INFORMES!D43="FORRADO"),VLOOKUP(INFORMES!B43,MODINTER!$B$40:$F$44,5,FALSE),IF(AND(INFORMES!C43="INTERMUNICIPAL",INFORMES!D43="FIBRA"),0," ")))) -> 0 | G43: =IF(AND(C43="URBANA",D43="FORRADO"),VLOOKUP(B43,CONMPU!$A$46:$E$50,3,FALSE),IF(AND(C43="URBANA",D43="FIBRA"),0,IF(AND(C43="INTERMUNICIPAL",D43="FORRADO"),VLOOKUP(B43,CONMPI!$A$47:$D$51,3,FALSE),IF(AND(C43="INTERMUNICIPAL",D43="FIBRA"),0," ")))) -> 0 | H43: 0 | I43: 0 | J43: 0 | M43: 0 | N43: DECORACION TECHO FORRADO
A44: DECORACION ( TECHO FIBRA) | B44: Limpiar moldes | C44: =IF(PLIQUIDACION!$D$6="URBANA","URBANA","INTERMUNICIPAL") -> INTERMUNICIPAL | D44: =IF(PLIQUIDACION!$D$8="FORRADO","FORRADO","FIBRA") -> FIBRA | E44: =IF(AND(C44="URBANA",D44="FORRADO"),0,IF(AND(C44="URBANA",D44="FIBRA"),VLOOKUP(B44,CONMPU!$A$34:$E$44,2,FALSE),IF(AND(C44="INTERMUNICIPAL",D44="FORRADO"),0,IF(AND(C44="INTERMUNICIPAL",D44="FIBRA"),VLOOKUP(INFORMES!B44,CONMPI!$A$35:$D$45,2,FALSE)," ")))) -> 0 | F44: =IF(AND(C44="URBANA",D44="FORRADO"),0,IF(AND(INFORMES!C44="URBANA",INFORMES!D44="FIBRA"),VLOOKUP(B44,MODURBANA!$B$44:$F$55,5,FALSE),IF(AND(INFORMES!C44="INTERMUNICIPAL",INFORMES!D44="FORRADO"),0,IF(AND(INFORMES!C44="INTERMUNICIPAL",INFORMES!D44="FIBRA"),VLOOKUP(B44,MODINTER!B45:F55,5,FALSE)," ")))) -> 9492.38625 | G44: =IF(AND(C44="URBANA",D44="FORRADO"),0,IF(AND(C44="URBANA",D44="FIBRA"),VLOOKUP(B44,CONMPU!$A$34:$E$44,3,FALSE),IF(AND(C44="INTERMUNICIPAL",D44="FORRADO"),0,IF(AND(C44="INTERMUNICIPAL",D44="FIBRA"),VLOOKUP(INFORMES!B44,CONMPI!$A$35:$D$45,3,FALSE)," ")))) -> 30000 | H44: 0 | I44: 9492.38625 | J44: 30000 | M44: 39492.38625 | N44: DECORACION TECHO FIBRA
B45: Fabricar piezas | C45: =IF(PLIQUIDACION!$D$6="URBANA","URBANA","INTERMUNICIPAL") -> INTERMUNICIPAL | D45: =IF(PLIQUIDACION!$D$8="FORRADO","FORRADO","FIBRA") -> FIBRA | E45: =IF(AND(C45="URBANA",D45="FORRADO"),0,IF(AND(C45="URBANA",D45="FIBRA"),VLOOKUP(B45,CONMPU!$A$34:$E$44,2,FALSE),IF(AND(C45="INTERMUNICIPAL",D45="FORRADO"),0,IF(AND(C45="INTERMUNICIPAL",D45="FIBRA"),VLOOKUP(INFORMES!B45,CONMPI!$A$35:$D$45,2,FALSE)," ")))) -> 1048000 | F45: =IF(AND(C45="URBANA",D45="FORRADO"),0,IF(AND(INFORMES!C45="URBANA",INFORMES!D45="FIBRA"),VLOOKUP(B45,MODURBANA!$B$44:$F$55,5,FALSE),IF(AND(INFORMES!C45="INTERMUNICIPAL",INFORMES!D45="FORRADO"),0,IF(AND(INFORMES!C45="INTERMUNICIPAL",INFORMES!D45="FIBRA"),VLOOKUP(B45,MODINTER!B46:F56,5,FALSE)," ")))) -> 94334.54 | G45: =IF(AND(C45="URBANA",D45="FORRADO"),0,IF(AND(C45="URBANA",D45="FIBRA"),VLOOKUP(B45,CONMPU!$A$34:$E$44,3,FALSE),IF(AND(C45="INTERMUNICIPAL",D45="FORRADO"),0,IF(AND(C45="INTERMUNICIPAL",D45="FIBRA"),VLOOKUP(INFORMES!B45,CONMPI!$A$35:$D$45,3,FALSE)," ")))) -> 0 | H45: 1048000 | I45: 94334.54 | J45: 0 | M45: 1142334.54 | N45: DECORACION TECHO FIBRA
B46: Lijado de Piezas | C46: =IF(PLIQUIDACION!$D$6="URBANA","URBANA","INTERMUNICIPAL") -> INTERMUNICIPAL | D46: =IF(PLIQUIDACION!$D$8="FORRADO","FORRADO","FIBRA") -> FIBRA | E46: =IF(AND(C46="URBANA",D46="FORRADO"),0,IF(AND(C46="URBANA",D46="FIBRA"),VLOOKUP(B46,CONMPU!$A$34:$E$44,2,FALSE),IF(AND(C46="INTERMUNICIPAL",D46="FORRADO"),0,IF(AND(C46="INTERMUNICIPAL",D46="FIBRA"),VLOOKUP(INFORMES!B46,CONMPI!$A$35:$D$45,2,FALSE)," ")))) -> 0 | F46: =IF(AND(C46="URBANA",D46="FORRADO"),0,IF(AND(INFORMES!C46="URBANA",INFORMES!D46="FIBRA"),VLOOKUP(B46,MODURBANA!$B$44:$F$55,5,FALSE),IF(AND(INFORMES!C46="INTERMUNICIPAL",INFORMES!D46="FORRADO"),0,IF(AND(INFORMES!C46="INTERMUNICIPAL",INFORMES!D46="FIBRA"),VLOOKUP(B46,MODINTER!B47:F57,5,FALSE)," ")))) -> 47167.27 | G46: =IF(AND(C46="URBANA",D46="FORRADO"),0,IF(AND(C46="URBANA",D46="FIBRA"),VLOOKUP(B46,CONMPU!$A$34:$E$44,3,FALSE),IF(AND(C46="INTERMUNICIPAL",D46="FORRADO"),0,IF(AND(C46="INTERMUNICIPAL",D46="FIBRA"),VLOOKUP(INFORMES!B46,CONMPI!$A$35:$D$45,3,FALSE)," ")))) -> 12500 | H46: 0 | I46: 47167.27 | J46: 12500 | M46: 59667.27 | N46: DECORACION TECHO FIBRA
B47: Aplicación capa de praymer | C47: =IF(PLIQUIDACION!$D$6="URBANA","URBANA","INTERMUNICIPAL") -> INTERMUNICIPAL | D47: =IF(PLIQUIDACION!$D$8="FORRADO","FORRADO","FIBRA") -> FIBRA | E47: =IF(AND(C47="URBANA",D47="FORRADO"),0,IF(AND(C47="URBANA",D47="FIBRA"),VLOOKUP(B47,CONMPU!$A$34:$E$44,2,FALSE),IF(AND(C47="INTERMUNICIPAL",D47="FORRADO"),0,IF(AND(C47="INTERMUNICIPAL",D47="FIBRA"),VLOOKUP(INFORMES!B47,CONMPI!$A$35:$D$45,2,FALSE)," ")))) -> 0 | F47: =IF(AND(C47="URBANA",D47="FORRADO"),0,IF(AND(INFORMES!C47="URBANA",INFORMES!D47="FIBRA"),VLOOKUP(B47,MODURBANA!$B$44:$F$55,5,FALSE),IF(AND(INFORMES!C47="INTERMUNICIPAL",INFORMES!D47="FORRADO"),0,IF(AND(INFORMES!C47="INTERMUNICIPAL",INFORMES!D47="FIBRA"),VLOOKUP(B47,MODINTER!B48:F58,5,FALSE)," ")))) -> 25313.03 | G47: =IF(AND(C47="URBANA",D47="FORRADO"),0,IF(AND(C47="URBANA",D47="FIBRA"),VLOOKUP(B47,CONMPU!$A$34:$E$44,3,FALSE),IF(AND(C47="INTERMUNICIPAL",D47="FORRADO"),0,IF(AND(C47="INTERMUNICIPAL",D47="FIBRA"),VLOOKUP(INFORMES!B47,CONMPI!$A$35:$D$45,3,FALSE)," ")))) -> 14500 | H47: 0 | I47: 25313.03 | J47: 14500 | M47: 39813.03 | N47: DECORACION TECHO FIBRA
B48: Lijado sobre capa de praymer | C48: =IF(PLIQUIDACION!$D$6="URBANA","URBANA","INTERMUNICIPAL") -> INTERMUNICIPAL | D48: =IF(PLIQUIDACION!$D$8="FORRADO","FORRADO","FIBRA") -> FIBRA | E48: =IF(AND(C48="URBANA",D48="FORRADO"),0,IF(AND(C48="URBANA",D48="FIBRA"),VLOOKUP(B48,CONMPU!$A$34:$E$44,2,FALSE),IF(AND(C48="INTERMUNICIPAL",D48="FORRADO"),0,IF(AND(C48="INTERMUNICIPAL",D48="FIBRA"),VLOOKUP(INFORMES!B48,CONMPI!$A$35:$D$45,2,FALSE)," ")))) -> 0 | F48: =IF(AND(C48="URBANA",D48="FORRADO"),0,IF(AND(INFORMES!C48="URBANA",INFORMES!D48="FIBRA"),VLOOKUP(B48,MODURBANA!$B$44:$F$55,5,FALSE),IF(AND(INFORMES!C48="INTERMUNICIPAL",INFORMES!D48="FORRADO"),0,IF(AND(INFORMES!C48="INTERMUNICIPAL",INFORMES!D48="FIBRA"),VLOOKUP(B48,MODINTER!B49:F59,5,FALSE)," ")))) -> 35375.4525 | G48: =IF(AND(C48="URBANA",D48="FORRADO"),0,IF(AND(C48="URBANA",D48="FIBRA"),VLOOKUP(B48,CONMPU!$A$34:$E$44,3,FALSE),IF(AND(C48="INTERMUNICIPAL",D48="FORRADO"),0,IF(AND(C48="INTERMUNICIPAL",D48="FIBRA"),VLOOKUP(INFORMES!B48,CONMPI!$A$35:$D$45,3,FALSE)," ")))) -> 42500 | H48: 0 | I48: 35375.4525 | J48: 42500 | M48: 77875.4525 | N48: DECORACION TECHO FIBRA
B49: Aplicación de Capa de fondo | C49: =IF(PLIQUIDACION!$D$6="URBANA","URBANA","INTERMUNICIPAL") -> INTERMUNICIPAL | D49: =IF(PLIQUIDACION!$D$8="FORRADO","FORRADO","FIBRA") -> FIBRA | E49: =IF(AND(C49="URBANA",D49="FORRADO"),0,IF(AND(C49="URBANA",D49="FIBRA"),VLOOKUP(B49,CONMPU!$A$34:$E$44,2,FALSE),IF(AND(C49="INTERMUNICIPAL",D49="FORRADO"),0,IF(AND(C49="INTERMUNICIPAL",D49="FIBRA"),VLOOKUP(INFORMES!B49,CONMPI!$A$35:$D$45,2,FALSE)," ")))) -> 0 | F49: =IF(AND(C49="URBANA",D49="FORRADO"),0,IF(AND(INFORMES!C49="URBANA",INFORMES!D49="FIBRA"),VLOOKUP(B49,MODURBANA!$B$44:$F$55,5,FALSE),IF(AND(INFORMES!C49="INTERMUNICIPAL",INFORMES!D49="FORRADO"),0,IF(AND(INFORMES!C49="INTERMUNICIPAL",INFORMES!D49="FIBRA"),VLOOKUP(B49,MODINTER!B50:F60,5,FALSE)," ")))) -> 25313.03 | G49: =IF(AND(C49="URBANA",D49="FORRADO"),0,IF(AND(C49="URBANA",D49="FIBRA"),VLOOKUP(B49,CONMPU!$A$34:$E$44,3,FALSE),IF(AND(C49="INTERMUNICIPAL",D49="FORRADO"),0,IF(AND(C49="INTERMUNICIPAL",D49="FIBRA"),VLOOKUP(INFORMES!B49,CONMPI!$A$35:$D$45,3,FALSE)," ")))) -> 193000 | H49: 0 | I49: 25313.03 | J49: 193000 | M49: 218313.03 | N49: DECORACION TECHO FIBRA
B50: Lijado sobre capa de fondo | C50: =IF(PLIQUIDACION!$D$6="URBANA","URBANA","INTERMUNICIPAL") -> INTERMUNICIPAL | D50: =IF(PLIQUIDACION!$D$8="FORRADO","FORRADO","FIBRA") -> FIBRA | E50: =IF(AND(C50="URBANA",D50="FORRADO"),0,IF(AND(C50="URBANA",D50="FIBRA"),VLOOKUP(B50,CONMPU!$A$34:$E$44,2,FALSE),IF(AND(C50="INTERMUNICIPAL",D50="FORRADO"),0,IF(AND(C50="INTERMUNICIPAL",D50="FIBRA"),VLOOKUP(INFORMES!B50,CONMPI!$A$35:$D$45,2,FALSE)," ")))) -> 0 | F50: =IF(AND(C50="URBANA",D50="FORRADO"),0,IF(AND(INFORMES!C50="URBANA",INFORMES!D50="FIBRA"),VLOOKUP(B50,MODURBANA!$B$44:$F$55,5,FALSE),IF(AND(INFORMES!C50="INTERMUNICIPAL",INFORMES!D50="FORRADO"),0,IF(AND(INFORMES!C50="INTERMUNICIPAL",INFORMES!D50="FIBRA"),VLOOKUP(B50,MODINTER!B51:F61,5,FALSE)," ")))) -> 18984.7725 | G50: =IF(AND(C50="URBANA",D50="FORRADO"),0,IF(AND(C50="URBANA",D50="FIBRA"),VLOOKUP(B50,CONMPU!$A$34:$E$44,3,FALSE),IF(AND(C50="INTERMUNICIPAL",D50="FORRADO"),0,IF(AND(C50="INTERMUNICIPAL",D50="FIBRA"),VLOOKUP(INFORMES!B50,CONMPI!$A$35:$D$45,3,FALSE)," ")))) -> 12500 | H50: 0 | I50: 18984.7725 | J50: 12500 | M50: 31484.7725 | N50: DECORACION TECHO FIBRA
B51: Aplicación de Capa de masilla | C51: =IF(PLIQUIDACION!$D$6="URBANA","URBANA","INTERMUNICIPAL") -> INTERMUNICIPAL | D51: =IF(PLIQUIDACION!$D$8="FORRADO","FORRADO","FIBRA") -> FIBRA | E51: =IF(AND(C51="URBANA",D51="FORRADO"),0,IF(AND(C51="URBANA",D51="FIBRA"),VLOOKUP(B51,CONMPU!$A$34:$E$44,2,FALSE),IF(AND(C51="INTERMUNICIPAL",D51="FORRADO"),0,IF(AND(C51="INTERMUNICIPAL",D51="FIBRA"),VLOOKUP(INFORMES!B51,CONMPI!$A$35:$D$45,2,FALSE)," ")))) -> 0 | F51: =IF(AND(C51="URBANA",D51="FORRADO"),0,IF(AND(INFORMES!C51="URBANA",INFORMES!D51="FIBRA"),VLOOKUP(B51,MODURBANA!$B$44:$F$55,5,FALSE),IF(AND(INFORMES!C51="INTERMUNICIPAL",INFORMES!D51="FORRADO"),0,IF(AND(INFORMES!C51="INTERMUNICIPAL",INFORMES!D51="FIBRA"),VLOOKUP(B51,MODINTER!B52:F62,5,FALSE)," ")))) -> 25313.03 | G51: =IF(AND(C51="URBANA",D51="FORRADO"),0,IF(AND(C51="URBANA",D51="FIBRA"),VLOOKUP(B51,CONMPU!$A$34:$E$44,3,FALSE),IF(AND(C51="INTERMUNICIPAL",D51="FORRADO"),0,IF(AND(C51="INTERMUNICIPAL",D51="FIBRA"),VLOOKUP(INFORMES!B51,CONMPI!$A$35:$D$45,3,FALSE)," ")))) -> 53500 | H51: 0 | I51: 25313.03 | J51: 53500 | M51: 78813.03 | N51: DECORACION TECHO FIBRA
B52: Lijado sobre capa de masilla | C52: =IF(PLIQUIDACION!$D$6="URBANA","URBANA","INTERMUNICIPAL") -> INTERMUNICIPAL | D52: =IF(PLIQUIDACION!$D$8="FORRADO","FORRADO","FIBRA") -> FIBRA | E52: =IF(AND(C52="URBANA",D52="FORRADO"),0,IF(AND(C52="URBANA",D52="FIBRA"),VLOOKUP(B52,CONMPU!$A$34:$E$44,2,FALSE),IF(AND(C52="INTERMUNICIPAL",D52="FORRADO"),0,IF(AND(C52="INTERMUNICIPAL",D52="FIBRA"),VLOOKUP(INFORMES!B52,CONMPI!$A$35:$D$45,2,FALSE)," ")))) -> 0 | F52: =IF(AND(C52="URBANA",D52="FORRADO"),0,IF(AND(INFORMES!C52="URBANA",INFORMES!D52="FIBRA"),VLOOKUP(B52,MODURBANA!$B$44:$F$55,5,FALSE),IF(AND(INFORMES!C52="INTERMUNICIPAL",INFORMES!D52="FORRADO"),0,IF(AND(INFORMES!C52="INTERMUNICIPAL",INFORMES!D52="FIBRA"),VLOOKUP(B52,MODINTER!B53:F63,5,FALSE)," ")))) -> 18984.7725 | G52: =IF(AND(C52="URBANA",D52="FORRADO"),0,IF(AND(C52="URBANA",D52="FIBRA"),VLOOKUP(B52,CONMPU!$A$34:$E$44,3,FALSE),IF(AND(C52="INTERMUNICIPAL",D52="FORRADO"),0,IF(AND(C52="INTERMUNICIPAL",D52="FIBRA"),VLOOKUP(INFORMES!B52,CONMPI!$A$35:$D$45,3,FALSE)," ")))) -> 10250 | H52: 0 | I52: 18984.7725 | J52: 10250 | M52: 29234.7725 | N52: DECORACION TECHO FIBRA
B53: Aplicación de Capa de fondo | C53: =IF(PLIQUIDACION!$D$6="URBANA","URBANA","INTERMUNICIPAL") -> INTERMUNICIPAL | D53: =IF(PLIQUIDACION!$D$8="FORRADO","FORRADO","FIBRA") -> FIBRA | E53: =IF(AND(C53="URBANA",D53="FORRADO"),0,IF(AND(C53="URBANA",D53="FIBRA"),VLOOKUP(B53,CONMPU!$A$34:$E$44,2,FALSE),IF(AND(C53="INTERMUNICIPAL",D53="FORRADO"),0,IF(AND(C53="INTERMUNICIPAL",D53="FIBRA"),VLOOKUP(INFORMES!B53,CONMPI!$A$35:$D$45,2,FALSE)," ")))) -> 0 | F53: =IF(AND(C53="URBANA",D53="FORRADO"),0,IF(AND(INFORMES!C53="URBANA",INFORMES!D53="FIBRA"),VLOOKUP(B53,MODURBANA!$B$44:$F$55,5,FALSE),IF(AND(INFORMES!C53="INTERMUNICIPAL",INFORMES!D53="FORRADO"),0,IF(AND(INFORMES!C53="INTERMUNICIPAL",INFORMES!D53="FIBRA"),VLOOKUP(B53,MODINTER!B54:F64,5,FALSE)," ")))) -> 25313.03 | G53: =IF(AND(C53="URBANA",D53="FORRADO"),0,IF(AND(C53="URBANA",D53="FIBRA"),VLOOKUP(B53,CONMPU!$A$34:$E$44,3,FALSE),IF(AND(C53="INTERMUNICIPAL",D53="FORRADO"),0,IF(AND(C53="INTERMUNICIPAL",D53="FIBRA"),VLOOKUP(INFORMES!B53,CONMPI!$A$35:$D$45,3,FALSE)," ")))) -> 193000 | H53: 0 | I53: 25313.03 | J53: 193000 | M53: 218313.03 | N53: DECORACION TECHO FIBRA
B54: Lijado sobre la capa de fondo | C54: =IF(PLIQUIDACION!$D$6="URBANA","URBANA","INTERMUNICIPAL") -> INTERMUNICIPAL | D54: =IF(PLIQUIDACION!$D$8="FORRADO","FORRADO","FIBRA") -> FIBRA | E54: =IF(AND(C54="URBANA",D54="FORRADO"),0,IF(AND(C54="URBANA",D54="FIBRA"),VLOOKUP(B54,CONMPU!$A$34:$E$44,2,FALSE),IF(AND(C54="INTERMUNICIPAL",D54="FORRADO"),0,IF(AND(C54="INTERMUNICIPAL",D54="FIBRA"),VLOOKUP(INFORMES!B54,CONMPI!$A$35:$D$45,2,FALSE)," ")))) -> 0 | F54: =IF(AND(C54="URBANA",D54="FORRADO"),0,IF(AND(INFORMES!C54="URBANA",INFORMES!D54="FIBRA"),VLOOKUP(B54,MODURBANA!$B$44:$F$55,5,FALSE),IF(AND(INFORMES!C54="INTERMUNICIPAL",INFORMES!D54="FORRADO"),0,IF(AND(INFORMES!C54="INTERMUNICIPAL",INFORMES!D54="FIBRA"),VLOOKUP(B54,MODINTER!B55:F65,5,FALSE)," ")))) -> 18984.7725 | G54: =IF(AND(C54="URBANA",D54="FORRADO"),0,IF(AND(C54="URBANA",D54="FIBRA"),VLOOKUP(B54,CONMPU!$A$34:$E$44,3,FALSE),IF(AND(C54="INTERMUNICIPAL",D54="FORRADO"),0,IF(AND(C54="INTERMUNICIPAL",D54="FIBRA"),VLOOKUP(INFORMES!B54,CONMPI!$A$35:$D$45,3,FALSE)," ")))) -> 12500 | H54: 0 | I54: 18984.7725 | J54: 12500 | M54: 31484.7725 | N54: DECORACION TECHO FIBRA
B55: Pintar piezas | C55: =IF(PLIQUIDACION!$D$6="URBANA","URBANA","INTERMUNICIPAL") -> INTERMUNICIPAL | D55: =IF(PLIQUIDACION!$D$8="FORRADO","FORRADO","FIBRA") -> FIBRA | E55: =IF(AND(C55="URBANA",D55="FORRADO"),0,IF(AND(C55="URBANA",D55="FIBRA"),VLOOKUP(B55,CONMPU!$A$34:$E$44,2,FALSE),IF(AND(C55="INTERMUNICIPAL",D55="FORRADO"),0,IF(AND(C55="INTERMUNICIPAL",D55="FIBRA"),VLOOKUP(INFORMES!B55,CONMPI!$A$35:$D$45,2,FALSE)," ")))) -> 0 | F55: =IF(AND(C55="URBANA",D55="FORRADO"),0,IF(AND(INFORMES!C55="URBANA",INFORMES!D55="FIBRA"),VLOOKUP(B55,MODURBANA!$B$44:$F$55,5,FALSE),IF(AND(INFORMES!C55="INTERMUNICIPAL",INFORMES!D55="FORRADO"),0,IF(AND(INFORMES!C55="INTERMUNICIPAL",INFORMES!D55="FIBRA"),VLOOKUP(B55,MODINTER!B56:F66,5,FALSE)," ")))) -> 56954.3175 | G55: =IF(AND(C55="URBANA",D55="FORRADO"),0,IF(AND(C55="URBANA",D55="FIBRA"),VLOOKUP(B55,CONMPU!$A$34:$E$44,3,FALSE),IF(AND(C55="INTERMUNICIPAL",D55="FORRADO"),0,IF(AND(C55="INTERMUNICIPAL",D55="FIBRA"),VLOOKUP(INFORMES!B55,CONMPI!$A$35:$D$45,3,FALSE)," ")))) -> 395000 | H55: 0 | I55: 56954.3175 | J55: 395000 | M55: 451954.3175 | N55: DECORACION TECHO FIBRA
A56: DECORACION ( PISO EN HULE) | B56: Preparación de piso | C56: =IF(PLIQUIDACION!$D$6="URBANA","URBANA","INTERMUNICIPAL") -> INTERMUNICIPAL | D56: =IF(PLIQUIDACION!$D$10="HULE","HULE","LAMINA") -> HULE | E56: =IF(AND(C56="URBANA",D56="HULE"),VLOOKUP(B56,CONMPU!$A$25:$E$28,2,FALSE),IF(AND(C56="URBANA",D56="LAMINA"),0,IF(AND(C56="INTERMUNICIPAL",D56="HULE"),VLOOKUP(B56,CONMPI!$A$26:$D$29,2,FALSE),IF(AND(C56="INTERMUNICIPAL",D56="LAMINA"),0," ")))) -> 0 | F56: =IF(AND(C56="URBANA",D56="HULE"),VLOOKUP(B56,MODURBANA!$B$56:$F$59,5,FALSE),IF(AND(INFORMES!C56="URBANA",INFORMES!D56="LAMINA"),0,IF(AND(INFORMES!C56="INTERMUNICIPAL",INFORMES!D56="HULE"),VLOOKUP(B56,MODINTER!$B$57:$F$60,5,FALSE),IF(AND(INFORMES!C56="INTERMUNICIPAL",INFORMES!D56="LAMINA"),0," ")))) -> 28758.9625 | G56: =IF(AND(C56="URBANA",D56="HULE"),VLOOKUP(B56,CONMPU!$A$25:$E$28,3,FALSE),IF(AND(C56="URBANA",D56="LAMINA"),0,IF(AND(C56="INTERMUNICIPAL",D56="HULE"),VLOOKUP(B56,CONMPI!$A$26:$D$29,3,FALSE),IF(AND(C56="INTERMUNICIPAL",D56="LAMINA"),0," ")))) -> 0 | H56: 0 | I56: 28758.9625 | J56: 0 | M56: 28758.9625 | N56: DECORACION PISO HULE
B57: Instalación de piso en madera | C57: =IF(PLIQUIDACION!$D$6="URBANA","URBANA","INTERMUNICIPAL") -> INTERMUNICIPAL | D57: =IF(PLIQUIDACION!$D$10="HULE","HULE","LAMINA") -> HULE | E57: =IF(AND(C57="URBANA",D57="HULE"),VLOOKUP(B57,CONMPU!$A$25:$E$28,2,FALSE),IF(AND(C57="URBANA",D57="LAMINA"),0,IF(AND(C57="INTERMUNICIPAL",D57="HULE"),VLOOKUP(B57,CONMPI!$A$27:$D$29,2,FALSE),IF(AND(C57="INTERMUNICIPAL",D57="LAMINA"),0," ")))) -> 540000 | F57: =IF(AND(C57="URBANA",D57="HULE"),VLOOKUP(B57,MODURBANA!$B$56:$F$59,5,FALSE),IF(AND(INFORMES!C57="URBANA",INFORMES!D57="LAMINA"),0,IF(AND(INFORMES!C57="INTERMUNICIPAL",INFORMES!D57="HULE"),VLOOKUP(B57,MODINTER!$B$57:$F$60,5,FALSE),IF(AND(INFORMES!C57="INTERMUNICIPAL",INFORMES!D57="LAMINA"),0," ")))) -> 126539.435 | G57: =IF(AND(C57="URBANA",D57="HULE"),VLOOKUP(B57,CONMPU!$A$25:$E$28,3,FALSE),IF(AND(C57="URBANA",D57="LAMINA"),0,IF(AND(C57="INTERMUNICIPAL",D57="HULE"),VLOOKUP(B57,CONMPI!$A$26:$D$29,3,FALSE),IF(AND(C57="INTERMUNICIPAL",D57="LAMINA"),0," ")))) -> 7246.7 | H57: 540000 | I57: 126539.435 | J57: 7246.7 | M57: 673786.135 | N57: DECORACION PISO HULE
B58: Instalación de piso en caucho | C58: =IF(PLIQUIDACION!$D$6="URBANA","URBANA","INTERMUNICIPAL") -> INTERMUNICIPAL | D58: =IF(PLIQUIDACION!$D$10="HULE","HULE","LAMINA") -> HULE | E58: =IF(AND(C58="URBANA",D58="HULE"),VLOOKUP(B58,CONMPU!$A$25:$E$28,2,FALSE),IF(AND(C58="URBANA",D58="LAMINA"),0,IF(AND(C58="INTERMUNICIPAL",D58="HULE"),VLOOKUP(B58,CONMPI!$A$27:$D$29,2,FALSE),IF(AND(C58="INTERMUNICIPAL",D58="LAMINA"),0," ")))) -> 241423 | F58: =IF(AND(C58="URBANA",D58="HULE"),VLOOKUP(B58,MODURBANA!$B$56:$F$59,5,FALSE),IF(AND(INFORMES!C58="URBANA",INFORMES!D58="LAMINA"),0,IF(AND(INFORMES!C58="INTERMUNICIPAL",INFORMES!D58="HULE"),VLOOKUP(B58,MODINTER!$B$57:$F$60,5,FALSE),IF(AND(INFORMES!C58="INTERMUNICIPAL",INFORMES!D58="LAMINA"),0," ")))) -> 103532.265 | G58: =IF(AND(C58="URBANA",D58="HULE"),VLOOKUP(B58,CONMPU!$A$25:$E$28,3,FALSE),IF(AND(C58="URBANA",D58="LAMINA"),0,IF(AND(C58="INTERMUNICIPAL",D58="HULE"),VLOOKUP(B58,CONMPI!$A$26:$D$29,3,FALSE),IF(AND(C58="INTERMUNICIPAL",D58="LAMINA"),0," ")))) -> 44666.66667 | H58: 241423 | I58: 103532.265 | J58: 44666.66667 | M58: 389621.9317 | N58: DECORACION PISO HULE
B59: piso parte delantera | C59: =IF(PLIQUIDACION!$D$6="URBANA","URBANA","INTERMUNICIPAL") -> INTERMUNICIPAL | D59: =IF(PLIQUIDACION!$D$10="HULE","HULE","LAMINA") -> HULE | E59: =IF(AND(C59="URBANA",D59="HULE"),VLOOKUP(B59,CONMPU!$A$25:$E$28,2,FALSE),IF(AND(C59="URBANA",D59="LAMINA"),0,IF(AND(C59="INTERMUNICIPAL",D59="HULE"),VLOOKUP(B59,CONMPI!$A$27:$D$29,2,FALSE),IF(AND(C59="INTERMUNICIPAL",D59="LAMINA"),0," ")))) -> 159996 | F59: =IF(AND(C59="URBANA",D59="HULE"),VLOOKUP(B59,MODURBANA!$B$56:$F$59,5,FALSE),IF(AND(INFORMES!C59="URBANA",INFORMES!D59="LAMINA"),0,IF(AND(INFORMES!C59="INTERMUNICIPAL",INFORMES!D59="HULE"),VLOOKUP(B59,MODINTER!$B$57:$F$60,5,FALSE),IF(AND(INFORMES!C59="INTERMUNICIPAL",INFORMES!D59="LAMINA"),0," ")))) -> 23007.17 | G59: =IF(AND(C59="URBANA",D59="HULE"),VLOOKUP(B59,CONMPU!$A$25:$E$28,3,FALSE),IF(AND(C59="URBANA",D59="LAMINA"),0,IF(AND(C59="INTERMUNICIPAL",D59="HULE"),VLOOKUP(B59,CONMPI!$A$26:$D$29,3,FALSE),IF(AND(C59="INTERMUNICIPAL",D59="LAMINA"),0," ")))) -> 22333.33333 | H59: 159996 | I59: 23007.17 | J59: 22333.33333 | M59: 205336.5033 | N59: DECORACION PISO HULE
A60: DECORACION ( PISO EN LAMINA) | B60: Preparación de piso | C60: =IF(PLIQUIDACION!$D$6="URBANA","URBANA","INTERMUNICIPAL") -> INTERMUNICIPAL | D60: =IF(PLIQUIDACION!$D$10="HULE","HULE","LAMINA") -> HULE | E60: =IF(AND(C60="URBANA",D60="HULE"),0,IF(AND(C60="URBANA",D60="LAMINA"),VLOOKUP(B60,CONMPU!$A$30:$E$32,2,FALSE),IF(AND(C60="INTERMUNICIPAL",D60="HULE"),0,IF(AND(C60="INTERMUNICIPAL",D60="LAMINA"),VLOOKUP(B60,CONMPI!$A$31:$D$33,2,FALSE)," ")))) -> 0 | F60: =IF(AND(C60="URBANA",D60="HULE"),0,IF(AND(INFORMES!C60="URBANA",INFORMES!D60="LAMINA"),VLOOKUP(B60,MODURBANA!$B$60:$F$62,5,FALSE),IF(AND(INFORMES!C60="INTERMUNICIPAL",INFORMES!D60="HULE"),0,IF(AND(INFORMES!C60="INTERMUNICIPAL",INFORMES!D60="LAMINA"),VLOOKUP(B60,MODINTER!$B$61:$F$63,5,FALSE)," ")))) -> 0 | G60: =IF(AND(C60="URBANA",D60="HULE"),0,IF(AND(C60="URBANA",D60="LAMINA"),VLOOKUP(B60,CONMPU!$A$30:$E$32,3,FALSE),IF(AND(C60="INTERMUNICIPAL",D60="HULE"),0,IF(AND(C60="INTERMUNICIPAL",D60="LAMINA"),VLOOKUP(B60,CONMPI!$A$31:$D$33,3,FALSE)," ")))) -> 0 | H60: 0 | I60: 0 | J60: 0 | M60: 0 | N60: DECORACION PISO LAMINA
B61: Instalación de piso en madera | C61: =IF(PLIQUIDACION!$D$6="URBANA","URBANA","INTERMUNICIPAL") -> INTERMUNICIPAL | D61: =IF(PLIQUIDACION!$D$10="HULE","HULE","LAMINA") -> HULE | E61: =IF(AND(C61="URBANA",D61="HULE"),0,IF(AND(C61="URBANA",D61="LAMINA"),VLOOKUP(B61,CONMPU!$A$30:$E$32,2,FALSE),IF(AND(C61="INTERMUNICIPAL",D61="HULE"),0,IF(AND(C61="INTERMUNICIPAL",D61="LAMINA"),VLOOKUP(B61,CONMPI!$A$31:$D$33,2,FALSE)," ")))) -> 0 | F61: =IF(AND(C61="URBANA",D61="HULE"),0,IF(AND(INFORMES!C61="URBANA",INFORMES!D61="LAMINA"),VLOOKUP(B61,MODURBANA!$B$60:$F$62,5,FALSE),IF(AND(INFORMES!C61="INTERMUNICIPAL",INFORMES!D61="HULE"),0,IF(AND(INFORMES!C61="INTERMUNICIPAL",INFORMES!D61="LAMINA"),VLOOKUP(B61,MODINTER!$B$61:$F$63,5,FALSE)," ")))) -> 0 | G61: =IF(AND(C61="URBANA",D61="HULE"),0,IF(AND(C61="URBANA",D61="LAMINA"),VLOOKUP(B61,CONMPU!$A$30:$E$32,3,FALSE),IF(AND(C61="INTERMUNICIPAL",D61="HULE"),0,IF(AND(C61="INTERMUNICIPAL",D61="LAMINA"),VLOOKUP(B61,CONMPI!$A$31:$D$33,3,FALSE)," ")))) -> 0 | H61: 0 | I61: 0 | J61: 0 | M61: 0 | N61: DECORACION PISO LAMINA
B62: Instalación de piso en lámina | C62: =IF(PLIQUIDACION!$D$6="URBANA","URBANA","INTERMUNICIPAL") -> INTERMUNICIPAL | D62: =IF(PLIQUIDACION!$D$10="HULE","HULE","LAMINA") -> HULE | E62: =IF(AND(C62="URBANA",D62="HULE"),0,IF(AND(C62="URBANA",D62="LAMINA"),VLOOKUP(B62,CONMPU!$A$30:$E$32,2,FALSE),IF(AND(C62="INTERMUNICIPAL",D62="HULE"),0,IF(AND(C62="INTERMUNICIPAL",D62="LAMINA"),VLOOKUP(B62,CONMPI!$A$31:$D$33,2,FALSE)," ")))) -> 0 | F62: =IF(AND(C62="URBANA",D62="HULE"),0,IF(AND(INFORMES!C62="URBANA",INFORMES!D62="LAMINA"),VLOOKUP(B62,MODURBANA!$B$60:$F$62,5,FALSE),IF(AND(INFORMES!C62="INTERMUNICIPAL",INFORMES!D62="HULE"),0,IF(AND(INFORMES!C62="INTERMUNICIPAL",INFORMES!D62="LAMINA"),VLOOKUP(B62,MODINTER!$B$61:$F$63,5,FALSE)," ")))) -> 0 | G62: =IF(AND(C62="URBANA",D62="HULE"),0,IF(AND(C62="URBANA",D62="LAMINA"),VLOOKUP(B62,CONMPU!$A$30:$E$32,3,FALSE),IF(AND(C62="INTERMUNICIPAL",D62="HULE"),0,IF(AND(C62="INTERMUNICIPAL",D62="LAMINA"),VLOOKUP(B62,CONMPI!$A$31:$D$33,3,FALSE)," ")))) -> 0 | H62: 0 | I62: 0 | J62: 0 | M62: 0 | N62: DECORACION PISO LAMINA
A63: DECORACION (VIDRIOS Y LUJOS) | B63: Adecuacion de cajones internos | C63: =IF(PLIQUIDACION!$D$6="URBANA","URBANA","INTERMUNICIPAL") -> INTERMUNICIPAL | H63: =IF(INFORMES!C63="URBANA",VLOOKUP(B63,CONMPU!$A$1:$E$91,2,FALSE),VLOOKUP(INFORMES!B63,CONMPI!$A$1:$D$93,2,FALSE)) -> 243600 | I63: =IF(C63="URBANA",VLOOKUP(B63,MODURBANA!$B$63:$F$66,5,FALSE),VLOOKUP(B63,MODINTER!$B$7:$F$82,5,FALSE)) -> 17255.3775 | J63: =IF(INFORMES!C63="URBANA",VLOOKUP(B63,CONMPU!$A$1:$E$91,3,FALSE),VLOOKUP(INFORMES!B63,CONMPI!$A$1:$D$93,3,FALSE)) -> 94044 | M63: 354899.3775 | N63: DECORACION VIDRIOS Y LUJOS
B64: Instalar unidades | C64: =IF(PLIQUIDACION!$D$6="URBANA","URBANA","INTERMUNICIPAL") -> INTERMUNICIPAL | H64: =IF(INFORMES!C64="URBANA",VLOOKUP(B64,CONMPU!$A$1:$E$91,2,FALSE),VLOOKUP(INFORMES!B64,CONMPI!$A$1:$D$93,2,FALSE)) -> 0 | I64: =IF(C64="URBANA",VLOOKUP(B64,MODURBANA!$B$63:$F$66,5,FALSE),VLOOKUP(B64,MODINTER!$B$7:$F$82,5,FALSE)) -> 17255.3775 | J64: =IF(INFORMES!C64="URBANA",VLOOKUP(B64,CONMPU!$A$1:$E$91,3,FALSE),VLOOKUP(INFORMES!B64,CONMPI!$A$1:$D$93,3,FALSE)) -> 850000 | M64: 867255.3775 | N64: DECORACION VIDRIOS Y LUJOS
B65: Instalar claraboyá | C65: =IF(PLIQUIDACION!$D$6="URBANA","URBANA","INTERMUNICIPAL") -> INTERMUNICIPAL | D65: =IF(PLIQUIDACION!$E$16="X","SI","NO") -> NO | E65: =IF(AND(C65="URBANA",D65="SI"),VLOOKUP(B65,CONMPU!$A$52:$E$55,2,FALSE),IF(AND(C65="URBANA",D65="NO"),0,IF(AND(C65="INTERMUNICIPAL",D65="SI"),VLOOKUP(B65,CONMPI!$A$54:$D$57,2,FALSE),IF(AND(C65="INTERMUNICIPAL",D65="NO"),0," ")))) -> 0 | F65: =IF(AND(C65="URBANA",D65="SI"),VLOOKUP(B65,MODURBANA!$B$64:$F$66,5,FALSE),IF(AND(C65="URBANA",D65="NO"),0,IF(AND(C65="INTERMUNICIPAL",D65="SI"),VLOOKUP(B65,MODINTER!$B$65:$F$67,5,FALSE),IF(AND(C65="INTERMUNICIPAL",D65="NO"),0," ")))) -> 0 | G65: =IF(AND(C65="URBANA",D65="SI"),VLOOKUP(B65,CONMPU!$A$52:$E$55,3,FALSE),IF(AND(C65="URBANA",D65="NO"),0,IF(AND(C65="INTERMUNICIPAL",D65="SI"),VLOOKUP(B65,CONMPI!$A$54:$D$57,3,FALSE),IF(AND(C65="INTERMUNICIPAL",D65="NO"),0," ")))) -> 0 | H65: =E65 -> 0 | I65: =F65 -> 0 | J65: =+G65 -> 0 | M65: 0 | N65: DECORACION VIDRIOS Y LUJOS
B66: Instalar vidrios | C66: =IF(PLIQUIDACION!$D$6="URBANA","URBANA","INTERMUNICIPAL") -> INTERMUNICIPAL | H66: =IF(INFORMES!C66="URBANA",VLOOKUP(B66,CONMPU!$A$1:$E$91,2,FALSE),VLOOKUP(INFORMES!B66,CONMPI!$A$1:$D$93,2,FALSE)) -> 783432 | I66: =IF(C66="URBANA",VLOOKUP(B66,MODURBANA!$B$63:$F$66,5,FALSE),VLOOKUP(B66,MODINTER!$B$7:$F$82,5,FALSE)) -> 5300000 | J66: =IF(INFORMES!C66="URBANA",VLOOKUP(B66,CONMPU!$A$1:$E$91,3,FALSE),VLOOKUP(INFORMES!B66,CONMPI!$A$1:$D$93,3,FALSE)) -> 2251339.5 | M66: 8334771.5 | N66: DECORACION VIDRIOS Y LUJOS
A67: ADECUACIONES ELÉCTRICAS | B67: Instalación de motores de limpia brisas | C67: =IF(PLIQUIDACION!$D$6="URBANA","URBANA","INTERMUNICIPAL") -> INTERMUNICIPAL | H67: =IF(INFORMES!C67="URBANA",VLOOKUP(B67,CONMPU!$A$1:$E$91,2,FALSE),VLOOKUP(INFORMES!B67,CONMPI!$A$1:$D$93,2,FALSE)) -> 669500 | I67: =IF(C67="URBANA",VLOOKUP(B67,MODURBANA!$B$67:$F$74,5,FALSE),VLOOKUP(B67,MODINTER!$B$7:$F$82,5,FALSE)) -> 33646.0575 | J67: =IF(INFORMES!C67="URBANA",VLOOKUP(B67,CONMPU!$A$1:$E$91,3,FALSE),VLOOKUP(INFORMES!B67,CONMPI!$A$1:$D$93,3,FALSE)) -> 0 | K67: =+CIF!B24+CIF!C24 -> 207213.5912 | L67: =+CIF!D24+CIF!E24+CIF!F24+CIF!G24+CIF!H24+CIF!I24+CIF!J24+CIF!K24 -> 132581.928 | M67: 1042941.577 | N67: ADECUACIONES ELECTRICAS
B68: Instalación de velas | C68: =IF(PLIQUIDACION!$D$6="URBANA","URBANA","INTERMUNICIPAL") -> INTERMUNICIPAL | D68: =IF(PLIQUIDACION!E17="X","SI","NO") -> NO | E68: =IF(AND(C68="URBANA",D68="SI"),VLOOKUP(B68,CONMPU!$A$9:$E$16,2,FALSE),IF(AND(C68="URBANA",D68="NO"),0,IF(AND(C68="INTERMUNICIPAL",D68="SI"),VLOOKUP(B68,CONMPI!$A$10:$D$16,2,FALSE),IF(AND(C68="INTERMUNICIPAL",D68="NO"),0," ")))) -> 0 | F68: =IF(AND(C68="URBANA",D68="SI"),VLOOKUP(B68,MODURBANA!$B$64:$F$74,5,FALSE),IF(AND(C68="URBANA",D68="NO"),0,IF(AND(C68="INTERMUNICIPAL",D68="SI"),VLOOKUP(B68,MODINTER!$B$65:$F$76,5,FALSE),IF(AND(C68="INTERMUNICIPAL",D68="NO"),0," ")))) -> 0 | G68: =IF(AND(C68="URBANA",D68="SI"),VLOOKUP(B68,CONMPU!$A$9:$E$16,3,FALSE),IF(AND(C68="URBANA",D68="NO"),0,IF(AND(C68="INTERMUNICIPAL",D68="SI"),VLOOKUP(B68,CONMPI!$A$10:$D$16,3,FALSE),IF(AND(C68="INTERMUNICIPAL",D68="NO"),0," ")))) -> 0 | H68: =E68 -> 0 | I68: =F68 -> 0 | J68: =IF(INFORMES!C68="URBANA",VLOOKUP(B68,CONMPU!$A$1:$E$91,3,FALSE),VLOOKUP(INFORMES!B68,CONMPI!$A$1:$D$93,3,FALSE)) -> 0 | M68: 0 | N68: ADECUACIONES ELECTRICAS
B69: Instalación de espejos | C69: =IF(PLIQUIDACION!$D$6="URBANA","URBANA","INTERMUNICIPAL") -> INTERMUNICIPAL | H69: =IF(INFORMES!C69="URBANA",VLOOKUP(B69,CONMPU!$A$1:$E$91,2,FALSE),VLOOKUP(INFORMES!B69,CONMPI!$A$1:$D$93,2,FALSE)) -> 120000 | I69: =IF(C69="URBANA",VLOOKUP(B69,MODURBANA!$B$67:$F$74,5,FALSE),VLOOKUP(B69,MODINTER!$B$7:$F$82,5,FALSE)) -> 17255.3775 | J69: =IF(INFORMES!C69="URBANA",VLOOKUP(B69,CONMPU!$A$1:$E$91,3,FALSE),VLOOKUP(INFORMES!B69,CONMPI!$A$1:$D$93,3,FALSE)) -> 0 | M69: 137255.3775 | N69: ADECUACIONES ELECTRICAS
B70: Instalación de licuadoras | C70: =IF(PLIQUIDACION!$D$6="URBANA","URBANA","INTERMUNICIPAL") -> INTERMUNICIPAL | D70: =IF(PLIQUIDACION!E18="X","SI","NO") -> SI | E70: =IF(AND(C70="URBANA",D70="SI"),VLOOKUP(B70,CONMPU!$A$9:$E$16,2,FALSE),IF(AND(C70="URBANA",D70="NO"),0,IF(AND(C70="INTERMUNICIPAL",D70="SI"),VLOOKUP(B70,CONMPI!$A$10:$D$16,2,FALSE),IF(AND(C70="INTERMUNICIPAL",D70="NO"),0," ")))) -> 689000 | F70: =IF(AND(C70="URBANA",D70="SI"),VLOOKUP(B70,MODURBANA!$B$64:$F$74,5,FALSE),IF(AND(C70="URBANA",D70="NO"),0,IF(AND(C70="INTERMUNICIPAL",D70="SI"),VLOOKUP(B70,MODINTER!$B$65:$F$76,5,FALSE),IF(AND(C70="INTERMUNICIPAL",D70="NO"),0," ")))) -> 33646.0575 | G70: =IF(AND(C70="URBANA",D70="SI"),VLOOKUP(B70,CONMPU!$A$9:$E$16,3,FALSE),IF(AND(C70="URBANA",D70="NO"),0,IF(AND(C70="INTERMUNICIPAL",D70="SI"),VLOOKUP(B70,CONMPI!$A$10:$D$16,3,FALSE),IF(AND(C70="INTERMUNICIPAL",D70="NO"),0," ")))) -> 2508 | H70: =E70 -> 689000 | I70: =F70 -> 33646.0575 | J70: =+G70 -> 2508 | M70: =+H70+I70+J70+K70+L70 -> 725154.0575 | N70: ADECUACIONES ELECTRICAS
B71: Instalación de radio | C71: =IF(PLIQUIDACION!$D$6="URBANA","URBANA","INTERMUNICIPAL") -> INTERMUNICIPAL | D71: =IF(PLIQUIDACION!E19="X","SI","NO") -> SI | E71: =IF(AND(C71="URBANA",D71="SI"),VLOOKUP(B71,CONMPU!$A$9:$E$16,2,FALSE),IF(AND(C71="URBANA",D71="NO"),0,IF(AND(C71="INTERMUNICIPAL",D71="SI"),VLOOKUP(B71,CONMPI!$A$10:$D$16,2,FALSE),IF(AND(C71="INTERMUNICIPAL",D71="NO"),0," ")))) -> 0 | F71: =IF(AND(C71="URBANA",D71="SI"),VLOOKUP(B71,MODURBANA!$B$64:$F$74,5,FALSE),IF(AND(C71="URBANA",D71="NO"),0,IF(AND(C71="INTERMUNICIPAL",D71="SI"),VLOOKUP(B71,MODINTER!$B$65:$F$76,5,FALSE),IF(AND(C71="INTERMUNICIPAL",D71="NO"),0," ")))) -> 44861.41 | G71: =IF(AND(C71="URBANA",D71="SI"),VLOOKUP(B71,CONMPU!$A$9:$E$16,3,FALSE),IF(AND(C71="URBANA",D71="NO"),0,IF(AND(C71="INTERMUNICIPAL",D71="SI"),VLOOKUP(B71,CONMPI!$A$10:$D$16,3,FALSE),IF(AND(C71="INTERMUNICIPAL",D71="NO"),0," ")))) -> 11100 | H71: =E71 -> 0 | I71: =F71 -> 44861.41 | J71: =+G71 -> 11100 | M71: 55961.41 | N71: ADECUACIONES ELECTRICAS
B72: Instalación de parlantes | C72: =IF(PLIQUIDACION!$D$6="URBANA","URBANA","INTERMUNICIPAL") -> INTERMUNICIPAL | D72: =IF(PLIQUIDACION!E20="X","SI","NO") -> SI | E72: =IF(AND(C72="URBANA",D72="SI"),VLOOKUP(B72,CONMPU!$A$9:$E$16,2,FALSE),IF(AND(C72="URBANA",D72="NO"),0,IF(AND(C72="INTERMUNICIPAL",D72="SI"),VLOOKUP(B72,CONMPI!$A$10:$D$16,2,FALSE),IF(AND(C72="INTERMUNICIPAL",D72="NO"),0," ")))) -> 230000 | F72: =IF(AND(C72="URBANA",D72="SI"),VLOOKUP(B72,MODURBANA!$B$64:$F$74,5,FALSE),IF(AND(C72="URBANA",D72="NO"),0,IF(AND(C72="INTERMUNICIPAL",D72="SI"),VLOOKUP(B72,MODINTER!$B$65:$F$76,5,FALSE),IF(AND(C72="INTERMUNICIPAL",D72="NO"),0," ")))) -> 33646.0575 | G72: =IF(AND(C72="URBANA",D72="SI"),VLOOKUP(B72,CONMPU!$A$9:$E$16,3,FALSE),IF(AND(C72="URBANA",D72="NO"),0,IF(AND(C72="INTERMUNICIPAL",D72="SI"),VLOOKUP(B72,CONMPI!$A$10:$D$16,3,FALSE),IF(AND(C72="INTERMUNICIPAL",D72="NO"),0," ")))) -> 81600 | H72: =E72 -> 230000 | I72: 33646.0575 | J72: =+G72 -> 81600 | M72: 345246.0575 | N72: ADECUACIONES ELECTRICAS
B73: Adecuación de alumbrado interno | C73: =IF(PLIQUIDACION!$D$6="URBANA","URBANA","INTERMUNICIPAL") -> INTERMUNICIPAL | H73: =IF(INFORMES!C73="URBANA",VLOOKUP(B73,CONMPU!$A$1:$E$91,2,FALSE),VLOOKUP(INFORMES!B73,CONMPI!$A$1:$D$93,2,FALSE)) -> 1055500 | I73: =IF(C73="URBANA",VLOOKUP(B73,MODURBANA!$B$67:$F$74,5,FALSE),VLOOKUP(B73,MODINTER!$B$7:$F$82,5,FALSE)) -> 67292.115 | J73: =IF(INFORMES!C73="URBANA",VLOOKUP(B73,CONMPU!$A$1:$E$91,3,FALSE),VLOOKUP(INFORMES!B73,CONMPI!$A$1:$D$93,3,FALSE)) -> 23700 | M73: 1146492.115 | N73: ADECUACIONES ELECTRICAS
B74: Adecuación de Boster | C74: =IF(PLIQUIDACION!$D$6="URBANA","URBANA","INTERMUNICIPAL") -> INTERMUNICIPAL | H74: =IF(INFORMES!C74="URBANA",VLOOKUP(B74,CONMPU!$A$1:$E$91,2,FALSE),VLOOKUP(INFORMES!B74,CONMPI!$A$1:$D$93,2,FALSE)) -> 0 | I74: =IF(C74="URBANA",VLOOKUP(B74,MODURBANA!$B$67:$F$74,5,FALSE),VLOOKUP(B74,MODINTER!$B$7:$F$82,5,FALSE)) -> 44861.41 | J74: =IF(INFORMES!C74="URBANA",VLOOKUP(B74,CONMPU!$A$1:$E$91,3,FALSE),VLOOKUP(INFORMES!B74,CONMPI!$A$1:$D$93,3,FALSE)) -> 162400 | M74: 207261.41 | N74: ADECUACIONES ELECTRICAS
A75: SILLETERIA | B75: hechura de estructura | C75: =IF(PLIQUIDACION!$D$6="URBANA","URBANA","INTERMUNICIPAL") -> INTERMUNICIPAL | H75: =IF(INFORMES!C75="URBANA",VLOOKUP(B75,CONMPU!$A$1:$E$91,2,FALSE),VLOOKUP(INFORMES!B75,CONMPI!$A$1:$D$93,2,FALSE)) -> 620890 | I75: =IF(C75="URBANA",VLOOKUP(B75,MODURBANA!$B$6:$F$81,5,FALSE),VLOOKUP(B75,MODINTER!$B$7:$F$82,5,FALSE)) -> 609690.005 | J75: =IF(INFORMES!C75="URBANA",VLOOKUP(B75,CONMPU!$A$1:$E$91,3,FALSE),VLOOKUP(INFORMES!B75,CONMPI!$A$1:$D$93,3,FALSE)) -> 74200 | K75: =+CIF!B26+CIF!C26 -> 172436.7805 | L75: =+CIF!D26+CIF!E26+CIF!F26+CIF!G26+CIF!H26+CIF!I26+CIF!J26+CIF!K26 -> 137078.916 | M75: 1614295.701 | N75: SILLETERIA
B76: tapizada | C76: =IF(PLIQUIDACION!$D$6="URBANA","URBANA","INTERMUNICIPAL") -> INTERMUNICIPAL | H76: =IF(INFORMES!C76="URBANA",VLOOKUP(B76,CONMPU!$A$1:$E$91,2,FALSE),VLOOKUP(INFORMES!B76,CONMPI!$A$1:$D$93,2,FALSE)) -> 666500 | I76: =IF(C76="URBANA",VLOOKUP(B76,MODURBANA!$B$6:$F$81,5,FALSE),VLOOKUP(B76,MODINTER!$B$7:$F$82,5,FALSE)) -> 908443.5525 | J76: =IF(INFORMES!C76="URBANA",VLOOKUP(B76,CONMPU!$A$1:$E$91,3,FALSE),VLOOKUP(INFORMES!B76,CONMPI!$A$1:$D$93,3,FALSE)) -> 762464.2 | M76: 2337407.753 | N76: SILLETERIA
B77: Instalación de sillas | C77: =IF(PLIQUIDACION!$D$6="URBANA","URBANA","INTERMUNICIPAL") -> INTERMUNICIPAL | H77: =IF(INFORMES!C77="URBANA",VLOOKUP(B77,CONMPU!$A$1:$E$91,2,FALSE),VLOOKUP(INFORMES!B77,CONMPI!$A$1:$D$93,2,FALSE)) -> 0 | I77: =IF(C77="URBANA",VLOOKUP(B77,MODURBANA!$B$6:$F$81,5,FALSE),VLOOKUP(B77,MODINTER!$B$7:$F$82,5,FALSE)) -> 560767.625 | J77: =IF(INFORMES!C77="URBANA",VLOOKUP(B77,CONMPU!$A$1:$E$91,3,FALSE),VLOOKUP(INFORMES!B77,CONMPI!$A$1:$D$93,3,FALSE)) -> 0 | M77: 560767.625 | N77: SILLETERIA
A78: DECORACION GENERAL | B78: Instalacion de tubos pasamanos | C78: =IF(PLIQUIDACION!$D$6="URBANA","URBANA","INTERMUNICIPAL") -> INTERMUNICIPAL | H78: =IF(INFORMES!C78="URBANA",VLOOKUP(B78,CONMPU!$A$1:$E$91,2,FALSE),VLOOKUP(INFORMES!B78,CONMPI!$A$1:$D$93,2,FALSE)) -> 325000 | I78: =IF(C78="URBANA",VLOOKUP(B78,MODURBANA!$B$6:$F$81,5,FALSE),VLOOKUP(B78,MODINTER!$B$7:$F$82,5,FALSE)) -> 33646.0575 | J78: =IF(INFORMES!C78="URBANA",VLOOKUP(B78,CONMPU!$A$1:$E$91,3,FALSE),VLOOKUP(INFORMES!B78,CONMPI!$A$1:$D$93,3,FALSE)) -> 214500 | K78: =+CIF!B23+CIF!C23 -> 331452.3092 | L78: =+CIF!D23+CIF!E23+CIF!F23+CIF!G23+CIF!H23+CIF!I23+CIF!J23+CIF!K23 -> 244969.88 | M78: 1149568.247 | N78: DECORACION GENERAL
B79: Instalacion de calcomanias de emergencia | C79: =IF(PLIQUIDACION!$D$6="URBANA","URBANA","INTERMUNICIPAL") -> INTERMUNICIPAL | H79: =IF(INFORMES!C79="URBANA",VLOOKUP(B79,CONMPU!$A$1:$E$91,2,FALSE),VLOOKUP(INFORMES!B79,CONMPI!$A$1:$D$93,2,FALSE)) -> 12000 | I79: =IF(C79="URBANA",VLOOKUP(B79,MODURBANA!$B$6:$F$81,5,FALSE),VLOOKUP(B79,MODINTER!$B$7:$F$82,5,FALSE)) -> 5751.7925 | J79: =IF(INFORMES!C79="URBANA",VLOOKUP(B79,CONMPU!$A$1:$E$91,3,FALSE),VLOOKUP(INFORMES!B79,CONMPI!$A$1:$D$93,3,FALSE)) -> 0 | M79: 17751.7925 | N79: DECORACION GENERAL
B80: Instalacion de logos | C80: =IF(PLIQUIDACION!$D$6="URBANA","URBANA","INTERMUNICIPAL") -> INTERMUNICIPAL | H80: =IF(INFORMES!C80="URBANA",VLOOKUP(B80,CONMPU!$A$1:$E$91,2,FALSE),VLOOKUP(INFORMES!B80,CONMPI!$A$1:$D$93,2,FALSE)) -> 30000 | I80: =IF(C80="URBANA",VLOOKUP(B80,MODURBANA!$B$6:$F$81,5,FALSE),VLOOKUP(B80,MODINTER!$B$7:$F$82,5,FALSE)) -> 11503.585 | J80: =IF(INFORMES!C80="URBANA",VLOOKUP(B80,CONMPU!$A$1:$E$91,3,FALSE),VLOOKUP(INFORMES!B80,CONMPI!$A$1:$D$93,3,FALSE)) -> 0 | M80: 41503.585 | N80: DECORACION GENERAL
B81: Instalacion de martillos de seguridad | C81: =IF(PLIQUIDACION!$D$6="URBANA","URBANA","INTERMUNICIPAL") -> INTERMUNICIPAL | H81: =IF(INFORMES!C81="URBANA",VLOOKUP(B81,CONMPU!$A$1:$E$91,2,FALSE),VLOOKUP(INFORMES!B81,CONMPI!$A$1:$D$93,2,FALSE)) -> 24000 | I81: =IF(C81="URBANA",VLOOKUP(B81,MODURBANA!$B$6:$F$81,5,FALSE),VLOOKUP(B81,MODINTER!$B$7:$F$82,5,FALSE)) -> 5751.7925 | J81: =IF(INFORMES!C81="URBANA",VLOOKUP(B81,CONMPU!$A$1:$E$91,3,FALSE),VLOOKUP(INFORMES!B81,CONMPI!$A$1:$D$93,3,FALSE)) -> 0 | M81: 29751.7925 | N81: DECORACION GENERAL
B82: DEPARTAMENTO ADMINISTRATIVO Y DE VENTAS | K82: =+CIF!B27+CIF!C27 -> 1243877.792 | L82: =+CIF!D27+CIF!E27+CIF!F27+CIF!G27+CIF!H27+CIF!I27+CIF!J27+CIF!K27 -> 389132.892 | M82: 1633010.684 | N82: DEPARTAMENTO ADMINISTRATIVO Y DE VENTAS
B83: MANTENIMIENTO GENERAL A CARROCERIAS | K83: =+CIF!B25+CIF!C25 -> 165800.6852 | L83: =+CIF!D25+CIF!E25+CIF!F25+CIF!G25+CIF!H25+CIF!I25+CIF!J25+CIF!K25 -> 145596.94 | M83: 311397.6252 | N83: MANTENIMIENTO

Sheet CONMPU (hidden)
A1: FRENTES Y TRACEROS EN FIBRA DE VIDRIO | B1: 1560000 | C1: 1213800 | D1: 0 | E1: 2773800
A2: Adecuación de las partes montadas | B2: 0 | C2: 4000 | E2: 4000
A3: Desmonte de partes de los moldes | D3: 0 | E3: 0
A4: Elaboración de piezas de frente en fibra de vidrio | B4: 780000 | C4: 412050 | E4: 1192050
A5: Elaboración de piezas traseras en fibra de vidrio | B5: 780000 | C5: 397050 | E5: 1177050
A6: Encerar los moldes | C6: 390000 | E6: 390000
A7: Instalación de las partes | C7: 10700 | E7: 10700
A8: ADECUACIONES ELÉCTRICAS | B8: 2656935 | C8: 267790 | E8: 2924725
A9: Adecuación de alumbrado interno | B9: 232500 | C9: 17000 | E9: 249500
A10: Adecuación de Boster | B10: 750000 | C10: 161200 | E10: 911200
A11: Instalación de espejos | B11: 120000 | C11: 0 | E11: =+B11+C11 -> 120000
A12: Instalación de licuadoras | B12: 266800 | C12: 2090 | E12: 268890
A13: Instalación de motores de limpia brisas | B13: 669000 | E13: 669000
A14: Instalación de parlantes | B14: 230000 | C14: 78000 | E14: 308000
A15: Instalación de radio | B15: 420000 | C15: 9500 | E15: 429500
A16: Instalación de velas | B16: 88635 | E16: 88635
A17: ALISTAMIENTO CHASIS | C17: 116100 | E17: 116100
A18: Acondicimiento de bateria | B18: 0 | C18: 0 | E18: 0
A19: Acondicimineto de portarepuestos | B19: 0 | C19: 0 | E19: 0
A20: Acondicionamiento de filtro de aire | B20: 0 | C20: 34100 | E20: 34100
A21: Acondicionamiento de filtro de combustible | C21: 0 | E21: 0
A22: Instalación de banda | C22: 32000 | E22: 32000
A23: (en blanco) | C23: 50000 | E23: 50000
A24: DECORACION ( PISO EN HULE) | B24: 652374 | C24: 60867.03333 | D24: 0 | E24: 713241.0333
A25: Instalación de piso en caucho | B25: 185710 | C25: 44666.66667 | E25: 230376.6667
A26: Instalación de piso en madera | B26: 360000 | C26: 5033.7 | E26: 365033.7
A27: piso parte delantera | B27: 106664 | C27: 11166.66667 | E27: 117830.6667
A28: Preparación de piso | D28: 0 | E28: 0
A29: DECORACION ( PISO EN LAMINA) | B29: 665000 | C29: 121033.7 | D29: 0 | E29: 786033.7
A30: Instalación de piso en lámina | B30: 305000 | C30: 116000 | E30: 421000
A31: Instalación de piso en madera | B31: 360000 | C31: 5033.7 | E31: 365033.7
A32: Preparación de piso | D32: 0 | E32: 0
A33: DECORACION ( TECHO FIBRA) | B33: 998000 | C33: 587250 | E33: 1585250
A34: Aplicación capa de praymer | C34: 11250 | E34: 11250
A35: Aplicación de Capa de fondo | C35: 134750 | E35: 134750
A36: Aplicación de Capa de masilla | C36: 53500 | E36: 53500
A37: Fabricar piezas | B37: 998000 | E37: 998000
A38: Lijado de Piezas | C38: 12500 | E38: 12500
A39: Lijado sobre capa de fondo | C39: 12500 | E39: 12500
A40: Lijado sobre capa de masilla | C40: 10250 | E40: 10250
A41: Lijado sobre capa de praymer | C41: 42500 | E41: 42500
A42: Lijado sobre la capa de fondo | C42: 12500 | E42: 12500
A43: Limpiar moldes | C43: 30000 | E43: 30000
A44: Pintar piezas | C44: 267500 | E44: 267500
A45: DECORACION ( TECHO FORRADO) | B45: 122000 | C45: 262971.4286 | E45: 384971.4286
A46: Doblar Lámina | B46: 122000 | E46: 122000
A47: Forrar cajones | C47: 148571.4286 | E47: 148571.4286
A48: Instalar | C48: 17400 | E48: 17400
A49: Preparación de techo | C49: 90000 | E49: 90000
A50: Soldar | C50: 7000 | E50: 7000
A51: DECORACION (VIDRIOS Y LUJOS) | B51: 860432 | C51: 3258730 | E51: 4119162
A52: Adecuacion de cajones internos | B52: 167000 | C52: 47022 | E52: 214022
A53: Instalar claraboyá | C53: 355526 | E53: 355526
A54: Instalar Unidades | C54: 850000 | E54: 850000
A55: Instalar vidrios | B55: 693432 | C55: 2006182 | E55: 2699614
A56: DECORACION GENERAL INTERNA | B56: 296000 | C56: 170500 | E56: 466500
A57: Instalacion de calcomanias de emergencia | B57: 12000 | E57: 12000
A58: Instalacion de martillos de seguridad | B58: 24000 | E58: 24000
A59: Instalacion de tubos pasamanos | B59: 260000 | C59: 170500 | E59: 430500
A60: Instalacion de logos | B60: 20000 | C60: 0 | D60: 0 | E60: =+B60+C60 -> 20000
A61: ENLATADO | B61: 798654 | C61: 626430 | E61: 1425084
A62: Colocar lámina | B62: 798654 | C62: 326800 | E62: 1125454
A63: Inmunizar estructura | C63: 299630 | E63: 299630
A64: ESTRIBOS y PUERTAS | B64: 365964.2857 | C64: 166756.5 | E64: 532720.7857
A65: Adecuacion de bodegas | B65: 102250 | C65: 7000 | E65: 109250
A66: Elaboracion de estribos | B66: 80714.28571 | C66: 7000 | E66: 87714.28571
A67: Elaboracion de puertas | B67: 183000 | C67: 14000 | E67: 197000
A68: Instalacion de estribos | C68: 27852 | E68: 27852
A69: Instalacion de puertas | C69: 110904.5 | E69: 110904.5
A70: PINTURA | C70: 1252500 | E70: 1252500
A71: Aplicación capa de praymer | C71: 45000 | E71: 45000
A72: Aplicación de Capa de fondo | C72: 499000 | E72: 499000
A73: Aplicación de Capa de masilla | C73: 218000 | E73: 218000
A74: Aplicacion de pintura | C74: 297500 | E74: 297500
A75: Lijado de carroceria | C75: 25000 | E75: 25000
A76: Lijado sobre capa de fondo | C76: 25000 | E76: 25000
A77: Lijado sobre capa de masilla | C77: 33000 | E77: 33000
A78: Lijado sobre capa de praymer | C78: 85000 | E78: 85000
A79: Lijado sobre la capa de fondo | C79: 25000 | E79: 25000
A80: PLATAFORMA Y ESTRUCTURA | B80: 4419500 | C80: 1054439.16 | E80: 5473939.16
A81: Armar estructura | C81: 418289.16 | E81: 418289.16
A82: Armar plataforma con los puentes | C82: 331200 | E82: 331200
A83: Cortar Lámina | B83: 230000 | E83: 230000
A84: Doblar Lámina
A85: Elaboración de arcos y frentes | B85: 4189500 | E85: 4189500
A86: Soldada de puentes | C86: 304950 | E86: 304950
A87: SILLETERIA | B87: 1068381.857 | C87: 555466.5 | E87: 1623848.357
A88: Hechura de estructura | B88: 402239 | C88: 70000 | E88: 472239
A89: Instalación de sillas | B89: 0 | C89: 313966.5 | E89: 313966.5
A90: Tapizada | B90: 666142.8571 | C90: 171500 | E90: 837642.8571
A91: Total general | B91: 14463241.14 | C91: 9714634.322 | D91: 0 | E91: 24177875.46
B92: 14725241

Sheet CONMPI (hidden)
A1: Rótulos de fila | B1: Directo | C1: Indirecto | D1: Total general
A2: FRENTES Y TRACEROS EN FIBRA DE VIDRIO | B2: 2319000 | C2: 738650 | D2: 3057650
A3: Adecuación de las partes montadas | C3: 4000 | D3: 4000
A4: Elaboración de piezas de frente en fibra de vidrio | B4: 932000 | C4: 359300 | D4: 1291300
A5: Elaboración de piezas traseras en fibra de vidrio | B5: 932000 | C5: 359300 | D5: 1291300
A6: Encerar los moldes | B6: 455000 | D6: 455000
A7: Instalación de las partes | C7: 16050 | D7: 16050
A8: Desmonte de partes de los moldes | B8: 0 | C8: 0 | D8: 0
A9: ADECUACIONES ELÉCTRICAS | B9: 2732844 | C9: 281308 | D9: 3014152
A10: Adecuación de alumbrado interno | B10: 1055500 | C10: 23700 | D10: 1079200
A11: Adecuación de Boster | C11: 162400 | D11: 162400
A12: Instalación de licuadoras | B12: 689000 | C12: 2508 | D12: 691508
A13: Instalación de motores de limpia brisas | B13: 669500 | D13: 669500
A14: Instalación de parlantes | B14: 230000 | C14: 81600 | D14: 311600
A15: Instalación de radio | C15: 11100 | D15: 11100
A16: Instalación de velas | B16: 88844 | D16: 88844
A17: Instalación de espejos | B17: 120000 | C17: 0 | D17: =+B17+C17 -> 120000
A18: ALISTAMIENTO CHASIS | C18: 116100 | D18: 116100
A19: Acondicimiento de bateria | C19: 0 | D19: 0
A20: Acondicimineto de portarepuestos | C20: 0 | D20: 0
A21: Acondicionamiento de filtro de aire | C21: 34100 | D21: 34100
A22: Acondicionamiento de filtro de combustible | C22: 0 | D22: 0
A23: Instalación de banda | C23: 32000 | D23: 32000
A24: (en blanco) | C24: 50000 | D24: 50000
A25: DECORACION ( PISO EN HULE) | B25: 941419 | C25: 74246.7 | D25: 1015665.7
A26: Preparación de piso | B26: 0 | C26: 0 | D26: 0
A27: Instalación de piso en caucho | B27: 241423 | C27: 44666.66667 | D27: 286089.6667
A28: Instalación de piso en madera | B28: 540000 | C28: 7246.7 | D28: 547246.7
A29: piso parte delantera | B29: 159996 | C29: 22333.33333 | D29: 182329.3333
A30: DECORACION ( PISO EN LAMINA) | B30: 906000 | C30: 151196.7 | D30: 1057196.7
A31: Preparación de piso | B31: 0 | C31: 0 | D31: 0
A32: Instalación de piso en lámina | B32: 366000 | C32: 143950 | D32: 509950
A33: Instalación de piso en madera | B33: 540000 | C33: 7246.7 | D33: 547246.7
A34: DECORACION ( TECHO FIBRA) | B34: 1048000 | C34: 776250 | D34: 1824250
A35: Aplicación capa de praymer | C35: 14500 | D35: 14500
A36: Aplicación de Capa de fondo | C36: 193000 | D36: 193000
A37: Aplicación de Capa de masilla | C37: 53500 | D37: 53500
A38: Fabricar piezas | B38: 1048000 | D38: 1048000
A39: Lijado de Piezas | C39: 12500 | D39: 12500
A40: Lijado sobre capa de fondo | C40: 12500 | D40: 12500
A41: Lijado sobre capa de masilla | C41: 10250 | D41: 10250
A42: Lijado sobre capa de praymer | C42: 42500 | D42: 42500
A43: Lijado sobre la capa de fondo | C43: 12500 | D43: 12500
A44: Limpiar moldes | C44: 30000 | D44: 30000
A45: Pintar piezas | C45: 395000 | D45: 395000
A46: DECORACION ( TECHO FORRADO) | B46: 183000 | C46: 370757.1429 | D46: 553757.1429
A47: Doblar Lámina | B47: 183000 | D47: 183000
A48: Forrar cajones | C48: 222857.1429 | D48: 222857.1429
A49: Instalar | C49: 17400 | D49: 17400
A50: Preparación de techo | C50: 120000 | D50: 120000
A51: Soldar | C51: 10500 | D51: 10500
A52: Instalacion de logos | B52: 30000 | C52: 0 | D52: =+B52+C52 -> 30000
A53: DECORACION (VIDRIOS Y LUJOS) | B53: 1027032 | C53: 3906435.5 | D53: 4933467.5
A54: Adecuacion de cajones internos | B54: 243600 | C54: 94044 | D54: 337644
A55: Instalar claraboyá | C55: 711052 | D55: 711052
A56: Instalar Unidades | C56: 850000 | D56: 850000
A57: Instalar vidrios | B57: 783432 | C57: 2251339.5 | D57: 3034771.5
A58: DECORACION GENERAL INTERNA | B58: 361000 | C58: 214500 | D58: 575500
A59: Instalacion de calcomanias de emergencia | B59: 12000 | D59: 12000
A60: Instalacion de martillos de seguridad | B60: 24000 | D60: 24000
A61: Instalacion de tubos pasamanos | B61: 325000 | C61: 214500 | D61: 539500
A63: ENLATADO | B63: 1044508 | C63: 820630 | D63: 1865138
A64: Colocar lámina | B64: 1044508 | C64: 402790 | D64: 1447298
A65: Inmunizar estructura | C65: 417840 | D65: 417840
A66: ESTRIBOS y PUERTAS | B66: 487946.4286 | C66: 203379 | D66: 691325.4286
A67: Adecuacion de bodegas | C67: 10500 | D67: 10500
A68: Elaboracion de estribos | B68: 274446.4286 | C68: 10500 | D68: 284946.4286
A69: Elaboracion de puertas | B69: 213500 | C69: 17500 | D69: 231000
A70: Instalacion de estribos | C70: 28212 | D70: 28212
A71: Instalacion de puertas | C71: 136667 | D71: 136667
A72: PINTURA | C72: 1603000 | D72: 1603000
A73: Aplicación capa de praymer | C73: 67500 | D73: 67500
A74: Aplicación de Capa de fondo | C74: 554000 | D74: 554000
A75: Aplicación de Capa de masilla | C75: 301000 | D75: 301000
A76: Aplicacion de pintura | C76: 487500 | D76: 487500
A77: Lijado de carroceria | C77: 25000 | D77: 25000
A78: Lijado sobre capa de fondo | C78: 25000 | D78: 25000
A79: Lijado sobre capa de masilla | C79: 33000 | D79: 33000
A80: Lijado sobre capa de praymer | C80: 85000 | D80: 85000
A81: Lijado sobre la capa de fondo | C81: 25000 | D81: 25000
A82: PLATAFORMA Y ESTRUCTURA | B82: 5469000 | C82: 1703884.26 | D82: 7172884.26
A83: Armar estructura | C83: 608884.26 | D83: 608884.26
A84: Armar plataforma con los puentes | C84: 600000 | D84: 600000
A85: Doblar Lámina | B85: 0 | C85: 0 | D85: 0
A86: Cortar Lámina | B86: 345000 | D86: 345000
A87: Elaboración de arcos y frentes | B87: 5124000 | D87: 5124000
A88: Soldada de puentes | C88: 495000 | D88: 495000
A89: SILLETERIA | B89: 1287390 | C89: 836664.2 | D89: 2124054.2
A90: Instalación de sillas | B90: 0 | C90: 0 | D90: 0
A91: Hechura de estructura | B91: 620890 | C91: 74200 | D91: 695090
A92: Tapizada | B92: 666500 | C92: 762464.2 | D92: 1428964.2
A93: Total general | B93: 17807139.43 | C93: 11797001.5 | D93: 29604140.93

Sheet Hoja6 (hidden)
K1: URB+FOR | L1: URB+FI | M1: INTER+FO | N1: INTER+FI
I2: URBANA | J2: 0 | K2: =+J2+J4 -> 2 | L2: =+J2+J5 -> 3
A3: TIPO CARROCERIA | B3: INTERMUNICIPAL | I3: INTERMUNICIPAL | J3: 1 | M3: =+J4+J3 -> 3 | N3: =+J3+J5 -> 4
A4: TECHO | B4: FIBRA | I4: FORRADA | J4: 2
A5: PISO | I5: FIBRA | J5: 3
C7: =IF(AND(B3="URBANA",B4="FORRADO"),J2+J4,IF(AND(B3="URBANA",B4="FIBRA"),J2+J5,IF(AND(B3="INTERMUNICIPAL",B4="FORRADO"),J3+J4,IF(AND(B3="INTERMUNICIPAL",B4="FIBRA"),J3+J5,0)))) -> 4

Sheet CONSOLIDADO
A1: CONSOLIDADO DE COSTOS
B3: Valores
A4: Rótulos de fila | B4: Suma de MATERIALES DIRECTOS | C4: Suma de MANO DE OBRA DIRECTA | D4: Suma de MPI | E4: Suma de MOI | F4: Suma de OTROS CIF
A5: ADECUACIONES ELECTRICAS | B5: 2764000 | C5: 275208.485 | D5: 281308 | E5: 207213.5912 | F5: 132581.928
A6: ALISTAMIENTO CHASIS | B6: 0 | C6: 188669.08 | D6: 66100 | E6: 143203.5968 | F6: 123587.952
A7: DECORACION GENERAL | B7: 391000 | C7: 56653.2275 | D7: 214500 | E7: 331452.3092 | F7: 244969.88
A8: DECORACION PISO HULE | B8: 941419 | C8: 281837.8325 | D8: 74246.7
A9: DECORACION PISO LAMINA | B9: 0 | C9: 0 | D9: 0
A10: DECORACION TECHO FIBRA | B10: 1048000 | C10: 401530.4037 | D10: 969250
A11: DECORACION TECHO FORRADO | B11: 0 | C11: 0 | D11: 0
A12: DECORACION VIDRIOS Y LUJOS | B12: 1027032 | C12: 5334510.755 | D12: 3195383.5
A13: DEPARTAMENTO ADMINISTRATIVO Y DE VENTAS | E13: 1243877.792 | F13: 389132.892
A14: ENLATADO | B14: 1044508 | C14: 575179.25 | D14: 820630 | E14: 185139.0512 | F14: 137078.916
A15: ESTRIBOS PUERTAS Y BODEGAS | B15: 487946.4286 | C15: 500000 | D15: 203379 | E15: 130944.0512 | F15: 110678.916
A16: FRENTES Y TRASEROS EN FIBRA DE VIDRIO | B16: 2319000 | C16: 697446.6275 | D16: 738650 | E16: 200326.8692 | F16: 233737.928
A17: MANTENIMIENTO | E17: 165800.6852 | F17: 145596.94
A18: PINTURA | B18: 0 | C18: 874797.495 | D18: 1044250 | E18: 172702.8362 | F18: 202893.928
A19: PLATAFORMA Y ESTRUCTURA | B19: 5469000 | C19: 1045289.702 | D19: 1703884.26 | E19: 222731.8592 | F19: 772400.604
A20: SILLETERIA | B20: 1287390 | C20: 2078901.183 | D20: 836664.2 | E20: 172436.7805 | F20: 137078.916
A21: Total general | B21: 16779295.43 | C21: 12310024.04 | D21: 10148245.66 | E21: 3175829.422 | F21: 2629738.8

Sheet GRAFICAS
